{"text_format":"1","workbook":"xlsx","n_sheets":13,"sheets":["CONTRATACIÓN DIRECTA","INDICE","1.DATOS GENERALES DEL PROVEEDOR","2. CRONOGRAMA","3. OF. ECONOMICA COSTOS","4. OF. ECONOMICA PRECIOS","5. PLAN DE TRABAJO","6. EXPERIENCIA OFERENTE","7. PERSONAL TECNICO","8. COMPROMISO PERSONAL TECNICO","9. EQUIPOS DE TRABAJO","9. COMPROMISO ANEXO 2","Hoja2"],"not_rendered":{"charts":0,"images":1,"macros":1,"external_links":0,"defined_names":0,"comments":0,"pivot_tables":0},"unopened":[],"bounds":{"document_bytes":16777216,"sheet_cells":100000,"rows_first":2000,"rows_last":500,"rows_between":2000,"halvings":0,"cell_chars":16384,"cell_head_chars":4096},"cells_cut":0,"cells_raw":0,"read":"whole","date_system":"1900"}

{"sheet":"CONTRATACIÓN DIRECTA","index":0,"n_rows":74,"n_cols":15,"rows_kept":74,"cut":false,"hidden":true,"merged":[[60,2,60,5],[60,6,60,12],[38,6,38,9],[64,2,64,3],[65,2,65,3],[68,1,68,3],[23,11,23,12],[24,1,24,3],[24,4,24,7],[24,8,24,10],[24,11,24,12],[67,1,67,12],[68,4,68,12],[62,1,62,12],[41,1,41,12],[47,2,47,4],[47,5,47,7],[64,4,64,5],[63,2,63,6],[44,5,44,7],[45,5,45,7],[61,2,61,5],[61,6,61,12],[54,2,54,5],[56,2,56,5],[58,2,58,5],[57,1,57,12],[17,1,19,1],[17,3,17,12],[18,3,18,7],[18,8,18,9],[19,3,19,12],[73,1,73,4],[73,5,73,8],[73,9,73,12],[71,1,71,4],[71,5,71,8],[71,9,71,12],[72,1,72,4],[72,5,72,8],[72,9,72,12],[70,1,70,4],[70,5,70,8],[70,9,70,12],[64,11,64,12],[65,11,65,12],[66,11,66,12],[69,1,69,4],[69,5,69,8],[69,9,69,12],[66,2,66,3],[55,2,55,5],[58,6,58,12],[35,6,35,9],[36,6,36,9],[37,6,37,9],[9,1,9,12],[10,1,10,2],[10,3,10,12],[59,2,59,5],[32,1,34,1],[43,2,43,4],[46,2,46,4],[53,6,53,12],[48,2,48,4],[50,1,50,12],[51,1,51,12],[44,2,44,4],[45,2,45,4],[46,5,46,7],[48,5,48,7],[38,10,38,12],[2,1,4,2],[26,6,26,9],[31,1,31,12],[22,1,22,12],[27,1,28,1],[27,2,28,4],[27,5,28,5],[27,6,28,11],[27,12,28,12],[29,1,30,1],[29,2,30,4],[29,5,30,5],[29,6,30,11],[29,12,30,12],[26,2,26,4],[15,3,15,12],[3,3,3,13],[4,3,4,13],[2,3,2,13],[5,1,5,2],[5,9,5,11],[5,3,5,6],[11,1,12,1],[11,3,11,12],[52,1,52,12],[20,1,20,12],[39,10,39,12],[32,6,34,9],[25,1,25,12],[39,2,39,4],[14,3,14,12],[16,1,16,2],[16,3,16,8],[16,9,16,11],[39,6,39,9],[35,2,35,4],[36,2,36,4],[37,2,37,4],[38,2,38,4],[14,1,14,2],[54,6,56,12],[65,4,65,8],[66,4,66,8],[49,1,49,12],[32,13,34,13],[32,14,34,14],[2,14,4,14],[59,6,59,12],[32,10,34,12],[40,2,40,4],[40,6,40,9],[40,10,40,12],[43,5,43,7],[42,10,42,12],[42,5,42,9],[32,2,34,4],[32,5,34,5],[6,1,6,2],[6,3,6,6],[6,9,6,11],[23,1,23,3],[23,4,23,7],[23,8,23,10],[53,2,53,5],[12,3,12,12],[13,1,13,2],[13,3,13,12],[7,1,7,2],[7,3,7,12],[35,10,35,12],[36,10,36,12],[37,10,37,12],[8,3,8,12],[8,1,8,2],[15,1,15,2]]}
[]
[]
[null,null,null,"Corporación Nacional de Finanzas Populares y Solidarias"]
[null,null,null,"MATRIZ EVALUACION OFERTA"]
[null,null,null," PARA LOS PROCESOS DE CONTRATACIÓN POR CONSULTORÍA - CONTRATACIÓN DIRECTA"]
[null,"UNIDAD REQUIRENTE",null,"Gerencia de Planificación y Procesos",null,null,null,"FECHA",null,"RECEPTADO EN EL SISTEMA SOCE"]
[null,"PROVEEDOR",null,null,null,null,null,"RUC",null,"REVISION LISTAS DE CONTROL"]
[null,"OBJETO DE LA CONTRATACIÓN",null,"CONTRATAR UNA FIRMA AUDITORA EXTERNA INDEPENDIENTE A FIN DE AUDITAR EL USO DE LOS RECURSOS FINANCIADOS POR LA CORPORACIÓN ANDINA DE FOMENTO CAF EN LOS DIFERENTES PROGRAMAS, PARA EL PERIODO 2023 A LA CORPORACIÓN NACIONAL DE FINANZAS POPULARES Y SOLIDARIAS CONAFIPS.",null,null,null,null,null,null,null,null,null,"CUMPLE / NO CUMPLE","OBSERVACIONES"]
[null,"VALIDACION FIRMA ELECTRÓNICA (Firma.Ec)",null,null,null,null,null,null,null,null,null,null,null,"CUMPLE"]
[null," TÉRMINOS DE REFERENCIA",null,null,null,null,null,null,null,null,null,null,null,"CUMPLE / NO CUMPLE","OBSERVACIONES"]
[null,"ANTECEDENTES",null,"a)\tEl artículo 226 de la Constitución de la República del Ecuador señala: \"Las instituciones del Estado, sus organismos, dependencias, las servidoras o servidores públicos y las personas que actúen en virtud de una potestad estatal ejercerán solamente las competencias y facultades que les sean atribuidas en la Constitución y la ley. Tendrán el deber de coordinar acciones para el cumplimiento de sus fines y hacer efectivo el goce y ejercicio de los derechos reconocidos en la Constitución\".\nb)\tIbidem, artículo 227 determina: \"La administración pública constituye un servicio a la colectividad que se rige por los principios de eficacia, eficiencia, calidad, jerarquía, desconcentración, descentralización, coordinación, participación, planificación, transparencia y evaluación\".\nc)\tEl artículo 158 de la Ley Orgánica de Economía Popular y solidaria dispone: \"...Créase la Corporación Nacional de Finanzas Populares y Solidarias, como una entidad financiera de derecho público, dotada de personalidad jurídica, patrimonio propio y autonomía administrativa, técnica y financiera, con jurisdicción nacional\".\nd)\tMediante disposición reformatoria novena numeral 8, el Código Orgánico Monetario y Financiero establece restituir el texto: \"como un organismo de derecho público, dotado...\", por el siguiente: \"como una entidad financiera de derecho público, dotada...\", publicada en el suplemento del registro oficial Nro. 332 del 12 de septiembre de 2014.\ne)\tMediante Resolución No. SEPS-ROEPS-2012-000002 de 28 de diciembre del 2012, la Superintendencia de Economía Popular y Solidaria, aprueba el Estatuto Social de la Corporación Nacional de Finanzas Populares y Solidarias.\nf)\tMediante Resolución Nro. SEPS-INSEPS-2022-0184, de fecha 19 de mayo del 2022, la Intendente Nacional de Servicios de la Economía Popular y Solidaria, aprueba la reforma parcial del Estatuto Social de la Corporación Nacional de Finanzas Populares y Solidarias. \ng)\tMediante Resolución Nro. SEPS-INSEPS-2022-0196, de fecha 14 de junio del 2022, la Intendente Nacional de Servicios de la Economía Popular y Solidaria resuelve “Modificar los artículos 23, 24, 25, 26 y 30, del Estatuto de la Corporación Nacional de Finanzas Populares, cuyas reformas fueron aprobadas en el artículo 1 de la Resolución Nro. SEPS-INSEPS-2022-0184 de 19 de mayo de 2022”.\nh)\tLa Codificación del Estatuto Social de la Corporación Nacional de Finanzas Populares y Solidarias, reformada mediante Resolución Nro. SEPS-INSEPS-2022-0184, señala en el Artículo 11: “El Directorio de la Corporación Nacional de Finanzas Populares y Solidarias está conformado por los siguientes miembros: 1. Delegado permanente del Presidente de la República, quién ejercerá la Presidencia y tendrá el voto dirimente; 2. Ministro de Economía y Finanzas, o su delegado permanente; 3. Ministro de Producción, Comercio Exterior, Inversiones y Pesca, o su delegado permanente; 4. Ministro de Inclusión Económica y Social, o su delegado permanente; 5. Secretaría Nacional de Planificación o su delegado permanente; 6. El Director General quién actuará como Secretario del Directorio.”\ni)\tDe acuerdo con la Codificación del Estatuto Social de la CONAFIPS - “Art. 14.- A más de las señaladas en la Ley Orgánica de la Economía Popular y Solidaria y Solidario y su Reglamento, son atribuciones del Directorio de la CONAFIPS: (…) b) Elegir a los auditores interno y externo;”.\nj)\tEl Art. 3 de la Ley Orgánica del Sistema Nacional de Contratación Pública determina: “Contratos Financiados con Préstamos y Cooperación Internacional.- En las contrataciones que se financien, previo convenio, con fondos provenientes de organismos multilaterales de crédito de los cuales el Ecuador sea miembro, o, en las contrataciones que se financien con fondos reembolsables o no reembolsables provenientes de financiamiento de gobierno a gobierno; u organismos internacionales de cooperación, se observará lo acordado en los respectivos convenios. Lo no previsto en dichos convenios se regirá por las disposiciones de esta Ley”.\nk)\tEl Art. 2 del Reglamento General a la Ley Orgánica del Sistema Nacional de Contratación Pública establece: “Contratos financiados con préstamos y cooperación internacional. - En la suscripción de los convenios de crédito o de cooperación internacional se procurará medidas para la participación directa o asociada de proveedores nacionales. \nEl régimen especial previsto en el artículo 3 de la Ley se observará independientemente que el financiamiento internacional sea total o parcial, siempre que se observen las condiciones previstas en el Convenio.\nLo no previsto en dichos convenios se regirá por las disposiciones de esta Ley”.\nl)\tCon fecha 09 de diciembre de 2021, se suscribe entre la Corporación Andina de Fomento CAF y la Corporación Nacional de Finanzas Populares y Solidarias CONAFIPS, el Contrato de Préstamo y Contrato de Garantía para financiar el \"Programa de Inclusión Financiera a través de Cooperativas de Ahorro y Crédito, con Enfoque de Género y Negocios Verdes, en el Marco de la Crisis Generada por el Covid - 19 y la Posterior Reactivación Económica\", por un monto de USD 100.000.000,00 (cien millones de dólares de los Estados Unidos de América).\nm)\tLa Cláusula 8. Condiciones Especiales, del Contrato de Préstamo entre la CAF y la CONAFIPS, para financiar el \"Programa de Inclusión Financiera a través de Cooperativas de Ahorro y Crédito, con Enfoque de Género y Negocios Verdes, en el Marco de la Crisis Generada por el Covid - 19 y la Posterior Reactivación Económica\", en el numeral: 8.1.4. Dentro la vigencia del préstamo - Presentar en forma y sustancia aceptable para CAF: 3. Dentro de los noventa (90) días contados a partir del primer desembolso del préstamo, evidencia de que ha iniciado el proceso de contratación de una auditoría externa independiente de reconocida capacidad técnica, a fin de auditar anualmente, durante el período de desembolso del préstamo los procedimientos de operativos realizados, las demonstraciones financieras, el cumplimiento de las cláusulas contractuales y el uso de los recursos del Programa.”(Énfasis añadido)\nn)\tLa Cláusula 8. Condiciones Especiales, del Contrato de Préstamo entre la CAF y la CONAFIPS, para financiar el \"Programa de Inclusión Financiera a través de Cooperativas de Ahorro y Crédito, con Enfoque de Género y Negocios Verdes, en el Marco de la Crisis Generada por el Covid - 19 y la Posterior Reactivación Económica\", en el numeral: 8.1.4. Dentro la vigencia del préstamo - Presentar en forma y sustancia aceptable para CAF: 5. Dentro de los ciento ochenta (180) días contados a partir de la fecha de cierre de cada año fiscal, informes anuales de auditoría externa y copia de los estados financieros auditados. En caso de que el primer desembolso ocurra luego del 1° de octubre, y mediante acuerdo entre CONAFIPS y CAF, el informe anual del primer año podrá ser agregado al informe anual del año subsecuente.” (énfasis añadido)\no)\tCon fecha 24 de mayo de 2023, se suscribe entre la Corporación Andina de Fomento CAF y la Corporación Nacional de Finanzas Populares y Solidarias CONAFIPS, el Contrato de Préstamo y Contrato de Garantía para financiar el “Programa de Microfinanciamientos a través de Cooperativas de Ahorro y Crédito (COAC)”, por un monto de USD 75.000.000,00 (setenta y cinco millones de dólares de los Estados Unidos de América).\np)\tLa Cláusula 8. Condiciones Especiales, del Contrato de Préstamo entre la CAF y la CONAFIPS, para financiar el \"Programa de Microfinanciamientos a través de Cooperativas de Ahorro y Crédito (COAC)” en el numeral: 8.1.2. Dentro la vigencia del préstamo - Presentar en forma y sustancia aceptable para CAF: 1 Dentro de los noventa días contados a partir del primer desembolso del préstamo, evidencia de que ha iniciado el proceso de contratación de una auditoría externa independiente de reconocida capacidad técnica, a fin de auditar anualmente, durante el período de desembolso del Préstamo los procedimientos de operativos realizados, las demostraciones financieras, el cumplimiento de las cláusulas contractuales y el uso de los recursos del Programa. (Énfasis añadido)\nq)\tLa Cláusula 8. Condiciones Especiales, del Contrato de Préstamo entre la CAF y la CONAFIPS, para financiar el \"Programa de Microfinanciamientos a través de Cooperativas de Ahorro y Crédito (COAC)” en el numeral: 8.1.2. Dentro la vigencia del préstamo - Presentar en forma y sustancia aceptable para CAF: 3 Dentro de los ciento ochenta (180) días contados a partir de la fecha de cierre de cada año fiscal, informes anuales de auditoría externa y copia de los estados financieros auditados. En caso de que el primer desembolso ocurra luego del 1° de octubre, y mediante acuerdo entre CONAFIPS y CAF, el informe anual del primer año podrá ser agregado al informe anual del año subsecuente.” (énfasis añadido)",null,null,null,null,null,null,null,null,null,"CUMPLE"]
[null,"OBJETIVOS ","General","Contratar una firma auditora externa, independiente, de reconocida capacidad técnica, a fin de auditar anualmente, durante el período de desembolso de los préstamos los procedimientos operativos realizados, las demostraciones financieras, el cumplimiento de las cláusulas contractuales y el uso de los recursos financiado por la Corporación Andina de Fomento CAF a la Corporación Nacional de Finanzas Populares y Solidarias CONAFIPS al cierre del “Programa de Inclusión Financiera a través de Cooperativas de Ahorro y Crédito, con Enfoque de Género y Negocios Verdes, en el Marco de la Crisis Generada por el Covid - 19 y la Posterior Reactivación Económica” y “Programa de Microfinanciamientos a través de Cooperativas de Ahorro y Crédito (COAC)”- Corporación Andina De Fomento - CAF, período 2023.",null,null,null,null,null,null,null,null,null,"CUMPLE"]
[null,null,"Específicos","1.\tCumplir con la cláusula 8.1.4, numerales 3 y 5, y 8.1.2 numerales 1 y 3 de los Contratos de los Préstamos entre la Corporación Andina de Fomento CAF, y la Corporación Nacional de Finanzas Populares y Solidarias CONAFIPS, que permita, durante el período de desembolso del préstamo, auditar los procedimientos operativos realizados, las demostraciones financieras, el cumplimiento de las cláusulas contractuales y el uso de los recursos al cierre del “Programa de Inclusión Financiera a través de Cooperativas de Ahorro y Crédito, con Enfoque de Género y Negocios Verdes, en el Marco de la Crisis Generada por el Covid - 19 y la Posterior Reactivación Económica”, y el “Programa de Microfinanciamientos a través de Cooperativas de Ahorro y Crédito (COAC)” periodo 2023, de acuerdo a lo estipulado en los Contratos de Préstamo, Contrato de Garantía, Manual Operativo del Programa (MOP), y demás documentos relevantes. \n\n2.\tComunicar los resultados de la auditoría a las áreas ejecutoras de los programas, a las áreas administrativas relacionadas y a la Gerencia General, con el fin de que tomen las acciones necesarias para la correcta ejecución de los  programas: al cierre del “Programa de Inclusión Financiera a través de Cooperativas de Ahorro y Crédito, con Enfoque de Género y Negocios Verdes, en el Marco de la Crisis Generada por el Covid - 19 y la Posterior Reactivación Económica” y el  “Programa de Microfinanciamientos a través de Cooperativas de Ahorro y Crédito (COAC)” - Corporación Andina De Fomento – CAF” periodo 2023",null,null,null,null,null,null,null,null,null,"CUMPLE"]
[null,"ALCANCE ",null,"La empresa seleccionada deberá realizar la auditoría señalada, de acuerdo con la cláusula 8 Condiciones Especiales de los contratos:\na)\tCierre del “Programa de Inclusión Financiera a través de Cooperativas de Ahorro y Crédito, con Enfoque de Género y Negocios Verdes, en el Marco de la Crisis Generada por el Covid - 19 y la Posterior Reactivación Económica” 8.1.4. del Contrato de Préstamo: “Dentro de la vigencia del préstamo - Presentar en forma y sustancia aceptable para CAF: 5. Dentro de los ciento ochenta (180) días contados a partir de la fecha de cierre de cada año fiscal, informes anuales de auditoría externa y copia de los estados financieros auditados. En caso de que el primer desembolso ocurra luego del 1° de octubre, y mediante acuerdo entre CONAFIPS y CAF, el informe anual del primer año podrá ser agregado al informe anual del año subsecuente”, desde el primer desembolso de los recursos, y\nb)\t“Programa de Microfinanciamientos a través de Cooperativas de Ahorro y Crédito (COAC)” periodo 2023:  8.1.2 del Contrato de Préstamo: “Dentro de la vigencia del préstamo - Presentar en forma y sustancia aceptable para CAF: 1.  Dentro de los noventa días contados a partir del primer desembolso del préstamo, evidencia de que ha iniciado el proceso de contratación de una auditoría externa independiente de reconocida capacidad técnica, a fin de auditar anualmente, durante el período de desembolso del Préstamo los procedimientos de operativos realizados, las demostraciones financieras, el cumplimiento de las cláusulas contractuales y el uso de los recursos del Programa. (Énfasis añadido)\nmediante las siguientes acciones:\na.\tValidar el cumplimiento de las condiciones establecidas en los Contratos de Préstamo, Contrato de Garantía, Manual Operativo del Programa (MOP), y demás documentos relevantes, para la ejecución del cierre del “Programa de Inclusión Financiera a través de Cooperativas de Ahorro y Crédito, con Enfoque de Género y Negocios Verdes, en el Marco de la Crisis Generada por el Covid - 19 y la Posterior Reactivación Económica” y “Programa de Microfinanciamientos a través de Cooperativas de Ahorro y Crédito (COAC)” periodo 2023.\nb.\tEmitir opinión independiente sobre la veracidad o exactitud de los fondos entregados a la CONAFIPS, y opinar si los recursos fueron usados conforme Contratos de Préstamos entre la Corporación Andina de Fomento CAF, y la Corporación Nacional de Finanzas Populares y Solidarias CONAFIPS, Contrato de Garantía, Manual Operativo del Programa (MOP), y demás documentos relevantes.\nc.\tDictaminar sobre la evaluación de suficiencia y efectividad de los sistemas de control interno en los procesos relativos al proyecto.\nd.\tOpinar si las actividades financieras y sus procedimientos se ajustan a la legislación aplicable.\ne.\tOpinar sobre el cumplimiento de los controles para evitar actividades ilícitas, incluido el lavado de activos y el financiamiento de delitos como el terrorismo y otros delitos.\nf.\tInformar sobre el cumplimiento tributario de acuerdo con la normativa vigente.\ng.\tEmitir el informe de cierre del uso de recursos financiados por la Corporación Andina de Fomento CAF a la CONAFIPS del “Programa de Inclusión Financiera a través de Cooperativas de Ahorro y Crédito, con Enfoque de Género y Negocios Verdes, en el Marco de la Crisis Generada por el Covid - 19 y la Posterior Reactivación Económica”",null,null,null,null,null,null,null,null,null,"CUMPLE"]
[null,"METODOLOGÍA DE TRABAJO Y CRONOGRAMA DE EJECUCIÓN",null,"La firma auditora externa deberá realizar su trabajo aplicando las normas que tengan relación para la emisión de los informes requeridos, de acuerdo al procedimiento que corresponda y los Contratos de Préstamo, Contrato de Garantía, Manual Operativo del Programa (MOP), y demás documentos relevantes, para el cierre del “Programa de Inclusión Financiera a través de Cooperativas de Ahorro y Crédito, con Enfoque de Género y Negocios Verdes, en el Marco de la Crisis Generada por el Covid - 19 y la Posterior Reactivación Económica” y ““Programa de Microfinanciamientos a través de Cooperativas de Ahorro y Crédito (COAC)” periodo 2023; para ello, coordinará con el Administrador del Contrato las acciones necesarias, en las que participen el personal de la Corporación Nacional de Finanzas Populares y Solidarias (CONAFIPS) y Jefe de Auditoría designado por la firma auditora, responsable de esta auditoría.\n\nLa firma auditora externa, en el ámbito de los Contratos de Préstamos, Contratos de Garantía, Manual Operativo del Programa (MOP), y demás documentos relevantes, de los fondos entregados por la Corporación Andina de Fomento CAF, para financiar la ejecución del “Programa de Inclusión Financiera a través de Cooperativas de Ahorro y Crédito, con Enfoque de Género y Negocios Verdes, en el Marco de la Crisis Generada por el Covid - 19 y la Posterior Reactivación Económica” en la fase de cierre y ““Programa de Microfinanciamientos a través de Cooperativas de Ahorro y Crédito (COAC) período 2023”, hará las veces de comisario de la entidad financiera, conforme los términos establecidos en la Ley de Compañías, en lo que sea aplicable tendrá las funciones que se determinan en el Código Orgánico Monetario y Financiero, en las leyes tributarias y en las disposiciones de la Junta de Política y Regulación Monetaria Financiera.\n\nEJECUCIÓN DE LA AUDITORÍA\n\nPara la auditoría externa, la CONAFIPS prestará las facilidades al Jefe de Auditoría y su equipo de trabajo para que pueda acceder a los archivos institucionales e información financiera relevante que necesitare. Es importante señalar, que la información entregada a la firma auditora externa tendrá el carácter de confidencial; por lo tanto, la firma auditora no tendrá derecho alguno sobre la información, ni tampoco derecho de utilizarla, excepto para el objeto de la presente contratación. La firma auditora externa se compromete a guardar absoluta reserva de la información que se genere en la ejecución del contrato.\n\nTodos los informes deberán contener sus correspondientes documentos de trabajo y respaldo, que determinen o definan el criterio del auditor externo al momento de emitir su opinión sobre el objeto de contratación y sus productos. \n\nFINALIZACIÓN DEL PROCESO DE AUDITORÍA\n\nConcluida la auditoría, la firma auditora entregará en formato digital.al Administrador del Contrato los informes constantes en el numeral 7, referente a los productos esperados, conforme se establece en estos términos de referencia, "]
[null,"CRONOGRAMA DE EJECUCIÓN DEL PROYECTO - PRODUCTOS FINALES",null,"El auditor externo previamente deberá entregar el plan y cronograma de trabajo, a ser aprobado por el administrador de contrato, considerando el plazo establecido en estos Términos de Referencia.\nPlazo para la entrega del Cronograma de Trabajo: Hasta los 5 días calendario, contados a partir del siguiente día de la firma del contrato, la firma auditora entregará al administrador de contrato el plan de trabajo y cronograma para su aprobación.\"\t\t\t\t\t\t\n\"El plazo establecido para la ejecución del contrato es de 210 días calendario, contados a partir del siguiente día de la firma del contrato, contemplados de la siguiente forma:\nPlazo para la entrega del producto 1 correspondiente al cierre del “Programa de Inclusión Financiera a través de Cooperativas de Ahorro y Crédito, con Enfoque de Género y Negocios Verdes, en el Marco de la Crisis Generada por el Covid - 19 y la Posterior Reactivación Económica”: 30 días contados a partir del siguiente día de la firma del contrato.\"\t\t\t\t\nPlazo para la entrega del producto 2 correspondiente al “Programa de microfinanciamientos a través de Cooperativas de Ahorro y Crédito (COAC)” periodo 2023, 60 días a partir de los siguientes 150 días corridos desde la firma del contrato, que computan los 210 días plazo. y se desarrollará de conformidad al plan y cronograma de trabajo aprobado por el Administrador de Contrato.\t",null,null,null,null,null,null,null,null,null,"CUMPLE"]
[null,"PLAZO DE EJECUCIÓN",null,"El plazo establecido para la ejecución del contrato es de 210 días calendario, contados a partir del siguiente día de la firma del contrato, contemplados de la siguiente forma:\n\nPlazo para la entrega del Cronograma de Trabajo: Hasta los 5 días calendario, contados a partir del siguiente día de la firma del contrato: la firma auditora entregará al administrador de contrato el plan de trabajo y cronograma para su aprobación.\n\nPlazo para la entrega del producto 1 correspondiente al cierre del “Programa de Inclusión Financiera a través de Cooperativas de Ahorro y Crédito, con Enfoque de Género y Negocios Verdes, en el Marco de la Crisis Generada por el Covid - 19 y la Posterior Reactivación Económica”: 30 días contados a partir del siguiente día de la firma del contrato.\n\nPlazo para la entrega del producto 2 correspondiente al “Programa de microfinanciamientos a través de Cooperativas de Ahorro y Crédito (COAC)” periodo 2023, 60 días a partir de los siguientes 150 días corridos desde la firma del contrato, que computan los 210 días plazo. y se desarrollará de conformidad al plan y cronograma de trabajo aprobado por el Administrador de Contrato.",null,null,null,null,null,"VALIDEZ MÍNIMA DE LA PROFORMA",null,null,90,"CUMPLE"]
[null,"PAGO","Anticipo","No se entregará anticipo",null,null,null,null,null,null,null,null,null,"CUMPLE"]
[null,null,"Forma","El 100% del valor del contrato se cancelará contra entrega de los productos objeto de esta consultoría, conforme el siguiente detalle:\nEl 30% del valor del contrato se cancelará contra entrega del producto 1 que corresponde a: Informes de Auditoría de cierre del “Programa de Inclusión Financiera a través de Cooperativas de Ahorro y Crédito, con Enfoque de Género y Negocios Verdes, en el Marco de la Crisis Generada por el Covid - 19 y la Posterior Reactivación Económica” objeto de esta consultoría, previa entrega de los informes finales por parte de la firma auditora, documentos y anexos determinados en estos términos de referencia, suscripción del acta entrega recepción total y definitiva; y; la factura correspondiente.\nEl 70% restante del valor del contrato se cancelará contra entrega del producto 2 correspondiente a: Informes de auditoría del “Programa de microfinanciamientos a través de Cooperativas de Ahorro y Crédito (COAC)” del período 2023, objeto de esta consultoría, ",null,null,null,null,"Contempla entregas parciales",null,"SI","Número de entregas",2,"CUMPLE"]
[null,null,"Condiciones","previa entrega de los informes finales por parte de la firma auditora, documentos y anexos determinados en estos términos de referencia, suscripción del acta entrega recepción total y definitiva; y; la factura correspondiente.",null,null,null,null,null,null,null,null,null,"CUMPLE"]
[null,"PRESUPUESTO REFERENCIAL",null,null,null,null,null,null,null,null,null,null,null,"CUMPLE / NO CUMPLE","OBSERVACIONES"]
[null,"Subtotal 0%",null,"Subtotal 12%",null,"IVA 12%",{"$f":"+E22*0.12","v":0},"Total 0%",{"$f":"+C22","v":0},"Total 12%",{"$f":"+E22+G22","v":0},"Total 0%\n+\nTotal 12%",{"$f":"+C22+E22+G22","v":0},"CUMPLE"]
[null,"CUADRO COMPARATIVO DE COSTOS"]
[null,"COSTOS DIRECTOS",null,null,"COSTOS INDIRECTOS",null,null,null,"GASTOS GENERALES",null,null,"UTILIDAD",null,"CUMPLE","OBSERVACIONES"]
[null,null,null,null,0,null,null,null,970,null,null,{"$f":"+E22-B25-E25-I25","v":-970},null,"CUMPLE"]
[null,"SERVICIOS ESPERADOS"]
[null,"Ítem","Descripción",null,null,"CPC","Términos de referencia requeridos",null,null,null,"Cantidad","Precio Unitario","Precio Total","CUMPLE / NO CUMPLE","OBSERVACIONES"]
[null,1,"Producto 1: Informes de auditoría de cierre del “Programa de Inclusión Financiera a través de Cooperativas de Ahorro y Crédito, con Enfoque de Género y Negocios Verdes, en el Marco de la Crisis Generada por el Covid - 19 y la Posterior Reactivación Económica” que contenga los siguientes elementos",null,null,822110111,"Informe de Auditor:\nEmitir opinión independiente sobre:\na) Cumplimiento de las condiciones establecidas en el Contrato de Préstamo entre la Corporación Andina de Fomento CAF, y la Corporación Nacional de Finanzas Populares y Solidarias CONAFIPS.\nb) Cumplimiento de las condiciones establecidas en el Contrato de Garantía, Manual Operativo del Programa (MOP), y demás documentos relevantes para la ejecución al cierre del “Programa de Inclusión Financiera a través de Cooperativas de Ahorro y Crédito, con Enfoque de Género y Negocios Verdes, en el Marco de la Crisis Generada por el Covid - 19 y la Posterior Reactivación Económica \nIncluye:\nInformes del auditor externo quien será el comisario de la CONAFIPS para la presente contratación, en la correcta ejecución del Contrato de Préstamo, Contrato de Garantía, Manual Operativo del Programa (MOP), y demás documentos relevantes, para la ejecución al cierre del “Programa de Inclusión Financiera a través de Cooperativas de Ahorro y Crédito, con Enfoque de Género y Negocios Verdes, en el Marco de la Crisis Generada por el Covid - 19 y la Posterior Reactivación Económica”.\n\nCarta a gerencia sobre la evaluación de suficiencia y efectividad del control interno: \nEmitir opinión sobre los controles internos implementados en la CONAFIPS, posibles diferencias y recomendaciones que pudieren aplicarse para evitar errores u omisiones en el cumplimiento de las condiciones establecidas en el Contrato de Préstamo, Contrato de Garantía, Manual Operativo del Programa (MOP), y demás documentos relevantes, para la ejecución al cierre del “Programa de Inclusión Financiera a través de Cooperativas de Ahorro y Crédito, con Enfoque de Género y Negocios Verdes, en el Marco de la Crisis Generada por el Covid - 19 y la Posterior Reactivación Económica”\n\nInforme sobre control de lavado de activos:\nEmitir opinión sobre los controles implementados para evitar actividades ilícitas, incluido el lavado de activos y financiamiento de delitos como el terrorismo en la ejecución del Contrato de Préstamo, Contrato de Garantía, Manual Operativo del Programa (MOP), y demás documentos relevantes, para la ejecución al cierre del “Programa de Inclusión Financiera a través de Cooperativas de Ahorro y Crédito, con Enfoque de Género y Negocios Verdes, en el Marco de la Crisis Generada por el Covid - 19 y la Posterior Reactivación Económica”.\n\nInforme de cumplimiento tributario:\nInformar sobre el cumplimiento tributario en lo que corresponda a la CONAFIPS, relacionado con el Contrato de Préstamo, Contrato de Garantía, Manual Operativo del Programa (MOP), y demás documentos relevantes, para la ejecución al cierre del “Programa de Inclusión Financiera a través de Cooperativas de Ahorro y Crédito, con Enfoque de Género y Negocios Verdes, en el Marco de la Crisis Generada por el Covid - 19 y la Posterior Reactivación Económica”.\n\nResumen ejecutivo\nResumen y presentación ejecutiva sobre los resultados obtenidos en la auditoría externa. \n\nInforme de cierre de auditoria\nEmitir opinión y análisis detallado de cierre del cumplimiento del plan de auditorías en el uso de los recursos financiados por la Corporación Andina de Fomento CAF, en lo que corresponda a la CONAFIPS, con el Contrato de Préstamo, Contrato de Garantía, Manual Operativo del Programa (MOP), y demás documentos relevantes, para la ejecución al cierre del “Programa de Inclusión Financiera a través de Cooperativas de Ahorro y Crédito, con Enfoque de Género y Negocios Verdes, en el Marco de la Crisis Generada por el Covid - 19 y la Posterior Reactivación Económica”.\n",null,null,null,null,null,1,"CUMPLE"]
[null,null,null,null,null,null,null,null,null,null,null,null,null,"CUMPLE"]
[null,2,"Producto 2: Informes de auditoría del “Programa de microfinanciamientos a través de Cooperativas de Ahorro y Crédito (COAC)” - Corporación Andina de Fomento – CAF” del periodo 2023, que contenga los siguientes elementos",null,null,822110111,"Informe de auditor\nEmitir opinión independiente sobre:\na) Cumplimiento de las condiciones establecidas en el Contrato de Préstamo entre la Corporación Andina de Fomento CAF, y la Corporación Nacional de Finanzas Populares y Solidarias CONAFIPS.\nb) Cumplimiento de las condiciones establecidas en el Contrato de Garantía, Manual Operativo del Programa (MOP), y demás documentos relevantes para la ejecución del “Programa de microfinanciamientos a través de Cooperativas de Ahorro y Crédito (COAC)” del periodo 2023.\nIncluye:\nInformes del auditor externo quien será el comisario de la CONAFIPS para la presente contratación, en la correcta ejecución del Contrato de Préstamo, Contrato de Garantía, Manual Operativo del Programa (MOP), y demás documentos relevantes, para la ejecución del “Programa de microfinanciamientos a través de Cooperativas de Ahorro y Crédito (COAC)” del período 2023.\n\nCarta de gerencia sobre la evaluación de suficiencia y efectividad del control interno\nEmitir opinión sobre los controles internos implementados en la CONAFIPS, posibles diferencias y recomendaciones que pudieren aplicarse para evitar errores u omisiones en el cumplimiento de las condiciones establecidas en el Contrato de Préstamo, Contrato de Garantía, Manual Operativo del Programa (MOP), y demás documentos relevantes, para la ejecución del “Programa de microfinanciamientos a través de Cooperativas de Ahorro y Crédito (COAC)” del período 2023.\n\nInforme sobre control de lavado de activos\nEmitir opinión sobre los controles implementados para evitar actividades ilícitas, incluido el lavado de activos y financiamiento de delitos como el terrorismo en la ejecución del Contrato de Préstamo, Contrato de Garantía, Manual Operativo del Programa (MOP), y demás documentos relevantes, para la ejecución del “Programa de microfinanciamientos a través de Cooperativas de Ahorro y Crédito (COAC)” del período 2023\n\nInforme de cumplimiento tributario\nInformar sobre el cumplimiento tributario en lo que corresponda a la CONAFIPS, relacionado con el Contrato de Préstamo, Contrato de Garantía, Manual Operativo del Programa (MOP), y demás documentos relevantes, para la ejecución del “Programa de microfinanciamientos a través de Cooperativas de Ahorro y Crédito (COAC)” del periodo 2023\n\nResumen ejecutivo\nResumen y presentación ejecutiva sobre los resultados obtenidos de la auditoría externa. ",null,null,null,null,null,1,"CUMPLE"]
[null,null,null,null,null,null,null,null,null,null,null,null,null,"CUMPLE"]
[null,"PERSONAL TÉCNICO MÍNIMO"]
[null," Cantidad","Función y Cargo",null,null,"Nivel de estudios ","Titulación académica  Requerida",null,null,null,"Titulación Académica presentada",null,null,"CUMPLE / NO CUMPLE","OBSERVACIONES"]
[]
[]
[null,1,"Socio auditor",null,null,"Tercer Nivel","Título universitario de contador público, auditor, economista, ingeniero comercial o afines\t\nPlanificar, revisar y aprobar el trabajo efectuado por todo el equipo de auditores y especialistas, supervisar las acciones de discusión y presentación de los informes con los funcionarios de la institución, firmar los informes que se deban remitir como resultado del trabajo",null,null,null,null,null,null,"CUMPLE"]
[null,1,"Jefe de auditoría ",null,null,"Tercer Nivel","Título universitario de contador público, auditor, economista, ingeniero comercial o afines\t\nPlanificar y revisar el trabajo efectuado por todo el equipo de auditores, coordinar las acciones de discusión de los informes, participar en la fijación de los alcances de la auditoría, revisar los informes que realice el grupo de auditores, atender consultas técnicas que surjan en el desarrollo del trabajo, asegurarse que se cumplan los objetivos de la consultoría.",null,null,null,null,null,null,"CUMPLE"]
[null,1,"Auditor senior",null,null,"Tercer Nivel","Título universitario de contador público, auditor, economista, ingeniero comercial o afines.\t\nPlanificar la auditoría juntamente con el jefe de auditoría, ejecutar pruebas de auditoría en el campo y supervisar el trabajo del equipo de auditores, preparar los informes de auditoría, y proporcionar e informar al equipo de auditores sobre los principales hallazgos de auditoría.",null,null,null,null,null,null,"CUMPLE"]
[null,1,"Especialista tributario ",null,null,"Tercer Nivel","Título universitario de contador público, auditor, economista, ingeniero comercial o afines\t\nRevisar el cumplimiento de los principales aspectos tributarios y legales significativos.",null,null,null,null,null,null,"CUMPLE"]
[null,1,"Asistente de auditoria ",null,null,"Tercer Nivel","Título universitario de contador público, auditor, economista, ingeniero comercial o afines\t\nEjecutar las pruebas de auditoría bajo la dirección del auditor senior, esto implica efectuar las revisiones de los documentos que sustentan las diferentes transacciones reflejadas en los estados financieros de la institución.",null,null,null,null,null,null,"CUMPLE"]
[null,1,"Asistente de auditoria ",null,null,"Tercer Nivel","Título universitario de contador público, auditor, economista, ingeniero comercial o afines\t\nEjecutar las pruebas de auditoría bajo la dirección del auditor senior, esto implica efectuar las revisiones de los documentos que sustentan las diferentes transacciones reflejadas en los estados financieros de la institución.",null,null,null,null,null,null,"CUMPLE"]
[null,"EXPERIENCIA DEL PERSONAL TÉCNICO MÍNIMO"]
[null,null,null,null,null,"REQUERIDO",null,null,null,null,"PRESENTADO",null,null,"CUMPLE / NO CUMPLE","OBSERVACIONES"]
[null,1,"Socio auditor",null,null,"Experiencia adquirida: En los últimos 10 años, haber realizado Auditoría Externa a instituciones financieras públicas o privadas y/o a las Organizaciones del Sistema Financiero Popular y Solidario (OSFPS)\nNúmero de proyectos similares:\t1 proyecto que haya participado como socio auditor o similar\nMonto contractual mínimo: No requerido \n\nMedios de verificación: Actas entrega recepción, contratos (en caso de que el proyecto esté en ejecución), facturas o certificados laborales (Si el certificado a presentar es de la misma empresa participante, deberá adjuntar los respaldos respectivos que acrediten la experiencia descrita en los certificados) \n\nSe aceptarán como válidos los certificados de experiencia en copias simples con las siguientes características: 1. Hoja membretada, 2. Nombre, cargo y firma de la persona otorgante del certificado, 3. Descripción de las actividades conforme a la experiencia solicitada.  ",null,null,1,null,null,null,null,"CUMPLE"]
[null,1,"Jefe de auditoría ",null,null,"En los últimos 10 años, haber realizado Auditoría Externa a fondos entregados por organismos internacionales / multilaterales.\n1 proyecto que haya participado como jefe de auditoría, similar o superior\nNo requerido\nActas entrega recepción, contratos (en caso de que el proyecto esté en ejecución), facturas o certificados laborales (Si el certificado a presentar es de la misma empresa participante, deberá adjuntar los respaldos respectivos que acrediten la experiencia descrita en los certificados) \n\nSe aceptarán como válidos los certificados de experiencia en copias simples con las siguientes características: 1. Hoja membretada, 2. Nombre, cargo y firma de la persona otorgante del certificado, 3. Descripción de las actividades conforme a la experiencia solicitada.  ",null,null,1,null,null,null,null,"CUMPLE"]
[null,1,"Auditor senior",null,null,"En los últimos 10 años, haber realizado auditorías a instituciones financieras públicas o privadas.\n1 proyecto como Auditor Senior, similar o superior\nNo requerido\nActas entrega recepción, contratos (en caso de que el proyecto esté en ejecución), facturas o certificados laborales (Si el certificado a presentar es de la misma empresa participante, deberá adjuntar los respaldos respectivos que acrediten la experiencia descrita en los certificados) \n\nSe aceptarán como válidos los certificados de experiencia en copias simples con las siguientes características: 1. Hoja membretada, 2. Nombre, cargo y firma de la persona otorgante del certificado, 3. Descripción de las actividades conforme a la experiencia solicitada.  ",null,null,1]
[null,1,"Especialista tributario ",null,null,"En los últimos 10 años, haber realizado actividades relacionadas a tributación en instituciones públicas o privadas.\n1 proyecto como Especialista Tributario\nNo requerido\nActas entrega recepción, contratos (en caso de que el proyecto esté en ejecución), facturas o certificados laborales (Si el certificado a presentar es de la misma empresa participante, deberá adjuntar los respaldos respectivos que acrediten la experiencia descrita en los certificados) \n\nSe aceptarán como válidos los certificados de experiencia en copias simples con las siguientes características: 1. Hoja membretada, 2. Nombre, cargo y firma de la persona otorgante del certificado, 3. Descripción de las actividades conforme a la experiencia solicitada.  ",null,null,1,null,null,null,null,"NO CUMPLE"]
[null,1,"Asistente de auditoria ",null,null,"En los últimos 5 años, haber realizado asistencia para la realización de auditorías a instituciones financieras públicas o privadas.\n1 proyecto como Asistente de Auditoria, similar o superior\nNo requerido\nActas entrega recepción, contratos (en caso de que el proyecto esté en ejecución), facturas o certificados laborales (Si el certificado a presentar es de la misma empresa participante, deberá adjuntar los respaldos respectivos que acrediten la experiencia descrita en los certificados) \n\nSe aceptarán como válidos los certificados de experiencia en copias simples con las siguientes características: 1. Hoja membretada, 2. Nombre, cargo y firma de la persona otorgante del certificado, 3. Descripción de las actividades conforme a la experiencia solicitada.  ",null,null,1,null,null,null,null,"NO CUMPLE"]
[null,1,"Asistente de auditoria ",null,null,"En los últimos 5 años, haber realizado asistencia para la realización de auditorías a instituciones financieras públicas o privadas.\n1 proyecto como Asistente de Auditoria, similar o superior\nNo requerido\nActas entrega recepción, contratos (en caso de que el proyecto esté en ejecución), facturas o certificados laborales (Si el certificado a presentar es de la misma empresa participante, deberá adjuntar los respaldos respectivos que acrediten la experiencia descrita en los certificados) \n\nSe aceptarán como válidos los certificados de experiencia en copias simples con las siguientes características: 1. Hoja membretada, 2. Nombre, cargo y firma de la persona otorgante del certificado, 3. Descripción de las actividades conforme a la experiencia solicitada.  ",null,null,1,null,null,null,null,"NO CUMPLE"]
[null,"Notas: \na)\tPara acreditar la formación académica de todo el personal técnico se deberá presentar el Registro del Título en el Senescyt y la hoja de vida debidamente suscrita.\nb)\tPara acreditar la experiencia de todo el personal técnico se deberá presentar: Actas entrega recepción, contratos (en caso de que el proyecto esté en ejecución), facturas o certificados laborales (Si el certificado a presentar es de la misma empresa participante, deberá adjuntar los respaldos respectivos que acrediten la experiencia descrita en los certificados) \nc)\tSe aceptarán como válidos los certificados de experiencia en copias simples con las siguientes características: \n1.\tHoja membretada\n2.\tNombre, cargo y firma de la persona otorgante del certificado.\t\t\n3.\tDescripción de las actividades conforme a la experiencia solicitada.  \t"]
[null,"CRONOGRAMA DE EJECUCIÓN DEL PROYECTO - PRODUCTOS FINALES",null,null,null,null,null,null,null,null,null,null,null,"CUMPLE / NO CUMPLE","OBSERVACIONES"]
[]
[null,"EQUIPO DE TRABAJO",null,null,null,null,null,null,null,null,null,null,null,"CUMPLE / NO CUMPLE","OBSERVACIONES"]
[null,"Cantidad","Equipo y /o instrumento",null,null,null,"Características "]
[null,1,"software especializado",null,null,null,"La firma auditora deberá acreditar la dotación de equipo de trabajo mediante facturas, contratos de compra o renta y/o carta de compromiso suscrita por el Representante legal. ",null,null,null,null,null,null,"CUMPLE"]
[null,1,"equipos de cómputo"]
[null,1,"Impresoras"]
[null,"RECURSOS",null,null,null,null,null,null,null,null,null,null,null,"CUMPLE / NO CUMPLE","OBSERVACIONES"]
[null,"Cantidad","Insumos",null,null,null,"Características "]
[null,1,"Suministros y materiales",null,null,null,"La firma auditora deberá acreditar la dotación de recursos mediante facturas, contratos de compra o renta y/o carta de compromiso suscrita por el Representante legal. ",null,null,null,null,null,null,"CUMPLE"]
[]
[]
[null,"EXPERIENCIA GENERAL Y EXPERIENCIA ESPECÍFICA SOLICITADA"]
[null,null,"REQUERIDO",null,null,null,null,null,null,null,"PRESENTADO"]
[null,"N°","Tipo",null,"Descripción",null,"Temporalidad (dentro de los últimos)","N° Proyectos","Monto mínimo por proyecto / contrato","N° Proyectos","Detalle de proyecto","Monto",null,"CUMPLE / NO CUMPLE","OBSERVACIONES"]
[null,1,"General",null,"Experiencia en auditoría externa a instituciones financieras públicas o privadas.\nMedios de verificación: Acta entrega recepción definitiva, o contrato y factura, o cualquier otro documento que se pueda verificar el objeto, monto de contrato, plazos de ejecución.",null,null,null,null,"En los últimos 15 años","1 proyecto","10% del total de la propuesta económica",null,"CUMPLE"]
[null,2,"Específica",null,"Experiencia en auditoría externa a fondos entregados por organismos internacionales / multilaterales.\nMedios de verificación: Acta entrega recepción definitiva, o contrato y factura, o cualquier otro documento que se pueda verificar el objeto, monto de contrato, plazos de ejecución.",null,null,null,null,"En los últimos 15 años","1 proyecto","5% del total de la propuesta económica",null,"CUMPLE"]
[null,"COMENTARIOS FINALES"]
[null,"CONCLUSION"]
[null,"UNIDAD REQUIRENTE",null,null,null,"UNIDAD REQUIRENTE",null,null,null,"RESPONSABLE DE LA UNIDAD REQUIRENTE"]
[]
[null,"Elaborado Por:",null,null,null,"Revisado Por:",null,null,null,"Aprobado Por:"]
[null,"Edith Pazmiño",null,null,null,"Jenny Jaramillo Calle",null,null,null,"Tatiana Patricia Will Espinosa"]
[null,"Analista de Planificación y Procesos",null,null,null,"Analista de Planificación y Procesos",null,null,null,"Gerente de Planificación y Procesos"]

{"sheet":"INDICE","index":1,"n_rows":12,"n_cols":3,"rows_kept":12,"cut":false,"hidden":false,"merged":[]}
[null,null,"INSTRUCCIONES:"]
[]
[]
[null,"1. DATOS GENERALES DEL PROVEEDOR"]
[null,"2. CRONOGRAMA"]
[null,"3. OFERTA ECONOMICA COSTOS"]
[null,"4. OFERTA ECONOMICA PRODUCTOS Y PRECIOS"]
[null,"5. PLAN DE TRABAJO"]
[null,"6. EXPERIENCIA OFERENTE"]
[null,"7. PERSONAL TECNICO"]
[null,"8. COMPROMISO PERSONAL TECNICO"]
[null,"9. EQUIPOS DE TRABAJO"]

{"sheet":"1.DATOS GENERALES DEL PROVEEDOR","index":2,"n_rows":40,"n_cols":17,"rows_kept":40,"cut":false,"hidden":false,"merged":[[9,1,9,2],[7,12,7,13],[8,12,8,13],[9,3,9,14],[6,12,6,13],[10,1,10,14],[11,12,11,14],[12,7,12,14],[11,7,11,10],[12,1,12,2],[11,1,11,2],[11,5,11,6],[11,3,11,4],[12,3,12,4],[27,9,27,10],[28,9,28,10],[13,5,13,6],[12,5,12,6],[19,1,19,5],[19,6,19,8],[19,9,19,10],[21,6,21,8],[21,9,21,10],[22,1,22,5],[22,6,22,8],[22,9,22,10],[24,1,24,5],[24,6,24,8],[24,9,24,10],[26,9,26,10],[19,11,19,14],[20,1,20,5],[20,6,20,8],[20,9,20,10],[20,11,20,14],[13,1,13,2],[14,1,14,2],[14,3,14,4],[14,5,14,6],[14,7,14,10],[13,7,13,14],[14,12,14,14],[13,3,13,4],[22,11,22,14],[21,1,21,5],[23,1,23,5],[23,6,23,8],[23,9,23,10],[23,11,23,14],[21,11,21,14],[24,11,24,14],[26,11,26,14],[27,11,27,14],[28,11,28,14],[16,1,16,2],[17,1,17,2],[18,1,18,2],[16,3,16,4],[17,3,17,4],[25,1,25,14],[26,1,26,5],[27,1,27,5],[28,1,28,5],[26,6,26,8],[27,6,27,8],[28,6,28,8],[15,1,15,13],[18,3,18,4],[16,5,16,6],[17,5,17,6],[18,5,18,6],[16,7,16,10],[17,7,17,10],[18,7,18,10],[16,12,16,13],[17,12,17,13],[18,12,18,13],[6,1,8,2],[6,3,8,6],[6,7,8,7],[2,1,4,2],[2,3,2,13],[3,3,3,13],[4,3,4,13],[5,1,5,2],[5,3,5,6],[5,12,5,14],[5,9,5,11],[6,8,8,8],[6,9,8,11]]}
[]
[]
[null,"INSERTE EL LOGO DE SU EMPRESA CONSULTORA",null,"INGRESE EL NOMBRE O DENOMINACION DE LA FIRMA CONSULTORA"]
[null,null,null,"FICHA DE DATOS GENERALES"]
[null,null,null," PARA LOS PROCESOS DE CONTRATACIÓN POR CONSULTORÍA - CONTRATACIÓN DIRECTA",null,null,null,null,null,null,null,null,null,null,null,"CUMPLIMIENTO","OBSERVACIONES"]
[null,"ENTIDAD REQUIRENTE",null,"Corporación Nacional de Finanzas Populares y Solidarias",null,null,null,"FECHA",null,"TIPO DE CONTRATACION",null,null,"Consultoría Directa",null,null,null,"."]
[null,"PROVEEDOR",null,null,null,null,null,"RUC",null,"HABILITACIÓN RUP",null,null,null,null,"MEDIO DE VERIFICACION\nIncorpore a los anexos el certificado actualizado del RUC y otros documentos habilitantes"]
[]
[]
[null,"OBJETO DE LA CONTRATACIÓN",null,"“Contratación de una firma consultora, para la auditoria al cumplimiento de las condiciones administrativas – financieras conforme las obligaciones establecidas en el acuerdo entre el Gobierno de la República Italiana y el Gobierno de la República del Ecuador, para financiar la ejecución del “Programa de Apoyo a las Finanzas Populares en las Provincias del Carchi, Sucumbíos, Loja y El Oro”, del segundo y tercer desembolso y cierre del programa.”"]
[null,"DOMICILIO DEL OFERENTE:",null,null,null,null,null,null,null,null,null,null,null,null,null,"CUMPLIMIENTO","OBSERVACIONES"]
[null,"Provincia:",null,null,null,"Calle principal:",null,null,null,null,null,"Número:"]
[null,"Cantón:",null,null,null,"Calle secundaria:"]
[null,"Teléfono:",null,null,null,"Correo electrónico:"]
[null,"TIPO DE PEERSONA JURIDICA",null,null,null,"Representante Legal:",null,null,null,null,null,"CI:"]
[null,"CALIFICACION O ACREDITACION POR EL ORGANO DE CONTROL",null,null,null,null,null,null,null,null,null,null,null,null,"MEDIO DE VERIFICACION\nIncorpore a los anexos el documento  de la Resolución","CUMPLIMIENTO","OBSERVACIONES"]
[null,"SEPS",null,null,null,"RESOLUCIÓN No.",null,null,null,null,null,"Fecha",null,null,"Obligatoria\nResolucion SEPS-IGI-ISNF-DNSSNF-IGJ-2019-0442, Art. 4."]
[null,"CONTRALORIA GENERAL DEL ESTADO",null,null,null,"RESOLUCIÓN No.",null,null,null,null,null,"Fecha",null,null,"Opcional"]
[null,"SUPERINTENDENDCIA DE BANCOS",null,null,null,"RESOLUCIÓN No.",null,null,null,null,null,"Fecha",null,null,"Opcional"]
[null,"Nombres completos del socio, accionista o partícipe mayoritario de la persona",null,null,null,null,"Número de cédula de",null,null,"Porcentaje de",null,"Domicilio Fiscal",null,null,null,"CUMPLIMIENTO","OBSERVACIONES"]
[]
[]
[]
[]
[]
[null,"SITUACION FINANCIERA: Incorpore a los anexos la Declaración de Impuesto a la Renta",null,null,null,null,null,null,null,null,null,null,null,null,null,"CUMPLIMIENTO","OBSERVACIONES"]
[null,"Índice",null,null,null,null,"Indicador solicitado",null,null,"Indicador declarado por el proveedor",null,"Observaciones (Adjuntar documentos de respaldo)"]
[null,"Solvencia*",null,null,null,null,"Índice de solvencia",null,null,">=1",null,"Activo Corriente / Pasivo Corriente"]
[null,"Endeudamiento*",null,null,null,null,"Índice de endeudamiento ",null,null,"< 1,5",null,"Pasivo Total / Patrimonio"]
[]
[]
[null,"Lugar Y Fecha"]
[]
[]
[]
[]
[]
[]
[null,"F)"]
[null,"Nombre del Representante Legal"]

{"sheet":"2. CRONOGRAMA","index":3,"n_rows":39,"n_cols":5,"rows_kept":39,"cut":false,"hidden":false,"merged":[[0,1,0,11],[2,1,2,4],[1,1,1,4],[38,1,38,4],[31,3,36,4]]}
[null,"INGRESE EL NOMBRE O DENOMINACION DE LA FIRMA CONSULTORA"]
[null,"CRONOGRAMA DE EJECUCION DE LA CONSULTORÍA"]
[null,"El plazo establecido para la ejecución del contrato es de 360 días calendarios, contados desde el siguiente día de la firma del contrato, y se desarrollará de conformidad al plan y cronograma de trabajo aprobado por el Administrador de Contrato.\n\nSi se concluye con la ejecución de todos los recursos del programa el informe final podrá ser entregado antes de la terminación del contrato.\n\nHasta los 10 días calendario de suscrito el contrato, la firma auditora entregará al administrador de contrato el plan y cronograma de trabajo para su aprobación.\n\t"]
[null,"No.","ACTIVIDAD","EQUIPO TECNICO ASIGNADO","TIEMPO ESTIMADO EN DIAS"]
[null,1]
[null,{"$f":"+B5+1","v":2}]
[null,{"$f":"+B6+1","v":3}]
[null,4]
[null,5]
[null,6]
[null,7]
[null,8]
[null,9]
[null,10]
[null,11]
[null,12]
[null,13]
[null,14]
[null,15]
[null,16]
[null,17]
[null,18]
[null,19]
[null,20]
[null,21]
[null,22]
[null,23]
[null,24]
[]
[null,"Lugar Y Fecha",null,"CUMPLIMIENTO"]
[]
[null,null,null,"OBSERVACIONES:"]
[]
[]
[]
[null,"F)"]
[null,"Nombre del Representante Legal"]
[]
[null,"Nota: El cronograma deberá contemplar las actividades para la ejecución y entrega de los dos productos objeto de esta consultoría"]

{"sheet":"3. OF. ECONOMICA COSTOS","index":4,"n_rows":30,"n_cols":4,"rows_kept":30,"cut":false,"hidden":false,"merged":[[18,1,18,2],[1,1,2,3],[3,3,4,3],[29,0,29,3],[0,1,0,3],[3,1,4,2],[5,1,5,2],[14,1,14,2],[17,1,17,2],[23,3,28,4]]}
[null,"INGRESE EL NOMBRE O DENOMINACION DE LA FIRMA CONSULTORA"]
[null,"OFERTA ECONOMICA COSTOS DIRECTOS, INDIRECTOS Y GASTOS"]
[]
[null,"DESCRIPCIÓN",null,"Valor USD"]
[]
[null,"1. COSTOS DIRECTOS",null,{"$f":"SUM(D7:D14)","v":0}]
[null,null,"Remuneraciones"]
[null,null,"Beneficios o cargas sociales del equipo de trabajo"]
[null,null,"Viajes y viáticos"]
[null,null,"Subcontratos y servicios varios"]
[null,null,"Arrendamientos y alquileres vehículos"]
[null,null,"Arrendamientos y alquileres de equipos e instalaciones,"]
[null,null,"Suministros y materiales, reproducciones, ediciones y publicaciones"]
[null,null,"Otros (detallar en caso de colocar)"]
[null,"2. COSTOS INDIRECTOS O GASTOS GENERALES",null,{"$f":"SUM(D16:D17)","v":0}]
[null,null,"Sueldos, salarios y beneficios o cargas sociales del personal directivo y administrativo que desarrolle su actividad de manera permanente en la consultora"]
[null,null,"Arrendamientos y alquileres o depreciación y mantenimiento y operación de instalaciones y equipos, utilizados en forma permanente para el desarrollo de sus actividades"]
[null,"3. HONORARIOS O UTILIDAD EMPRESARIAL (Solo aplicable para firmas consultoras)"]
[null,"TOTAL",null,{"$f":"D6+D15+D18","v":0}]
[]
[null,"Lugar Y Fecha"]
[null,null,null,"CUMPLIMIENTO"]
[]
[null,null,null,"OBSERVACIONES:"]
[]
[]
[null,"F)"]
[null,"Nombre del Representante Legal"]
[]
["Nota: Considerar para la oferta económica el presente formato que es el solicitado por el ente de control"]

{"sheet":"4. OF. ECONOMICA PRECIOS","index":5,"n_rows":55,"n_cols":10,"rows_kept":55,"cut":false,"hidden":false,"merged":[[21,8,38,8],[21,9,38,9],[21,1,38,1],[21,2,38,2],[21,3,38,3],[21,5,38,5],[21,6,38,6],[21,7,38,7],[3,7,20,7],[3,8,20,8],[3,9,20,9],[42,1,44,1],[0,1,0,7],[1,1,1,7],[41,2,41,5],[42,3,42,7],[43,3,43,5],[44,3,44,5],[40,1,40,6],[3,1,20,1],[3,2,20,2],[3,3,20,3],[3,5,20,5],[3,6,20,6]]}
[null,"INGRESE EL NOMBRE O DENOMINACION DE LA FIRMA CONSULTORA"]
[null,"OFERTA ECONOMICA PRODUCTOS Y PRECIOS"]
[null,"Ítem","Descripción","CPC","Términos de referencia requeridos","Cantidad","P. Unitario","P. Total","CUMPLIMIENTO","OBSERVACIONES"]
[null,1,"Producto 1: Informes de auditoría de Segundo Desembolso Cumplimiento de las condiciones establecidas en el Acuerdo entre el Gobierno de la República Italiana y el Gobierno de la República del Ecuador del crédito Nro. F.ROT/AID 13/004/00, plan operativo; y; convenio subsidiario y de restitución de valores, de los fondos entregados por la República Italiana, para financiar la ejecución del proyecto “Programa de Apoyo a las Finanzas Populares en las provincias del Carchi, Sucumbíos, El Oro y Loja\", que contiene:",822110111,"Incluye:",1]
[null,null,null,null,"Informes de auditor correspondiente al segundo desembolso"]
[null,null,null,null,"Emitir opinión independiente sobre:\na)\tCumplimiento de las condiciones establecidas en el Acuerdo entre el Gobierno de la República Italiana y el Gobierno de la República del Ecuador.\nb)\tCumplimiento de las condiciones establecidas en el crédito Nro. F.ROT/AID 13/004/00, en lo que le corresponda a la CONAFIPS.\nc)\tCumplimiento de las condiciones financieras expresadas en el Plan Operativo, de los fondos entregados por la República Italiana, en lo que correspondas a la CONAFIPS.\nd)\tCumplimiento del Convenio Subsidiario y de restitución de valores"]
[null,null,null,null,"Carta de gerencia sobre la evaluación de suficiencia y efectividad del control interno correspondiente al segundo desembolso"]
[null,null,null,null,"Emitir opinión sobre los controles internos implementados en la CONAFIPS, posibles diferencias y recomendaciones que pudieren aplicarse para evitar errores u omisiones en el cumplimiento de las condiciones establecidas en el acuerdo entre el gobierno de la República Italiana y el Gobierno de la República del Ecuador, el crédito Nro. F.ROT/AID 13/004/00, plan operativo; y; convenio subsidiario y de restitución de valores."]
[]
[null,null,null,null,"Informes sobre control de lavado de activos correspondiente al segundo desembolso"]
[null,null,null,null,"Emitir opinión sobre los controles implementados para evitar actividades ilícitas, incluido el lavado de activos y financiamiento de delitos como el terrorismo en la ejecución del acuerdo entre el Gobierno de la República Italiana y el Gobierno de la República del Ecuador, el crédito Nro. F.ROT/AID 13/004/00, plan operativo; y; convenio subsidiario y de restitución de valores."]
[]
[null,null,null,null,"Informes de comisario correspondiente al segundo desembolso"]
[null,null,null,null,"Informes del auditor externo quien será el comisario de la CONAFIPS para la presente contratación, en la correcta ejecución del acuerdo entre el Gobierno de la República Italiana y el Gobierno de la República del Ecuador, el crédito Nro. F.ROT/AID 13/004/00, plan operativo; y; convenio subsidiario y de restitución de valores."]
[]
[null,null,null,null,"Informes de cumplimiento tributario correspondiente al segundo desembolso "]
[null,null,null,null,"Informar sobre el cumplimiento tributario en lo que corresponda a la CONAFIPS, relacionado con el acuerdo entre el Gobierno de la República de Italiana y el Gobierno de la República del Ecuador, el crédito Nro. F.ROT/AID 13/004/00, plan operativo; y; convenio subsidiario y de restitución de valores."]
[]
[null,null,null,null,"Resumen ejecutivo"]
[null,null,null,null,"Resumen y presentación ejecutiva"]
[]
[null,2,"Producto 2: Informes de auditoría de Tercer Desembolso Cumplimiento de las condiciones establecidas en el Acuerdo entre el Gobierno de la República Italiana y el Gobierno de la República del Ecuador del crédito Nro. F.ROT/AID 13/004/00, plan operativo; y; convenio subsidiario y de restitución de valores, de los fondos entregados por la República Italiana, para financiar la ejecución del proyecto “Programa de Apoyo a las Finanzas Populares en las provincias del Carchi, Sucumbíos, El Oro y Loja\", que contiene:",822110111,"Incluye:",1]
[]
[null,null,null,null,"Informes de auditor correspondiente al tercer desembolso"]
[null,null,null,null,"Emitir opinión independiente sobre:\na)\tCumplimiento de las condiciones establecidas en el Acuerdo entre el Gobierno de la República Italiana y el Gobierno de la República del Ecuador.\nb)\tCumplimiento de las condiciones establecidas en el crédito Nro. F.ROT/AID 13/004/00, en lo que le corresponda a la CONAFIPS.\nc)\tCumplimiento de las condiciones financieras expresadas en el Plan Operativo, de los fondos entregados por la República Italiana, en lo que correspondas a la CONAFIPS.\nCumplimiento del Convenio Subsidiario y de restitución de valores"]
[]
[null,null,null,null,"Carta de gerencia sobre la evaluación de suficiencia y efectividad del control interno correspondiente al tercer desembolso"]
[null,null,null,null,"Emitir opinión sobre los controles internos implementados en la CONAFIPS, posibles diferencias y recomendaciones que pudieren aplicarse para evitar errores u omisiones en el cumplimiento de las condiciones establecidas en el acuerdo entre el gobierno de la República Italiana y el Gobierno de la República del Ecuador, el crédito Nro. F.ROT/AID 13/004/00, plan operativo; y; convenio subsidiario y de restitución de valores."]
[]
[null,null,null,null,"Informes sobre control de lavado de activos correspondiente al tercer desembolso"]
[null,null,null,null,"Emitir opinión sobre los controles implementados para evitar actividades ilícitas, incluido el lavado de activos y financiamiento de delitos como el terrorismo en la ejecución del acuerdo entre el Gobierno de la República Italiana y el Gobierno de la República del Ecuador, el crédito Nro. F.ROT/AID 13/004/00, plan operativo; y; convenio subsidiario y de restitución de valores."]
[]
[null,null,null,null,"Informes de comisario correspondiente al tercer desembolso"]
[null,null,null,null,"Informes del auditor externo quien será el comisario de la CONAFIPS para la presente contratación, en la correcta ejecución del acuerdo entre el Gobierno de la República Italiana y el Gobierno de la República del Ecuador, el crédito Nro. F.ROT/AID 13/004/00, plan operativo; y; convenio subsidiario y de restitución de valores."]
[]
[null,null,null,null,"Informes de cumplimiento tributario correspondiente al tercer desembolso"]
[null,null,null,null,"Informar sobre el cumplimiento tributario en lo que corresponda a la CONAFIPS, relacionado con el acuerdo entre el Gobierno de la República Italiana y el Gobierno de la República del Ecuador, el crédito Nro. F.ROT/AID 13/004/00, plan operativo; y; convenio subsidiario y de restitución de valores."]
[null,null,null,null,"Resumen ejecutivo correspondiente al tercer desembolso "]
[null,null,null,null,"Resumen y presentación ejecutiva"]
[null,3,"Producto 3: Informe de cierre del programa ",822110111,"Informe de cierre del programa al finalizar las actividades relacionadas a la segunda fase de asistencia técnica al Cumplimiento de las condiciones establecidas en el Acuerdo entre el Gobierno de la República Italiana y el Gobierno de la República del Ecuador del crédito Nro. F.ROT/AID 13/004/00, plan operativo; y; convenio subsidiario y de restitución de valores, de los fondos entregados por la República Italiana, para financiar la ejecución del proyecto “Programa de Apoyo a las Finanzas Populares en las provincias del Carchi, Sucumbíos, El Oro y Loja\"",1]
[null,"TOTAL",null,null,null,null,null,{"$f":"SUM(H4:H40)","v":0}]
[null,"PLAZO DE EJECUCIÓN","El plazo establecido para la ejecución del contrato es de 360 días calendarios, contados desde el siguiente día de la firma del contrato, y se desarrollará de conformidad al plan y cronograma de trabajo aprobado por el Administrador de Contrato.\n\nSi se concluye con la ejecución de todos los recursos del programa el informe final podrá ser entregado antes de la terminación del contrato.\n\nHasta los 10 días calendario de suscrito el contrato, la firma auditora entregará al administrador de contrato el plan y cronograma de trabajo para su aprobación.\n\nLa consultoría se ejecutará en las oficinas de la CONAFIPS, ubicadas en la ciudad de Quito, Av. Amazonas S/N y José Villalengua, Plataforma Gubernamental de Gestión Financiera, Bloque morado y azul, 4to piso.",null,null,null,"VALIDEZ DE LA  PROFORMA"]
[null,"PAGO","Anticipo","No se entregará anticipo"]
[null,null,"Forma","El 100% del valor del contrato se cancelará contra entrega de los productos objeto de esta consultoría.",null,null,"Contempla entregas parciales","SI"]
[null,null,"Condiciones"," previa entrega de los informes finales, documentos y anexos determinados en estos términos de referencia por parte del consultor, suscripción del acta entrega recepción total y definitiva; y; la factura correspondiente.",null,null,"Número de entregas",3]
[]
[]
[null,"Lugar y Fecha"]
[]
[]
[]
[]
[]
[null,"F)"]
[null,"Nombre del Representante Legal"]

{"sheet":"5. PLAN DE TRABAJO","index":6,"n_rows":24,"n_cols":17,"rows_kept":24,"cut":false,"hidden":false,"merged":[[2,1,2,14],[3,1,3,14],[4,3,4,14],[5,3,5,14],[6,3,6,14],[4,1,5,1],[23,1,23,12],[9,1,9,2],[6,1,6,2],[7,1,7,2],[8,1,8,2],[7,3,7,14],[8,3,8,14],[9,3,9,14]]}
[5]
[]
[null,"INGRESE EL NOMBRE O DENOMINACION DE LA FIRMA CONSULTORA"]
[null,"PLAN DE TRABAJO, ENFOQUE, ALCANCE Y METODOLOGÍA",null,null,null,null,null,null,null,null,null,null,null,null,null,"CUMPLIMIENTO","OBSERVACIONES"]
[null,"OBJETIVOS ","General","Contratar una firma consultora, para que realice la auditoría al cumplimiento de las condiciones administrativas - financieras, en lo que corresponde a la CONAFIPS; acorde a los recursos, derechos y obligaciones que fueron transferidos conforme las especificaciones establecidas en el Acuerdo Financiero entre el Gobierno de la República Italiana y el Gobierno de la República del Ecuador, el crédito Nro. F.ROT/AID 13/004/00 , plan operativo; y; convenio subsidiario y de restitución de valores, de los fondos entregados por la República Italiana, para financiar la ejecución del \"Programa de apoyo a las Finanzas Populares en las provincias del Carchi, Sucumbíos, Loja y El Oro\", del segundo, tercer desembolso y cierre del programa "]
[null,null,"Específicos","1. Comunicar los resultados de la auditoría a las áreas operativas de los procesos agregadores de valor y demás áreas administrativas relacionadas y a la Dirección General, con el fin de que manejen dicha información de acuerdo a sus responsabilidades establecidas en el documento del \"Programa de apoyo a las Finanzas Populares en las provincias del Carchi, Sucumbíos, Loja y El Oro\", para las operaciones otorgadas con financiamiento de la República Italiana.\n2. Auditar el uso de los recursos provenientes del Acuerdo Financiero entre el Gobierno de la República de Italia y el Gobierno de la República del Ecuador correspondientes al segundo y tercer desembolso\n3. Presentar el informe de cierre del \"Programa de apoyo a las Finanzas Populares en las provincias del Carchi, Sucumbíos, Loja y El Oro\", para las operaciones otorgadas con financiamiento de la República Italiana."]
[null,"ALCANCE ",null,"La empresa seleccionada para que realice la auditoría deberá realizar las siguientes acciones:\n\n- Validar el cumplimiento de las condiciones establecidas en el Acuerdo entre el Gobierno de la República Italiana y el Gobierno de la República del Ecuador, el crédito Nro. F.ROT/AID 13/004/00, plan operativo; y; convenio subsidiario y de restitución de valores.\n\n- Emitir opinión independiente sobre la veracidad o exactitud de los fondos entregados a la CONAFIPS, y opinar si los recursos fueron usados conforme el Acuerdo entre el Gobierno de la República Italiana y el Gobierno de la República del Ecuador, el crédito Nro. F.ROT/AID 13/004/00, plan operativo; y; convenio subsidiario y de restitución de valores.\n\n- Dictaminar sobre la evaluación de suficiencia y efectividad de los sistemas de control interno en los procesos relativos al proyecto;\n\n- Opinar sobre las actividades financieras y sus procedimientos, se ajustan a la legislación aplicable;\n\n- Opinar sobre el cumplimiento de los controles para evitar actividades ilícitas, incluido el lavado de activos y el financiamiento de delitos como el terrorismo y otros delitos;\n\n- Elaborar el Informe de cierre del proyecto al finalizar las actividades relacionadas a la segunda fase de asistencia técnica."]
[null,"METODOLOGÍA DE TRABAJO Y CRONOGRAMA DE EJECUCIÓN",null,"La auditora externa deberá realizar su trabajo aplicando las normas que tengan relación para la emisión de los informes requeridos, de acuerdo con el procedimiento que corresponda y el Acuerdo entre el Gobierno de la República Italiana y el Gobierno de la República del Ecuador, el crédito Nro. 13/004/00, Plan Operativo; Convenio Subsidiario y de Restitución de Valores, de los fondos entregados por el Gobierno de la República Italiana, para financiar la ejecución del \"Programa de apoyo a las Finanzas Populares en las provincias del Carchi, Sucumbíos, Loja y El Oro\",  para ello, coordinará con el Administrador del Contrato las acciones necesarias, en las que participen el personal de la Corporación Nacional de Finanzas Populares y Solidarias (CONAFIPS) y Jefe de Auditoría designado por la firma auditora, responsable de esta auditoría.\n\nLa empresa auditora externa, en el ámbito del Acuerdo entre el Gobierno de la República Italiana y el Gobierno de la República del Ecuador, el crédito Nro. F.ROT/AID 13/004/00, plan operativo; y; convenio subsidiario y de restitución de valores, de los fondos entregados por la República Italiana, para financiar la ejecución del proyecto “Programa de Apoyo a las Finanzas Populares en las provincias del Carchi, Sucumbíos, El Oro y Loja\", hará las veces de comisario de la entidad financiera, conforme los términos establecidos en la Ley de Compañías, en lo que sea aplicable tendrá las funciones que se determinan en el Código Orgánico Monetario y Financiero, en las leyes tributarias y en las disposiciones de la Junta de Política y Regulación Monetaria Financiera.\n\n5.1. EJECUCIÓN DE LA AUDITORÍA\n\nLa CONAFIPS prestará las facilidades al Jefe de Auditoría y su equipo de trabajo para que pueda acceder a los archivos institucionales e información financiera relevante que necesitare. Es importante señalar que la información entregada a la auditoría externa tendrá el carácter de confidencial; por lo tanto, este no tendrá derecho alguno sobre la información, ni tampoco derecho de utilizarla, excepto para el objeto de la presente contratación. La firma auditora externa se compromete a guardar absoluta reserva de la información que se genere en la ejecución del contrato.\n\nTodos los informes deberán contener sus correspondientes documentos de trabajo y respaldo, que determinen o definan el criterio del auditor externo al momento de emitir su opinión sobre el objeto de contratación y sus productos. \n\n5.2. FINALIZACIÓN DEL PROCESO DE AUDITORÍA\n\nConcluida la auditoría, la firma auditora presentará al Administrador del Contrato los informes constantes en el numeral 7, referente a los productos esperados, conforme se establece en estos términos de referencia, en formato digital. "]
[null,"c) Organigrama funcional del servicio propuesto",null,"Incorpore el organigrama funcional que su entidad o firma consultora ha definido para la ejecución de la auditoria, considere el equipo técnico asignado para el mismo"]
[null,"f) Cronograma de ejecución de la consultoría",null,"Incorpore en cronograma que utilizará para la realización de la consultoría"]
[]
[null,"Lugar Y Fecha"]
[]
[]
[]
[]
[]
[]
[]
[null,"F)"]
[null,"Nombre del Representante Legal"]
[]
[]
[null,"Nota importante: A la metodología de trabajo, puede incorporar la información que crea pertinente conforme a su experticia y experiencia profesional. "]

{"sheet":"6. EXPERIENCIA OFERENTE","index":7,"n_rows":39,"n_cols":16384,"rows_kept":39,"cut":false,"hidden":false,"merged":[[7,1,7,8],[3,1,4,1],[3,2,4,2],[3,7,4,7],[3,8,4,8],[5,1,6,1],[5,2,6,2],[5,7,6,7],[5,8,6,8],[6,3,6,4],[5,5,6,6],[5,3,5,4],[1,3,1,8],[0,3,0,14],[0,1,1,2],[2,5,2,6],[3,5,4,6],[2,3,2,4],[3,3,3,4],[4,3,4,4]]}
[null,"INCORPORE EL LOGO DE LA FIRMA AUDITORA",null,"INGRESE EL NOMBRE O DENOMINACION DE LA FIRMA CONSULTORA"]
[null,null,null,"EXPERIENCIA GENERAL Y ESPECÍFICA DEL OFERENTE",null,null,null,null,null,null,null,null,null,null,null,null,null,null,null,null,null,null,null,null,null,null,null,null,null,null,null,null,null,null,null,null,null,null,null,null,null,null,null,null,null,null,null,null,null,null,null,null,null,null,null,null,null,null,null,null,null,null,null,null,null,null,null,null,null,null,null,null,null,null,null,null,null,null,null,null,null,null,null,null,null,null,null,null,null,null,null,null,null,null,null,null,null,null,null,null,null,null,null,null,null,null,null,null,null,null,null,null,null,null,null,null,null,null,null,null,null,null,null,null,null,null,null,null,null,null,null,null,null,null,null,null,null,null,null,null,null,null,null,null,null,null,null,null,null,null,null,null,null,null,null,null,null,null,null,null,null,null,null,null,null,null,null,null,null,null,null,null,null,null,null,null,null,null,null,null,null,null,null,null,null,null,null,null,null,null,null,null,null,null,null,null,null,null,null,null,null,null,null,null,null,null,null,null,null,null,null,null,null,null,null,null,null,null,null,null,null,null,null,null,null,null,null,null,null,null,null,null,null,null,null,null,null,null,null,null,null,null,null,null,null,null,null,null,null,null,null,null,null,null,null,null,null,null,null,null,null,null,null,null,null,null,null,null,null,null,null,null,null,null,null,null,null,null,null,null,null,null,null,null,null,null,null,null,null,null,null,null,null,null,null,null,null,null,null,null,null,null,null,null,null,null,null,null,null,null,null,null,null,null,null,null,null,null,null,null,null,null,null,null,null,null,null,null,null,null,null,null,null,null,null,null,null,null,null,null,null,null,null,null,null,null,null,null,null,null,null,null,null,null,null,null,null,null,null,null,null,null,null,null,null,null,null,null,null,null,null,null,null,null,null,null,null,null,null,null,null,null,null,null,null,null,null,null,null,null,null,null,null,null,null,null,null,null,null,null,null,null,null,null,null,null,null,null,null,null,null,null,null,null,null,null,null,null,null,null,null,null,null,null,null,null,null,null,null,null,null,null,null,null,null,null,null,null,null,null,null,null,null,null,null,null,null,null,null,null,null,null,null,null,null,null,null,null,null,null,null,null,null,null,null,null,null,null,null,null,null,null,null,null,null,null,null,null,null,null,null,null,null,null,null,null,null,null,null,null,null,null,null,null,null,null,null,null,null,null,null,null,null,null,null,null,null,null,null,null,null,null,null,null,null,null,null,null,null,null,null,null,null,null,null,null,null,null,null,null,null,null,null,null,null,null,null,null,null,null,null,null,null,null,null,null,null,null,null,null,null,null,null,null,null,null,null,null,null,null,null,null,null,null,null,null,null,null,null,null,null,null,null,null,null,null,null,null,null,null,null,null,null,null,null,null,null,null,null,null,null,null,null,null,null,null,null,null,null,null,null,null,null,null,null,null,null,null,null,null,null,null,null,null,null,null,null,null,null,null,null,null,null,null,null,null,null,null,null,null,null,null,null,null,null,null,null,null,null,null,null,null,null,null,null,null,null,null,null,null,null,null,null,null,null,null,null,null,null,null,null,null,null,null,null,null,null,null,null,null,null,null,null,null,null,null,null,null,null,null,null,null,null,null,null,null,null,null,null,null,null,null,null,null,null,null,null,null,null,null,null,null,null,null,null,null,null,null,null,null,null,null,null,null,null,null,null,null,null,null,null,null,null,null,null,null,null,null,null,null,null,null,null,null,null,null,null,null,null,null,null,null,null,null,null,null,null,null,null,null,null,null,null,null,null,null,null,null,null,null,null,null,null,null,null,null,null,null,null,null,null,null,null,null,null,null,null,null,null,null,null,null,null,null,null,null,null,null,null,null,null,null,null,null,null,null,null,null,null,null,null,null,null,null,null,null,null,null,null,null,null,null,null,null,null,null,null,null,null,null,null,null,null,null,null,null,null,null,null,null,null,null,null,null,null,null,null,null,null,null,null,null,null,null,null,null,null,null,null,null,null,null,null,null,null,null,null,null,null,null,null,null,null,null,null,null,null,null,null,null,null,null,null,null,null,null,null,null,null,null,null,null,null,null,null,null,null,null,null,null,null,null,null,null,null,null,null,null,null,null,null,null,null,null,null,null,null,null,null,null,null,null,null,null,null,null,null,null,null,null,null,null,null,null,null,null,null,null,null,null,null,null,null,null,null,null,null,null,null,null,null,null,null,null,null,null,null,null,null,null,null,null,null,null,null,null,null,null,null,null,null,null,null,null,null,null,null,null,null,null,null,null,null,null,null,null,null,null,null,null,null,null,null,null,null,null,null,null,null,null,null,null,null,null,null,null,null,null,null,null,null,null,null,null,null,null,null,null,null,null,null,null,null,null,null,null,null,null,null,null,null,null,null,null,null,null,null,null,null,null,null,null,null,null,null,null,null,null,null,null,null,null,null,null,null,null,null,null,null,null,null,null,null,null,null,null,null,null,null,null,null,null,null,null,null,null,null,null,null,null,null,null,null,null,null,null,null,null,null,null,null,null,null,null,null,null,null,null,null,null,null,null,null,null,null,null,null,null,null,null,null,null,null,null,null,null,null,null,null,null,null,null,null,null,null,null,null,null,null,null,null,null,null,null,null,null,null,null,null,null,null,null,null,null,null,null,null,null,null,null,null,null,null,null,null,null,null,null,null,null,null,null,null,null,null,null,null,null,null,null,null,null,null,null,null,null,null,null,null,null,null,null,null,null,null,null,null,null,null,null,null,null,null,null,null,null,null,null,null,null,null,null,null,null,null,null,null,null,null,null,null,null,null,null,null,null,null,null,null,null,null,null,null,null,null,null,null,null,null,null,null,null,null,null,null,null,null,null,null,null,null,null,null,null,null,null,null,null,null,null,null,null,null,null,null,null,null,null,null,null,null,null,null,null,null,null,null,null,null,null,null,null,null,null,null,null,null,null,null,null,null,null,null,null,null,null,null,null,null,null,null,null,null,null,null,null,null,null,null,null,null,null,null,null,null,null,null,null,null,null,null,null,null,null,null,null,null,null,null,null,null,null,null,null,null,null,null,null,null,null,null,null,null,null,null,null,null,null,null,null,null,null,null,null,null,null,null,null,null,null,null,null,null,null,null,null,null,null,null,null,null,null,null,null,null,null,null,null,null,null,null,null,null,null,null,null,null,null,null,null,null,null,null,null,null,null,null,null,null,null,null,null,null,null,null,null,null,null,null,null,null,null,null,null,null,null,null,null,null,null,null,null,null,null,null,null,null,null,null,null,null,null,null,null,null,null,null,null,null,null,null,null,null,null,null,null,null,null,null,null,null,null,null,null,null,null,null,null,null,null,null,null,null,null,null,null,null,null,null,null,null,null,null,null,null,null,null,null,null,null,null,null,null,null,null,null,null,null,null,null,null,null,null,null,null,null,null,null,null,null,null,null,null,null,null,null,null,null,null,null,null,null,null,null,null,null,null,null,null,null,null,null,null,null,null,null,null,null,null,null,null,null,null,null,null,null,null,null,null,null,null,null,null,null,null,null,null,null,null,null,null,null,null,null,null,null,null,null,null,null,null,null,null,null,null,null,null,null,null,null,null,null,null,null,null,null,null,null,null,null,null,null,null,null,null,null,null,null,null,null,null,null,null,null,null,null,null,null,null,null,null,null,null,null,null,null,null,null,null,null,null,null,null,null,null,null,null,null,null,null,null,null,null,null,null,null,null,null,null,null,null,null,null,null,null,null,null,null,null,null,null,null,null,null,null,null,null,null,null,null,null,null,null,null,null,null,null,null,null,null,null,null,null,null,null,null,null,null,null,null,null,null,null,null,null,null,null,null,null,null,null,null,null,null,null,null,null,null,null,null,null,null,null,null,null,null,null,null,null,null,null,null,null,null,null,null,null,null,null,null,null,null,null,null,null,null,null,null,null,null,null,null,null,null,null,null,null,null,null,null,null,null,null,null,null,null,null,null,null,null,null,null,null,null,null,null,null,null,null,null,null,null,null,null,null,null,null,null,null,null,null,null,null,null,null,null,null,null,null,null,null,null,null,null,null,null,null,null,null,null,null,null,null,null,null,null,null,null,null,null,null,null,null,null,null,null,null,null,null,null,null,null,null,null,null,null,null,null,null,null,null,null,null,null,null,null,null,null,null,null,null,null,null,null,null,null,null,null,null,null,null,null,null,null,null,null,null,null,null,null,null,null,null,null,null,null,null,null,null,null,null,null,null,null,null,null,null,null,null,null,null,null,null,null,null,null,null,null,null,null,null,null,null,null,null,null,null,null,null,null,null,null,null,null,null,null,null,null,null,null,null,null,null,null,null,null,null,null,null,null,null,null,null,null,null,null,null,null,null,null,null,null,null,null,null,null,null,null,null,null,null,null,null,null,null,null,null,null,null,null,null,null,null,null,null,null,null,null,null,null,null,null,null,null,null,null,null,null,null,null,null,null,null,null,null,null,null,null,null,null,null,null,null,null,null,null,null,null,null,null,null,null,null,null,null,null,null,null,null,null,null,null,null,null,null,null,null,null,null,null,null,null,null,null,null,null,null,null,null,null,null,null,null,null,null,null,null,null,null,null,null,null,null,null,null,null,null,null,null,null,null,null,null,null,null,null,null,null,null,null,null,null,null,null,null,null,null,null,null,null,null,null,null,null,null,null,null,null,null,null,null,null,null,null,null,null,null,null,null,null,null,null,null,null,null,null,null,null,null,null,null,null,null,null,null,null,null,null,null,null,null,null,null,null,null,null,null,null,null,null,null,null,null,null,null,null,null,null,null,null,null,null,null,null,null,null,null,null,null,null,null,null,null,null,null,null,null,null,null,null,null,null,null,null,null,null,null,null,null,null,null,null,null,null,null,null,null,null,null,null,null,null,null,null,null,null,null,null,null,null,null,null,null,null,null,null,null,null,null,null,null,null,null,null,null,null,null,null,null,null,null,null,null,null,null,null,null,null,null,null,null,null,null,null,null,null,null,null,null,null,null,null,null,null,null,null,null,null,null,null,null,null,null,null,null,null,null,null,null,null,null,null,null,null,null,null,null,null,null,null,null,null,null,null,null,null,null,null,null,null,null,null,null,null,null,null,null,null,null,null,null,null,null,null,null,null,null,null,null,null,null,null,null,null,null,null,null,null,null,null,null,null,null,null,null,null,null,null,null,null,null,null,null,null,null,null,null,null,null,null,null,null,null,null,null,null,null,null,null,null,null,null,null,null,null,null,null,null,null,null,null,null,null,null,null,null,null,null,null,null,null,null,null,null,null,null,null,null,null,null,null,null,null,null,null,null,null,null,null,null,null,null,null,null,null,null,null,null,null,null,null,null,null,null,null,null,null,null,null,null,null,null,null,null,null,null,null,null,null,null,null,null,null,null,null,null,null,null,null,null,null,null,null,null,null,null,null,null,null,null,null,null,null,null,null,null,null,null,null,null,null,null,null,null,null,null,null,null,null,null,null,null,null,null,null,null,null,null,null,null,null,null,null,null,null,null,null,null,null,null,null,null,null,null,null,null,null,null,null,null,null,null,null,null,null,null,null,null,null,null,null,null,null,null,null,null,null,null,null,null,null,null,null,null,null,null,null,null,null,null,null,null,null,null,null,null,null,null,null,null,null,null,null,null,null,null,null,null,null,null,null,null,null,null,null,null,null,null,null,null,null,null,null,null,null,null,null,null,null,null,null,null,null,null,null,null,null,null,null,null,null,null,null,null,null,null,null,null,null,null,null,null,null,null,null,null,null,null,null,null,null,null,null,null,null,null,null,null,null,null,null,null,null,null,null,null,null,null,null,null,null,null,null,null,null,null,null,null,null,null,null,null,null,null,null,null,null,null,null,null,null,null,null,null,null,null,null,null,null,null,null,null,null,null,null,null,null,null,null,null,null,null,null,null,null,null,null,null,null,null,null,null,null,null,null,null,null,null,null,null,null,null,null,null,null,null,null,null,null,null,null,null,null,null,null,null,null,null,null,null,null,null,null,null,null,null,null,null,null,null,null,null,null,null,null,null,null,null,null,null,null,null,null,null,null,null,null,null,null,null,null,null,null,null,null,null,null,null,null,null,null,null,null,null,null,null,null,null,null,null,null,null,null,null,null,null,null,null,null,null,null,null,null,null,null,null,null,null,null,null,null,null,null,null,null,null,null,null,null,null,null,null,null,null,null,null,null,null,null,null,null,null,null,null,null,null,null,null,null,null,null,null,null,null,null,null,null,null,null,null,null,null,null,null,null,null,null,null,null,null,null,null,null,null,null,null,null,null,null,null,null,null,null,null,null,null,null,null,null,null,null,null,null,null,null,null,null,null,null,null,null,null,null,null,null,null,null,null,null,null,null,null,null,null,null,null,null,null,null,null,null,null,null,null,null,null,null,null,null,null,null,null,null,null,null,null,null,null,null,null,null,null,null,null,null,null,null,null,null,null,null,null,null,null,null,null,null,null,null,null,null,null,null,null,null,null,null,null,null,null,null,null,null,null,null,null,null,null,null,null,null,null,null,null,null,null,null,null,null,null,null,null,null,null,null,null,null,null,null,null,null,null,null,null,null,null,null,null,null,null,null,null,null,null,null,null,null,null,null,null,null,null,null,null,null,null,null,null,null,null,null,null,null,null,null,null,null,null,null,null,null,null,null,null,null,null,null,null,null,null,null,null,null,null,null,null,null,null,null,null,null,null,null,null,null,null,null,null,null,null,null,null,null,null,null,null,null,null,null,null,null,null,null,null,null,null,null,null,null,null,null,null,null,null,null,null,null,null,null,null,null,null,null,null,null,null,null,null,null,null,null,null,null,null,null,null,null,null,null,null,null,null,null,null,null,null,null,null,null,null,null,null,null,null,null,null,null,null,null,null,null,null,null,null,null,null,null,null,null,null,null,null,null,null,null,null,null,null,null,null,null,null,null,null,null,null,null,null,null,null,null,null,null,null,null,null,null,null,null,null,null,null,null,null,null,null,null,null,null,null,null,null,null,null,null,null,null,null,null,null,null,null,null,null,null,null,null,null,null,null,null,null,null,null,null,null,null,null,null,null,null,null,null,null,null,null,null,null,null,null,null,null,null,null,null,null,null,null,null,null,null,null,null,null,null,null,null,null,null,null,null,null,null,null,null,null,null,null,null,null,null,null,null,null,null,null,null,null,null,null,null,null,null,null,null,null,null,null,null,null,null,null,null,null,null,null,null,null,null,null,null,null,null,null,null,null,null,null,null,null,null,null,null,null,null,null,null,null,null,null,null,null,null,null,null,null,null,null,null,null,null,null,null,null,null,null,null,null,null,null,null,null,null,null,null,null,null,null,null,null,null,null,null,null,null,null,null,null,null,null,null,null,null,null,null,null,null,null,null,null,null,null,null,null,null,null,null,null,null,null,null,null,null,null,null,null,null,null,null,null,null,null,null,null,null,null,null,null,null,null,null,null,null,null,null,null,null,null,null,null,null,null,null,null,null,null,null,null,null,null,null,null,null,null,null,null,null,null,null,null,null,null,null,null,null,null,null,null,null,null,null,null,null,null,null,null,null,null,null,null,null,null,null,null,null,null,null,null,null,null,null,null,null,null,null,null,null,null,null,null,null,null,null,null,null,null,null,null,null,null,null,null,null,null,null,null,null,null,null,null,null,null,null,null,null,null,null,null,null,null,null,null,null,null,null,null,null,null,null,null,null,null,null,null,null,null,null,null,null,null,null,null,null,null,null,null,null,null,null,null,null,null,null,null,null,null,null,null,null,null,null,null,null,null,null,null,null,null,null,null,null,null,null,null,null,null,null,null,null,null,null,null,null,null,null,null,null,null,null,null,null,null,null,null,null,null,null,null,null,null,null,null,null,null,null,null,null,null,null,null,null,null,null,null,null,null,null,null,null,null,null,null,null,null,null,null,null,null,null,null,null,null,null,null,null,null,null,null,null,null,null,null,null,null,null,null,null,null,null,null,null,null,null,null,null,null,null,null,null,null,null,null,null,null,null,null,null,null,null,null,null,null,null,null,null,null,null,null,null,null,null,null,null,null,null,null,null,null,null,null,null,null,null,null,null,null,null,null,null,null,null,null,null,null,null,null,null,null,null,null,null,null,null,null,null,null,null,null,null,null,null,null,null,null,null,null,null,null,null,null,null,null,null,null,null,null,null,null,null,null,null,null,null,null,null,null,null,null,null,null,null,null,null,null,null,null,null,null,null,null,null,null,null,null,null,null,null,null,null,null,null,null,null,null,null,null,null,null,null,null,null,null,null,null,null,null,null,null,null,null,null,null,null,null,null,null,null,null,null,null,null,null,null,null,null,null,null,null,null,null,null,null,null,null,null,null,null,null,null,null,null,null,null,null,null,null,null,null,null,null,null,null,null,null,null,null,null,null,null,null,null,null,null,null,null,null,null,null,null,null,null,null,null,null,null,null,null,null,null,null,null,null,null,null,null,null,null,null,null,null,null,null,null,null,null,null,null,null,null,null,null,null,null,null,null,null,null,null,null,null,null,null,null,null,null,null,null,null,null,null,null,null,null,null,null,null,null,null,null,null,null,null,null,null,null,null,null,null,null,null,null,null,null,null,null,null,null,null,null,null,null,null,null,null,null,null,null,null,null,null,null,null,null,null,null,null,null,null,null,null,null,null,null,null,null,null,null,null,null,null,null,null,null,null,null,null,null,null,null,null,null,null,null,null,null,null,null,null,null,null,null,null,null,null,null,null,null,null,null,null,null,null,null,null,null,null,null,null,null,null,null,null,null,null,null,null,null,null,null,null,null,null,null,null,null,null,null,null,null,null,null,null,null,null,null,null,null,null,null,null,null,null,null,null,null,null,null,null,null,null,null,null,null,null,null,null,null,null,null,null,null,null,null,null,null,null,null,null,null,null,null,null,null,null,null,null,null,null,null,null,null,null,null,null,null,null,null,null,null,null,null,null,null,null,null,null,null,null,null,null,null,null,null,null,null,null,null,null,null,null,null,null,null,null,null,null,null,null,null,null,null,null,null,null,null,null,null,null,null,null,null,null,null,null,null,null,null,null,null,null,null,null,null,null,null,null,null,null,null,null,null,null,null,null,null,null,null,null,null,null,null,null,null,null,null,null,null,null,null,null,null,null,null,null,null,null,null,null,null,null,null,null,null,null,null,null,null,null,null,null,null,null,null,null,null,null,null,null,null,null,null,null,null,null,null,null,null,null,null,null,null,null,null,null,null,null,null,null,null,null,null,null,null,null,null,null,null,null,null,null,null,null,null,null,null,null,null,null,null,null,null,null,null,null,null,null,null,null,null,null,null,null,null,null,null,null,null,null,null,null,null,null,null,null,null,null,null,null,null,null,null,null,null,null,null,null,null,null,null,null,null,null,null,null,null,null,null,null,null,null,null,null,null,null,null,null,null,null,null,null,null,null,null,null,null,null,null,null,null,null,null,null,null,null,null,null,null,null,null,null,null,null,null,null,null,null,null,null,null,null,null,null,null,null,null,null,null,null,null,null,null,null,null,null,null,null,null,null,null,null,null,null,null,null,null,null,null,null,null,null,null,null,null,null,null,null,null,null,null,null,null,null,null,null,null,null,null,null,null,null,null,null,null,null,null,null,null,null,null,null,null,null,null,null,null,null,null,null,null,null,null,null,null,null,null,null,null,null,null,null,null,null,null,null,null,null,null,null,null,null,null,null,null,null,null,null,null,null,null,null,null,null,null,null,null,null,null,null,null,null,null,null,null,null,null,null,null,null,null,null,null,null,null,null,null,null,null,null,null,null,null,null,null,null,null,null,null,null,null,null,null,null,null,null,null,null,null,null,null,null,null,null,null,null,null,null,null,null,null,null,null,null,null,null,null,null,null,null,null,null,null,null,null,null,null,null,null,null,null,null,null,null,null,null,null,null,null,null,null,null,null,null,null,null,null,null,null,null,null,null,null,null,null,null,null,null,null,null,null,null,null,null,null,null,null,null,null,null,null,null,null,null,null,null,null,null,null,null,null,null,null,null,null,null,null,null,null,null,null,null,null,null,null,null,null,null,null,null,null,null,null,null,null,null,null,null,null,null,null,null,null,null,null,null,null,null,null,null,null,null,null,null,null,null,null,null,null,null,null,null,null,null,null,null,null,null,null,null,null,null,null,null,null,null,null,null,null,null,null,null,null,null,null,null,null,null,null,null,null,null,null,null,null,null,null,null,null,null,null,null,null,null,null,null,null,null,null,null,null,null,null,null,null,null,null,null,null,null,null,null,null,null,null,null,null,null,null,null,null,null,null,null,null,null,null,null,null,null,null,null,null,null,null,null,null,null,null,null,null,null,null,null,null,null,null,null,null,null,null,null,null,null,null,null,null,null,null,null,null,null,null,null,null,null,null,null,null,null,null,null,null,null,null,null,null,null,null,null,null,null,null,null,null,null,null,null,null,null,null,null,null,null,null,null,null,null,null,null,null,null,null,null,null,null,null,null,null,null,null,null,null,null,null,null,null,null,null,null,null,null,null,null,null,null,null,null,null,null,null,null,null,null,null,null,null,null,null,null,null,null,null,null,null,null,null,null,null,null,null,null,null,null,null,null,null,null,null,null,null,null,null,null,null,null,null,null,null,null,null,null,null,null,null,null,null,null,null,null,null,null,null,null,null,null,null,null,null,null,null,null,null,null,null,null,null,null,null,null,null,null,null,null,null,null,null,null,null,null,null,null,null,null,null,null,null,null,null,null,null,null,null,null,null,null,null,null,null,null,null,null,null,null,null,null,null,null,null,null,null,null,null,null,null,null,null,null,null,null,null,null,null,null,null,null,null,null,null,null,null,null,null,null,null,null,null,null,null,null,null,null,null,null,null,null,null,null,null,null,null,null,null,null,null,null,null,null,null,null,null,null,null,null,null,null,null,null,null,null,null,null,null,null,null,null,null,null,null,null,null,null,null,null,null,null,null,null,null,null,null,null,null,null,null,null,null,null,null,null,null,null,null,null,null,null,null,null,null,null,null,null,null,null,null,null,null,null,null,null,null,null,null,null,null,null,null,null,null,null,null,null,null,null,null,null,null,null,null,null,null,null,null,null,null,null,null,null,null,null,null,null,null,null,null,null,null,null,null,null,null,null,null,null,null,null,null,null,null,null,null,null,null,null,null,null,null,null,null,null,null,null,null,null,null,null,null,null,null,null,null,null,null,null,null,null,null,null,null,null,null,null,null,null,null,null,null,null,null,null,null,null,null,null,null,null,null,null,null,null,null,null,null,null,null,null,null,null,null,null,null,null,null,null,null,null,null,null,null,null,null,null,null,null,null,null,null,null,null,null,null,null,null,null,null,null,null,null,null,null,null,null,null,null,null,null,null,null,null,null,null,null,null,null,null,null,null,null,null,null,null,null,null,null,null,null,null,null,null,null,null,null,null,null,null,null,null,null,null,null,null,null,null,null,null,null,null,null,null,null,null,null,null,null,null,null,null,null,null,null,null,null,null,null,null,null,null,null,null,null,null,null,null,null,null,null,null,null,null,null,null,null,null,null,null,null,null,null,null,null,null,null,null,null,null,null,null,null,null,null,null,null,null,null,null,null,null,null,null,null,null,null,null,null,null,null,null,null,null,null,null,null,null,null,null,null,null,null,null,null,null,null,null,null,null,null,null,null,null,null,null,null,null,null,null,null,null,null,null,null,null,null,null,null,null,null,null,null,null,null,null,null,null,null,null,null,null,null,null,null,null,null,null,null,null,null,null,null,null,null,null,null,null,null,null,null,null,null,null,null,null,null,null,null,null,null,null,null,null,null,null,null,null,null,null,null,null,null,null,null,null,null,null,null,null,null,null,null,null,null,null,null,null,null,null,null,null,null,null,null,null,null,null,null,null,null,null,null,null,null,null,null,null,null,null,null,null,null,null,null,null,null,null,null,null,null,null,null,null,null,null,null,null,null,null,null,null,null,null,null,null,null,null,null,null,null,null,null,null,null,null,null,null,null,null,null,null,null,null,null,null,null,null,null,null,null,null,null,null,null,null,null,null,null,null,null,null,null,null,null,null,null,null,null,null,null,null,null,null,null,null,null,null,null,null,null,null,null,null,null,null,null,null,null,null,null,null,null,null,null,null,null,null,null,null,null,null,null,null,null,null,null,null,null,null,null,null,null,null,null,null,null,null,null,null,null,null,null,null,null,null,null,null,null,null,null,null,null,null,null,null,null,null,null,null,null,null,null,null,null,null,null,null,null,null,null,null,null,null,null,null,null,null,null,null,null,null,null,null,null,null,null,null,null,null,null,null,null,null,null,null,null,null,null,null,null,null,null,null,null,null,null,null,null,null,null,null,null,null,null,null,null,null,null,null,null,null,null,null,null,null,null,null,null,null,null,null,null,null,null,null,null,null,null,null,null,null,null,null,null,null,null,null,null,null,null,null,null,null,null,null,null,null,null,null,null,null,null,null,null,null,null,null,null,null,null,null,null,null,null,null,null,null,null,null,null,null,null,null,null,null,null,null,null,null,null,null,null,null,null,null,null,null,null,null,null,null,null,null,null,null,null,null,null,null,null,null,null,null,null,null,null,null,null,null,null,null,null,null,null,null,null,null,null,null,null,null,null,null,null,null,null,null,null,null,null,null,null,null,null,null,null,null,null,null,null,null,null,null,null,null,null,null,null,null,null,null,null,null,null,null,null,null,null,null,null,null,null,null,null,null,null,null,null,null,null,null,null,null,null,null,null,null,null,null,null,null,null,null,null,null,null,null,null,null,null,null,null,null,null,null,null,null,null,null,null,null,null,null,null,null,null,null,null,null,null,null,null,null,null,null,null,null,null,null,null,null,null,null,null,null,null,null,null,null,null,null,null,null,null,null,null,null,null,null,null,null,null,null,null,null,null,null,null,null,null,null,null,null,null,null,null,null,null,null,null,null,null,null,null,null,null,null,null,null,null,null,null,null,null,null,null,null,null,null,null,null,null,null,null,null,null,null,null,null,null,null,null,null,null,null,null,null,null,null,null,null,null,null,null,null,null,null,null,null,null,null,null,null,null,null,null,null,null,null,null,null,null,null,null,null,null,null,null,null,null,null,null,null,null,null,null,null,null,null,null,null,null,null,null,null,null,null,null,null,null,null,null,null,null,null,null,null,null,null,null,null,null,null,null,null,null,null,null,null,null,null,null,null,null,null,null,null,null,null,null,null,null,null,null,null,null,null,null,null,null,null,null,null,null,null,null,null,null,null,null,null,null,null,null,null,null,null,null,null,null,null,null,null,null,null,null,null,null,null,null,null,null,null,null,null,null,null,null,null,null,null,null,null,null,null,null,null,null,null,null,null,null,null,null,null,null,null,null,null,null,null,null,null,null,null,null,null,null,null,null,null,null,null,null,null,null,null,null,null,null,null,null,null,null,null,null,null,null,null,null,null,null,null,null,null,null,null,null,null,null,null,null,null,null,null,null,null,null,null,null,null,null,null,null,null,null,null,null,null,null,null,null,null,null,null,null,null,null,null,null,null,null,null,null,null,null,null,null,null,null,null,null,null,null,null,null,null,null,null,null,null,null,null,null,null,null,null,null,null,null,null,null,null,null,null,null,null,null,null,null,null,null,null,null,null,null,null,null,null,null,null,null,null,null,null,null,null,null,null,null,null,null,null,null,null,null,null,null,null,null,null,null,null,null,null,null,null,null,null,null,null,null,null,null,null,null,null,null,null,null,null,null,null,null,null,null,null,null,null,null,null,null,null,null,null,null,null,null,null,null,null,null,null,null,null,null,null,null,null,null,null,null,null,null,null,null,null,null,null,null,null,null,null,null,null,null,null,null,null,null,null,null,null,null,null,null,null,null,null,null,null,null,null,null,null,null,null,null,null,null,null,null,null,null,null,null,null,null,null,null,null,null,null,null,null,null,null,null,null,null,null,null,null,null,null,null,null,null,null,null,null,null,null,null,null,null,null,null,null,null,null,null,null,null,null,null,null,null,null,null,null,null,null,null,null,null,null,null,null,null,null,null,null,null,null,null,null,null,null,null,null,null,null,null,null,null,null,null,null,null,null,null,null,null,null,null,null,null,null,null,null,null,null,null,null,null,null,null,null,null,null,null,null,null,null,null,null,null,null,null,null,null,null,null,null,null,null,null,null,null,null,null,null,null,null,null,null,null,null,null,null,null,null,null,null,null,null,null,null,null,null,null,null,null,null,null,null,null,null,null,null,null,null,null,null,null,null,null,null,null,null,null,null,null,null,null,null,null,null,null,null,null,null,null,null,null,null,null,null,null,null,null,null,null,null,null,null,null,null,null,null,null,null,null,null,null,null,null,null,null,null,null,null,null,null,null,null,null,null,null,null,null,null,null,null,null,null,null,null,null,null,null,null,null,null,null,null,null,null,null,null,null,null,null,null,null,null,null,null,null,null,null,null,null,null,null,null,null,null,null,null,null,null,null,null,null,null,null,null,null,null,null,null,null,null,null,null,null,null,null,null,null,null,null,null,null,null,null,null,null,null,null,null,null,null,null,null,null,null,null,null,null,null,null,null,null,null,null,null,null,null,null,null,null,null,null,null,null,null,null,null,null,null,null,null,null,null,null,null,null,null,null,null,null,null,null,null,null,null,null,null,null,null,null,null,null,null,null,null,null,null,null,null,null,null,null,null,null,null,null,null,null,null,null,null,null,null,null,null,null,null,null,null,null,null,null,null,null,null,null,null,null,null,null,null,null,null,null,null,null,null,null,null,null,null,null,null,null,null,null,null,null,null,null,null,null,null,null,null,null,null,null,null,null,null,null,null,null,null,null,null,null,null,null,null,null,null,null,null,null,null,null,null,null,null,null,null,null,null,null,null,null,null,null,null,null,null,null,null,null,null,null,null,null,null,null,null,null,null,null,null,null,null,null,null,null,null,null,null,null,null,null,null,null,null,null,null,null,null,null,null,null,null,null,null,null,null,null,null,null,null,null,null,null,null,null,null,null,null,null,null,null,null,null,null,null,null,null,null,null,null,null,null,null,null,null,null,null,null,null,null,null,null,null,null,null,null,null,null,null,null,null,null,null,null,null,null,null,null,null,null,null,null,null,null,null,null,null,null,null,null,null,null,null,null,null,null,null,null,null,null,null,null,null,null,null,null,null,null,null,null,null,null,null,null,null,null,null,null,null,null,null,null,null,null,null,null,null,null,null,null,null,null,null,null,null,null,null,null,null,null,null,null,null,null,null,null,null,null,null,null,null,null,null,null,null,null,null,null,null,null,null,null,null,null,null,null,null,null,null,null,null,null,null,null,null,null,null,null,null,null,null,null,null,null,null,null,null,null,null,null,null,null,null,null,null,null,null,null,null,null,null,null,null,null,null,null,null,null,null,null,null,null,null,null,null,null,null,null,null,null,null,null,null,null,null,null,null,null,null,null,null,null,null,null,null,null,null,null,null,null,null,null,null,null,null,null,null,null,null,null,null,null,null,null,null,null,null,null,null,null,null,null,null,null,null,null,null,null,null,null,null,null,null,null,null,null,null,null,null,null,null,null,null,null,null,null,null,null,null,null,null,null,null,null,null,null,null,null,null,null,null,null,null,null,null,null,null,null,null,null,null,null,null,null,null,null,null,null,null,null,null,null,null,null,null,null,null,null,null,null,null,null,null,null,null,null,null,null,null,null,null,null,null,null,null,null,null,null,null,null,null,null,null,null,null,null,null,null,null,null,null,null,null,null,null,null,null,null,null,null,null,null,null,null,null,null,null,null,null,null,null,null,null,null,null,null,null,null,null,null,null,null,null,null,null,null,null,null,null,null,null,null,null,null,null,null,null,null,null,null,null,null,null,null,null,null,null,null,null,null,null,null,null,null,null,null,null,null,null,null,null,null,null,null,null,null,null,null,null,null,null,null,null,null,null,null,null,null,null,null,null,null,null,null,null,null,null,null,null,null,null,null,null,null,null,null,null,null,null,null,null,null,null,null,null,null,null,null,null,null,null,null,null,null,null,null,null,null,null,null,null,null,null,null,null,null,null,null,null,null,null,null,null,null,null,null,null,null,null,null,null,null,null,null,null,null,null,null,null,null,null,null,null,null,null,null,null,null,null,null,null,null,null,null,null,null,null,null,null,null,null,null,null,null,null,null,null,null,null,null,null,null,null,null,null,null,null,null,null,null,null,null,null,null,null,null,null,null,null,null,null,null,null,null,null,null,null,null,null,null,null,null,null,null,null,null,null,null,null,null,null,null,null,null,null,null,null,null,null,null,null,null,null,null,null,null,null,null,null,null,null,null,null,null,null,null,null,null,null,null,null,null,null,null,null,null,null,null,null,null,null,null,null,null,null,null,null,null,null,null,null,null,null,null,null,null,null,null,null,null,null,null,null,null,null,null,null,null,null,null,null,null,null,null,null,null,null,null,null,null,null,null,null,null,null,null,null,null,null,null,null,null,null,null,null,null,null,null,null,null,null,null,null,null,null,null,null,null,null,null,null,null,null,null,null,null,null,null,null,null,null,null,null,null,null,null,null,null,null,null,null,null,null,null,null,null,null,null,null,null,null,null,null,null,null,null,null,null,null,null,null,null,null,null,null,null,null,null,null,null,null,null,null,null,null,null,null,null,null,null,null,null,null,null,null,null,null,null,null,null,null,null,null,null,null,null,null,null,null,null,null,null,null,null,null,null,null,null,null,null,null,null,null,null,null,null,null,null,null,null,null,null,null,null,null,null,null,null,null,null,null,null,null,null,null,null,null,null,null,null,null,null,null,null,null,null,null,null,null,null,null,null,null,null,null,null,null,null,null,null,null,null,null,null,null,null,null,null,null,null,null,null,null,null,null,null,null,null,null,null,null,null,null,null,null,null,null,null,null,null,null,null,null,null,null,null,null,null,null,null,null,null,null,null,null,null,null,null,null,null,null,null,null,null,null,null,null,null,null,null,null,null,null,null,null,null,null,null,null,null,null,null,null,null,null,null,null,null,null,null,null,null,null,null,null,null,null,null,null,null,null,null,null,null,null,null,null,null,null,null,null,null,null,null,null,null,null,null,null,null,null,null,null,null,null,null,null,null,null,null,null,null,null,null,null,null,null,null,null,null,null,null,null,null,null,null,null,null,null,null,null,null,null,null,null,null,null,null,null,null,null,null,null,null,null,null,null,null,null,null,null,null,null,null,null,null,null,null,null,null,null,null,null,null,null,null,null,null,null,null,null,null,null,null,null,null,null,null,null,null,null,null,null,null,null,null,null,null,null,null,null,null,null,null,null,null,null,null,null,null,null,null,null,null,null,null,null,null,null,null,null,null,null,null,null,null,null,null,null,null,null,null,null,null,null,null,null,null,null,null,null,null,null,null,null,null,null,null,null,null,null,null,null,null,null,null,null,null,null,null,null,null,null,null,null,null,null,null,null,null,null,null,null,null,null,null,null,null,null,null,null,null,null,null,null,null,null,null,null,null,null,null,null,null,null,null,null,null,null,null,null,null,null,null,null,null,null,null,null,null,null,null,null,null,null,null,null,null,null,null,null,null,null,null,null,null,null,null,null,null,null,null,null,null,null,null,null,null,null,null,null,null,null,null,null,null,null,null,null,null,null,null,null,null,null,null,null,null,null,null,null,null,null,null,null,null,null,null,null,null,null,null,null,null,null,null,null,null,null,null,null,null,null,null,null,null,null,null,null,null,null,null,null,null,null,null,null,null,null,null,null,null,null,null,null,null,null,null,null,null,null,null,null,null,null,null,null,null,null,null,null,null,null,null,null,null,null,null,null,null,null,null,null,null,null,null,null,null,null,null,null,null,null,null,null,null,null,null,null,null,null,null,null,null,null,null,null,null,null,null,null,null,null,null,null,null,null,null,null,null,null,null,null,null,null,null,null,null,null,null,null,null,null,null,null,null,null,null,null,null,null,null,null,null,null,null,null,null,null,null,null,null,null,null,null,null,null,null,null,null,null,null,null,null,null,null,null,null,null,null,null,null,null,null,null,null,null,null,null,null,null,null,null,null,null,null,null,null,null,null,null,null,null,null,null,null,null,null,null,null,null,null,null,null,null,null,null,null,null,null,null,null,null,null,null,null,null,null,null,null,null,null,null,null,null,null,null,null,null,null,null,null,null,null,null,null,null,null,null,null,null,null,null,null,null,null,null,null,null,null,null,null,null,null,null,null,null,null,null,null,null,null,null,null,null,null,null,null,null,null,null,null,null,null,null,null,null,null,null,null,null,null,null,null,null,null,null,null,null,null,null,null,null,null,null,null,null,null,null,null,null,null,null,null,null,null,null,null,null,null,null,null,null,null,null,null,null,null,null,null,null,null,null,null,null,null,null,null,null,null,null,null,null,null,null,null,null,null,null,null,null,null,null,null,null,null,null,null,null,null,null,null,null,null,null,null,null,null,null,null,null,null,null,null,null,null,null,null,null,null,null,null,null,null,null,null,null,null,null,null,null,null,null,null,null,null,null,null,null,null,null,null,null,null,null,null,null,null,null,null,null,null,null,null,null,null,null,null,null,null,null,null,null,null,null,null,null,null,null,null,null,null,null,null,null,null,null,null,null,null,null,null,null,null,null,null,null,null,null,null,null,null,null,null,null,null,null,null,null,null,null,null,null,null,null,null,null,null,null,null,null,null,null,null,null,null,null,null,null,null,null,null,null,null,null,null,null,null,null,null,null,null,null,null,null,null,null,null,null,null,null,null,null,null,null,null,null,null,null,null,null,null,null,null,null,null,null,null,null,null,null,null,null,null,null,null,null,null,null,null,null,null,null,null,null,null,null,null,null,null,null,null,null,null,null,null,null,null,null,null,null,null,null,null,null,null,null,null,null,null,null,null,null,null,null,null,null,null,null,null,null,null,null,null,null,null,null,null,null,null,null,null,null,null,null,null,null,null,null,null,null,null,null,null,null,null,null,null,null,null,null,null,null,null,null,null,null,null,null,null,null,null,null,null,null,null,null,null,null,null,null,null,null,null,null,null,null,null,null,null,null,null,null,null,null,null,null,null,null,null,null,null,null,null,null,null,null,null,null,null,null,null,null,null,null,null,null,null,null,null,null,null,null,null,null,null,null,null,null,null,null,null,null,null,null,null,null,null,null,null,null,null,null,null,null,null,null,null,null,null,null,null,null,null,null,null,null,null,null,null,null,null,null,null,null,null,null,null,null,null,null,null,null,null,null,null,null,null,null,null,null,null,null,null,null,null,null,null,null,null,null,null,null,null,null,null,null,null,null,null,null,null,null,null,null,null,null,null,null,null,null,null,null,null,null,null,null,null,null,null,null,null,null,null,null,null,null,null,null,null,null,null,null,null,null,null,null,null,null,null,null,null,null,null,null,null,null,null,null,null,null,null,null,null,null,null,null,null,null,null,null,null,null,null,null,null,null,null,null,null,null,null,null,null,null,null,null,null,null,null,null,null,null,null,null,null,null,null,null,null,null,null,null,null,null,null,null,null,null,null,null,null,null,null,null,null,null,null,null,null,null,null,null,null,null,null,null,null,null,null,null,null,null,null,null,null,null,null,null,null,null,null,null,null,null,null,null,null,null,null,null,null,null,null,null,null,null,null,null,null,null,null,null,null,null,null,null,null,null,null,null,null,null,null,null,null,null,null,null,null,null,null,null,null,null,null,null,null,null,null,null,null,null,null,null,null,null,null,null,null,null,null,null,null,null,null,null,null,null,null,null,null,null,null,null,null,null,null,null,null,null,null,null,null,null,null,null,null,null,null,null,null,null,null,null,null,null,null,null,null,null,null,null,null,null,null,null,null,null,null,null,null,null,null,null,null,null,null,null,null,null,null,null,null,null,null,null,null,null,null,null,null,null,null,null,null,null,null,null,null,null,null,null,null,null,null,null,null,null,null,null,null,null,null,null,null,null,null,null,null,null,null,null,null,null,null,null,null,null,null,null,null,null,null,null,null,null,null,null,null,null,null,null,null,null,null,null,null,null,null,null,null,null,null,null,null,null,null,null,null,null,null,null,null,null,null,null,null,null,null,null,null,null,null,null,null,null,null,null,null,null,null,null,null,null,null,null,null,null,null,null,null,null,null,null,null,null,null,null,null,null,null,null,null,null,null,null,null,null,null,null,null,null,null,null,null,null,null,null,null,null,null,null,null,null,null,null,null,null,null,null,null,null,null,null,null,null,null,null,null,null,null,null,null,null,null,null,null,null,null,null,null,null,null,null,null,null,null,null,null,null,null,null,null,null,null,null,null,null,null,null,null,null,null,null,null,null,null,null,null,null,null,null,null,null,null,null,null,null,null,null,null,null,null,null,null,null,null,null,null,null,null,null,null,null,null,null,null,null,null,null,null,null,null,null,null,null,null,null,null,null,null,null,null,null,null,null,null,null,null,null,null,null,null,null,null,null,null,null,null,null,null,null,null,null,null,null,null,null,null,null,null,null,null,null,null,null,null,null,null,null,null,null,null,null,null,null,null,null,null,null,null,null,null,null,null,null,null,null,null,null,null,null,null,null,null,null,null,null,null,null,null,null,null,null,null,null,null,null,null,null,null,null,null,null,null,null,null,null,null,null,null,null,null,null,null,null,null,null,null,null,null,null,null,null,null,null,null,null,null,null,null,null,null,null,null,null,null,null,null,null,null,null,null,null,null,null,null,null,null,null,null,null,null,null,null,null,null,null,null,null,null,null,null,null,null,null,null,null,null,null,null,null,null,null,null,null,null,null,null,null,null,null,null,null,null,null,null,null,null,null,null,null,null,null,null,null,null,null,null,null,null,null,null,null,null,null,null,null,null,null,null,null,null,null,null,null,null,null,null,null,null,null,null,null,null,null,null,null,null,null,null,null,null,null,null,null,null,null,null,null,null,null,null,null,null,null,null,null,null,null,null,null,null,null,null,null,null,null,null,null,null,null,null,null,null,null,null,null,null,null,null,null,null,null,null,null,null,null,null,null,null,null,null,null,null,null,null,null,null,null,null,null,null,null,null,null,null,null,null,null,null,null,null,null,null,null,null,null,null,null,null,null,null,null,null,null,null,null,null,null,null,null,null,null,null,null,null,null,null,null,null,null,null,null,null,null,null,null,null,null,null,null,null,null,null,null,null,null,null,null,null,null,null,null,null,null,null,null,null,null,null,null,null,null,null,null,null,null,null,null,null,null,null,null,null,null,null,null,null,null,null,null,null,null,null,null,null,null,null,null,null,null,null,null,null,null,null,null,null,null,null,null,null,null,null,null,null,null,null,null,null,null,null,null,null,null,null,null,null,null,null,null,null,null,null,null,null,null,null,null,null,null,null,null,null,null,null,null,null,null,null,null,null,null,null,null,null,null,null,null,null,null,null,null,null,null,null,null,null,null,null,null,null,null,null,null,null,null,null,null,null,null,null,null,null,null,null,null,null,null,null,null,null,null,null,null,null,null,null,null,null,null,null,null,null,null,null,null,null,null,null,null,null,null,null,null,null,null,null,null,null,null,null,null,null,null,null,null,null,null,null,null,null,null,null,null,null,null,null,null,null,null,null,null,null,null,null,null,null,null,null,null,null,null,null,null,null,null,null,null,null,null,null,null,null,null,null,null,null,null,null,null,null,null,null,null,null,null,null,null,null,null,null,null,null,null,null,null,null,null,null,null,null,null,null,null,null,null,null,null,null,null,null,null,null,null,null,null,null,null,null,null,null,null,null,null,null,null,null,null,null,null,null,null,null,null,null,null,null,null,null,null,null,null,null,null,null,null,null,null,null,null,null,null,null,null,null,null,null,null,null,null,null,null,null,null,null,null,null,null,null,null,null,null,null,null,null,null,null,null,null,null,null,null,null,null,null,null,null,null,null,null,null,null,null,null,null,null,null,null,null,null,null,null,null,null,null,null,null,null,null,null,null,null,null,null,null,null,null,null,null,null,null,null,null,null,null,null,null,null,null,null,null,null,null,null,null,null,null,null,null,null,null,null,null,null,null,null,null,null,null,null,null,null,null,null,null,null,null,null,null,null,null,null,null,null,null,null,null,null,null,null,null,null,null,null,null,null,null,null,null,null,null,null,null,null,null,null,null,null,null,null,null,null,null,null,null,null,null,null,null,null,null,null,null,null,null,null,null,null,null,null,null,null,null,null,null,null,null,null,null,null,null,null,null,null,null,null,null,null,null,null,null,null,null,null,null,null,null,null,null,null,null,null,null,null,null,null,null,null,null,null,null,null,null,null,null,null,null,null,null,null,null,null,null,null,null,null,null,null,null,null,null,null,null,null,null,null,null,null,null,null,null,null,null,null,null,null,null,null,null,null,null,null,null,null,null,null,null,null,null,null,null,null,null,null,null,null,null,null,null,null,null,null,null,null,null,null,null,null,null,null,null,null,null,null,null,null,null,null,null,null,null,null,null,null,null,null,null,null,null,null,null,null,null,null,null,null,null,null,null,null,null,null,null,null,null,null,null,null,null,null,null,null,null,null,null,null,null,null,null,null,null,null,null,null,null,null,null,null,null,null,null,null,null,null,null,null,null,null,null,null,null,null,null,null,null,null,null,null,null,null,null,null,null,null,null,null,null,null,null,null,null,null,null,null,null,null,null,null,null,null,null,null,null,null,null,null,null,null,null,null,null,null,null,null,null,null,null,null,null,null,null,null,null,null,null,null,null,null,null,null,null,null,null,null,null,null,null,null,null,null,null,null,null,null,null,null,null,null,null,null,null,null,null,null,null,null,null,null,null,null,null,null,null,null,null,null,null,null,null,null,null,null,null,null,null,null,null,null,null,null,null,null,null,null,null,null,null,null,null,null,null,null,null,null,null,null,null,null,null,null,null,null,null,null,null,null,null,null,null,null,null,null,null,null,null,null,null,null,null,null,null,null,null,null,null,null,null,null,null,null,null,null,null,null,null,null,null,null,null,null,null,null,null,null,null,null,null,null,null,null,null,null,null,null,null,null,null,null,null,null,null,null,null,null,null,null,null,null,null,null,null,null,null,null,null,null,null,null,null,null,null,null,null,null,null,null,null,null,null,null,null,null,null,null,null,null,null,null,null,null,null,null,null,null,null,null,null,null,null,null,null,null,null,null,null,null,null,null,null,null,null,null,null,null,null,null,null,null,null,null,null,null,null,null,null,null,null,null,null,null,null,null,null,null,null,null,null,null,null,null,null,null,null,null,null,null,null,null,null,null,null,null,null,null,null,null,null,null,null,null,null,null,null,null,null,null,null,null,null,null,null,null,null,null,null,null,null,null,null,null,null,null,null,null,null,null,null,null,null,null,null,null,null,null,null,null,null,null,null,null,null,null,null,null,null,null,null,null,null,null,null,null,null,null,null,null,null,null,null,null,null,null,null,null,null,null,null,null,null,null,null,null,null,null,null,null,null,null,null,null,null,null,null,null,null,null,null,null,null,null,null,null,null,null,null,null,null,null,null,null,null,null,null,null,null,null,null,null,null,null,null,null,null,null,null,null,null,null,null,null,null,null,null,null,null,null,null,null,null,null,null,null,null,null,null,null,null,null,null,null,null,null,null,null,null,null,null,null,null,null,null,null,null,null,null,null,null,null,null,null,null,null,null,null,null,null,null,null,null,null,null,null,null,null,null,null,null,null,null,null,null,null,null,null,null,null,null,null,null,null,null,null,null,null,null,null,null,null,null,null,null,null,null,null,null,null,null,null,null,null,null,null,null,null,null,null,null,null,null,null,null,null,null,null,null,null,null,null,null,null,null,null,null,null,null,null,null,null,null,null,null,null,null,null,null,null,null,null,null,null,null,null,null,null,null,null,null,null,null,null,null,null,null,null,null,null,null,null,null,null,null,null,null,null,null,null,null,null,null,null,null,null,null,null,null,null,null,null,null,null,null,null,null,null,null,null,null,null,null,null,null,null,null,null,null,null,null,null,null,null,null,null,null,null,null,null,null,null,null,null,null,null,null,null,null,null,null,null,null,null,null,null,null,null,null,null,null,null,null,null,null,null,null,null,null,null,null,null,null,null,null,null,null,null,null,null,null,null,null,null,null,null,null,null,null,null,null,null,null,null,null,null,null,null,null,null,null,null,null,null,null,null,null,null,null,null,null,null,null,null,null,null,null,null,null,null,null,null,null,null,null,null,null,null,null,null,null,null,null,null,null,null,null,null,null,null,null,null,null,null,null,null,null,null,null,null,null,null,null,null,null,null,null,null,null,null,null,null,null,null,null,null,null,null,null,null,null,null,null,null,null,null,null,null,null,null,null,null,null,null,null,null,null,null,null,null,null,null,null,null,null,null,null,null,null,null,null,null,null,null,null,null,null,null,null,null,null,null,null,null,null,null,null,null,null,null,null,null,null,null,null,null,null,null,null,null,null,null,null,null,null,null,null,null,null,null,null,null,null,null,null,null,null,null,null,null,null,null,null,null,null,null,null,null,null,null,null,null,null,null,null,null,null,null,null,null,null,null,null,null,null,null,null,null,null,null,null,null,null,null,null,null,null,null,null,null,null,null,null,null,null,null,null,null,null,null,null,null,null,null,null,null,null,null,null,null,null,null,null,null,null,null,null,null,null,null,null,null,null,null,null,null,null,null,null,null,null,null,null,null,null,null,null,null,null,null,null,null,null,null,null,null,null,null,null,null,null,null,null,null,null,null,null,null,null,null,null,null,null,null,null,null,null,null,null,null,null,null,null,null,null,null,null,null,null,null,null,null,null,null,null,null,null,null,null,null,null,null,null,null,null,null,null,null,null,null,null,null,null,null,null,null,null,null,null,null,null,null,null,null,null,null,null,null,null,null,null,null,null,null,null,null,null,null,null,null,null,null,null,null,null,null,null,null,null,null,null,null,null,null,null,null,null,null,null,null,null,null,null,null,null,null,null,null,null,null,null,null,null,null,null,null,null,null,null,null,null,null,null,null,null,null,null,null,null,null,null,null,null,null,null,null,null,null,null,null,null,null,null,null,null,null,null,null,null,null,null,null,null,null,null,null,null,null,null,null,null,null,null,null,null,null,null,null,null,null,null,null,null,null,null,null,null,null,null,null,null,null,null,null,null,null,null,null,null,null,null,null,null,null,null,null,null,null,null,null,null,null,null,null,null,null,null,null,null,null,null,null,null,null,null,null,null,null,null,null,null,null,null,null,null,null,null,null,null,null,null,null,null,null,null,null,null,null,null,null,null,null,null,null,null,null,null,null,null,null,null,null,null,null,null,null,null,null,null,null,null,null,null,null,null,null,null,null,null,null,null,null,null,null,null,null,null,null,null,null,null,null,null,null,null,null,null,null,null,null,null,null,null,null,null,null,null,null,null,null,null,null,null,null,null,null,null,null,null,null,null,null,null,null,null,null,null,null,null,null,null,null,null,null,null,null,null,null,null,null,null,null,null,null,null,null,null,null,null,null,null,null,null,null,null,null,null,null,null,null,null,null,null,null,null,null,null,null,null,null,null,null,null,null,null,null,null,null,null,null,null,null,null,null,null,null,null,null,null,null,null,null,null,null,null,null,null,null,null,null,null,null,null,null,null,null,null,null,null,null,null,null,null,null,null,null,null,null,null,null,null,null,null,null,null,null,null,null,null,null,null,null,null,null,null,null,null,null,null,null,null,null,null,null,null,null,null,null,null,null,null,null,null,null,null,null,null,null,null,null,null,null,null,null,null,null,null,null,null,null,null,null,null,null,null,null,null,null,null,null,null,null,null,null,null,null,null,null,null,null,null,null,null,null,null,null,null,null,null,null,null,null,null,null,null,null,null,null,null,null,null,null,null,null,null,null,null,null,null,null,null,null,null,null,null,null,null,null,null,null,null,null,null,null,null,null,null,null,null,null,null,null,null,null,null,null,null,null,null,null,null,null,null,null,null,null,null,null,null,null,null,null,null,null,null,null,null,null,null,null,null,null,null,null,null,null,null,null,null,null,null,null,null,null,null,null,null,null,null,null,null,null,null,null,null,null,null,null,null,null,null,null,null,null,null,null,null,null,null,null,null,null,null,null,null,null,null,null,null,null,null,null,null,null,null,null,null,null,null,null,null,null,null,null,null,null,null,null,null,null,null,null,null,null,null,null,null,null,null,null,null,null,null,null,null,null,null,null,null,null,null,null,null,null,null,null,null,null,null,null,null,null,null,null,null,null,null,null,null,null,null,null,null,null,null,null,null,null,null,null,null,null,null,null,null,null,null,null,null,null,null,null,null,null,null,null,null,null,null,null,null,null,null,null,null,null,null,null,null,null,null,null,null,null,null,null,null,null,null,null,null,null,null,null,null,null,null,null,null,null,null,null,null,null,null,null,null,null,null,null,null,null,null,null,null,null,null,null,null,null,null,null,null,null,null,null,null,null,null,null,null,null,null,null,null,null,null,null,null,null,null,null,null,null,null,null,null,null,null,null,null,null,null,null,null,null,null,null,null,null,null,null,null,null,null,null,null,null,null,null,null,null,null,null,null,null,null,null,null,null,null,null,null,null,null,null,null,null,null,null,null,null,null,null,null,null,null,null,null,null,null,null,null,null,null,null,null,null,null,null,null,null,null,null,null,null,null,null,null,null,null,null,null,null,null,null,null,null,null,null,null,null,null,null,null,null,null,null,null,null,null,null,null,null,null,null,null,null,null,null,null,null,null,null,null,null,null,null,null,null,null,null,null,null,null,null,null,null,null,null,null,null,null,null,null,null,null,null,null,null,null,null,null,null,null,null,null,null,null,null,null,null,null,null,null,null,null,null,null,null,null,null,null,null,null,null,null,null,null,null,null,null,null,null,null,null,null,null,null,null,null,null,null,null,null,null,null,null,null,null,null,null,null,null,null,null,null,null,null,null,null,null,null,null,null,null,null,null,null,null,null,null,null,null,null,null,null,null,null,null,null,null,null,null,null,null,null,null,null,null,null,null,null,null,null,null,null,null,null,null,null,null,null,null,null,null,null,null,null,null,null,null,null,null,null,null,null,null,null,null,null,null,null,null,null,null,null,null,null,null,null,null,null,null,null,null,null,null,null,null,null,null,null,null,null,null,null,null,null,null,null,null,null,null,null,null,null,null,null,null,null,null,null,null,null,null,null,null,null,null,null,null,null,null,null,null,null,null,null,null,null,null,null,null,null,null,null,null,null,null,null,null,null,null,null,null,null,null,null,null,null,null,null,null,null,null,null,null,null,null,null,null,null,null,null,null,null,null,null,null,null,null,null,null,null,null,null,null,null,null,null,null,null,null,null,null,null,null,null,null,null,null,null,null,null,null,null,null,null,null,null,null,null,null,null,null,null,null,null,null,null,null,null,null,null,null,null,null,null,null,null,null,null,null,null,null,null,null,null,null,null,null,null,null,null,null,null,null,null,null,null,null,null,null,null,null,null,null,null,null,null,null,null,null,null,null,null,null,null,null,null,null,null,null,null,null,null,null,null,null,null,null,null,null,null,null,null,null,null,null,null,null,null,null,null,null,null,null,null,null,null,null,null,null,null,null,null,null,null,null,null,null,null,null,null,null,null,null,null,null,null,null,null,null,null,null,null,null,null,null,null,null,null,null,null,null,null,null,null,null,null,null,null,null,null,null,null,null,null,null,null,null,null,null,null,null,null,null,null,null,null,null,null,null,null,null,null,null,null,null,null,null,null,null,null,null,null,null,null,null,null,null,null,null,null,null,null,null,null,null,null,null,null,null,null,null,null,null,null,null,null,null,null,null,null,null,null,null,null,null,null,null,null,null,null,null,null,null,null,null,null,null,null,null,null,null,null,null,null,null,null,null,null,null,null,null,null,null,null,null,null,null,null,null,null,null,null,null,null,null,null,null,null,null,null,null,null,null,null,null,null,null,null,null,null,null,null,null,null,null,null,null,null,null,null,null,null,null,null,null,null,null,null,null,null,null,null,null,null,null,null,null,null,null,null,null,null,null,null,null,null,null,null,null,null,null,null,null,null,null,null,null,null,null,null,null,null,null,null,null,null,null,null,null,null,null,null,null,null,null,null,null,null,null,null,null,null,null,null,null,null,null,null,null,null,null,null,null,null,null,null,null,null,null,null,null,null,null,null,null,null,null,null,null,null,null,null,null,null,null,null,null,null,null,null,null,null,null,null,null,null,null,null,null,null,null,null,null,null,null,null,null,null,null,null,null,null,null,null,null,null,null,null,null,null,null,null,null,null,null,null,null,null,null,null,null,null,null,null,null,null,null,null,null,null,null,null,null,null,null,null,null,null,null,null,null,null,null,null,null,null,null,null,null,null,null,null,null,null,null,null,null,null,null,null,null,null,null,null,null,null,null,null,null,null,null,null,null,null,null,null,null,null,null,null,null,null,null,null,null,null,null,null,null,null,null,null,null,null,null,null,null,null,null,null,null,null,null,null,null,null,null,null,null,null,null,null,null,null,null,null,null,null,null,null,null,null,null,null,null,null,null,null,null,null,null,null,null,null,null,null,null,null,null,null,null,null,null,null,null,null,null,null,null,null,null,null,null,null,null,null,null,null,null,null,null,null,null,null,null,null,null,null,null,null,null,null,null,null,null,null,null,null,null,null,null,null,null,null,null,null,null,null,null,null,null,null,null,null,null,null,null,null,null,null,null,null,null,null,null,null,null,null,null,null,null,null,null,null,null,null,null,null,null,null,null,null,null,null,null,null,null,null,null,null,null,null,null,null,null,null,null,null,null,null,null,null,null,null,null,null,null,null,null,null,null,null,null,null,null,null,null,null,null,null,null,null,null,null,null,null,null,null,null,null,null,null,null,null,null,null,null,null,null,null,null,null,null,null,null,null,null,null,null,null,null,null,null,null,null,null,null,null,null,null,null,null,null,null,null,null,null,null,null,null,null,null,null,null,null,null,null,null,null,null,null,null,null,null,null,null,null,null,null,null,null,null,null,null,null,null,null,null,null,null,null,null,null,null,null,null,null,null,null,null,null,null,null,null,null,null,null,null,null,null,null,null,null,null,null,null,null,null,null,null,null,null,null,null,null,null,null,null,null,null,null,null,null,null,null,null,null,null,null,null,null,null,null,null,null,null,null,null,null,null,null,null,null,null,null,null,null,null,null,null,null,null,null,null,null,null,null,null,null,null,null,null,null,null,null,null,null,null,null,null,null,null,null,null,null,null,null,null,null,null,null,null,null,null,null,null,null,null,null,null,null,null,null,null,null,null,null,null,null,null,null,null,null,null,null,null,null,null,null,null,null,null,null,null,null,null,null,null,null,null,null,null,null,null,null,null,null,null,null,null,null,null,null,null,null,null,null,null,null,null,null,null,null,null,null,null,null,null,null,null,null,null,null,null,null,null,null,null,null,null,null,null,null,null,null,null,null,null,null,null,null,null,null,null,null,null,null,null,null,null,null,null,null,null,null,null,null,null,null,null,null,null,null,null,null,null,null,null,null,null,null,null,null,null,null,null,null,null,null,null,null,null,null,null,null,null,null,null,null,null,null,null,null,null,null,null,null,null,null,null,null,null,null,null,null,null,null,null,null,null,null,null,null,null,null,null,null,null,null,null,null,null,null,null,null,null,null,null,null,null,null,null,null,null,null,null,null,null,null,null,null,null,null,null,null,null,null,null,null,null,null,null,null,null,null,null,null,null,null,null,null,null,null,null,null,null,null,null,null,null,null,null,null,null,null,null,null,null,null,null,null,null,null,null,null,null,null,null,null,null,null,null,null,null,null,null,null,null,null,null,null,null,null,null,null,null,null,null,null,null,null,null,null,null,null,null,null,null,null,null,null,null,null,null,null,null,null,null,null,null,null,null,null,null,null,null,null,null,null,null,null,null,null,null,null,null,null,null,null,null,null,null,null,null,null,null,null,null,null,null,null,null,null,null,null,null,null,null,null,null,null,null,null,null,null,null,null,null,null,null,null,null,null,null,null,null,null,null,null,null,null,null,null,null,null,null,null,null,null,null,null,null,null,null,null,null,null,null,null,null,null,null,null,null,null,null,null,null,null,null,null,null,null,null,null,null,null,null,null,null,null,null,null,null,null,null,null,null,null,null,null,null,null,null,null,null,null,null,null,null,null,null,null,null,null,null,null,null,null,null,null,null,null,null,null,null,null,null,null,null,null,null,null,null,null,null,null,null,null,null,null,null,null,null,null,null,null,null,null,null,null,null,null,null,null,null,null,null,null,null,null,null,null,null,null,null,null,null,null,null,null,null,null,null,null,null,null,null,null,null,null,null,null,null,null,null,null,null,null,null,null,null,null,null,null,null,null,null,null,null,null,null,null,null,null,null,null,null,null,null,null,null,null,null,null,null,null,null,null,null,null,null,null,null,null,null,null,null,null,null,null,null,null,null,null,null,null,null,null,null,null,null,null,null,null,null,null,null,null,null,null,null,null,null,null,null,null,null,null,null,null,null,null,null,null,null,null,null,null,null,null,null,null,null,null,null,null,null,null,null,null,null,null,null,null,null,null,null,null,null,null,null,null,null,null,null,null,null,null,null,null,null,null,null,null,null,null,null,null,null,null,null,null,null,null,null,null,null,null,null,null,null,null,null,null,null,null,null,null,null,null,null,null,null,null,null,null,null,null,null,null,null,null,null,null,null,null,null,null,null,null,null,null,null,null,null,null,null,null,null,null,null,null,null,null,null,null,null,null,null,null,null,null,null,null,null,null,null,null,null,null,null,null,null,null,null,null,null,null,null,null,null,null,null,null,null,null,null,null,null,null,null,null,null,null,null,null,null,null,null,null,null,null,null,null,null,null,null,null,null,null,null,null,null,null,null,null,null,null,null,null,null,null,null,null,null,null,null,null,null,null,null,null,null,null,null,null,null,null,null,null,null,null,null,null,null,null,null,null,null,null,null,null,null,null,null,null,null,null,null,null,null,null,null,null,null,null,null,null,null,null,null,null,null,null,null,null,null,null,null,null,null,null,null,null,null,null,null,null,null,null,null,null,null,null,null,null,null,null,null,null,null,null,null,null,null,null,null,null,null,null,null,null,null,null,null,null,null,null,null,null,null,null,null,null,null,null,null,null,null,null,null,null,null,null,null,null,null,null,null,null,null,null,null,null,null,null,null,null,null,null,null,null,null,null,null,null,null,null,null,null,null,null,null,null,null,null,null,null,null,null,null,null,null,null,null,null,null,null,null,null,null,null,null,null,null,null,null,null,null,null,null,null,null,null,null,null,null,null,null,null,null,null,null,null,null,null,null,null,null,null,null,null,null,null,null,null,null,null,null,null,null,null,null,null,null,null,null,null,null,null,null,null,null,null,null,null,null,null,null,null,null,null,null,null,null,null,null,null,null,null,null,null,null,null,null,null,null,null,null,null,null,null,null,null,null,null,null,null,null,null,null,null,null,null,null,null,null,null,null,null,null,null,null,null,null,null,null,null,null,null,null,null,null,null,null,null,null,null,null,null,null,null,null,null,null,null,null,null,null,null,null,null,null,null,null,null,null,null,null,null,null,null,null,null,null,null,null,null,null,null,null,null,null,null,null,null,null,null,null,null,null,null,null,null,null,null,null,null,null,null,null,null,null,null,null,null,null,null,null,null,null,null,null,null,null,null,null,null,null,null,null,null,null,null,null,null,null,null,null,null,null,null,null,null,null,null,null,null,null,null,null,null,null,null,null,null,null,null,null,null,null,null,null,null,null,null,null,null,null,null,null,null,null,null,null,null,null,null,null,null,null,null,null,null,null,null,null,null,null,null,null,null,null,null,null,null,null,null,null,null,null,null,null,null,null,null,null,null,null,null,null,null,null,null,null,null,null,null,null,null,null,null,null,null,null,null,null,null,null,null,null,null,null,null,null,null,null,null,null,null,null,null,null,null,null,null,null,null,null,null,null,null,null,null,null,null,null,null,null,null,null,null,null,null,null,null,null,null,null,null,null,null,null,null,null,null,null,null,null,null,null,null,null,null,null,null,null,null,null,null,null,null,null,null,null,null,null,null,null,null,null,null,null,null,null,null,null,null,null,null,null,null,null,null,null,null,null,null,null,null,null,null,null,null,null,null,null,null,null,null,null,null,null,null,null,null,null,null,null,null,null,null,null,null,null,null,null,null,null,null,null,null,null,null,null,null,null,null,null,null,null,null,null,null,null,null,null,null,null,null,null,null,null,null,null,null,null,null,null,null,null,null,null,null,null,null,null,null,null,null,null,null,null,null,null,null,null,null,null,null,null,null,null,null,null,null,null,null,null,null,null,null,null,null,null,null,null,null,null,null,null,null,null,null,null,null,null,null,null,null,null,null,null,null,null,null,null,null,null,null,null,null,null,null,null,null,null,null,null,null,null,null,null,null,null,null,null,null,null,null,null,null,null,null,null,null,null,null,null,null,null,null,null,null,null,null,null,null,null,null,null,null,null,null,null,null,null,null,null,null,null,null,null,null,null,null,null,null,null,null,null,null,null,null,null,null,null,null,null,null,null,null,null,null,null,null,null,null,null,null,null,null,null,null,null,null,null,null,null,null,null,null,null,null,null,null,null,null,null,null,null,null,null,null,null,null,null,null,null,null,null,null,null,null,null,null,null,null,null,null,null,null,null,null,null,null,null,null,null,null,null,null,null,null,null,null,null,null,null,null,null,null,null,null,null,null,null,null,null,null,null,null,null,null,null,null,null,null,null,null,null,null,null,null,null,null,null,null,null,null,null,null,null,null,null,null,null,null,null,null,null,null,null,null,null,null,null,null,null,null,null,null,null,null,null,null,null,null,null,null,null,null,null,null,null,null,null,null,null,null,null,null,null,null,null,null,null,null,null,null,null,null,null,null,null,null,null,null,null,null,null,null,null,null,null,null,null,null,null,null,null,null,null,null,null,null,null,null,null,null,null,null,null,null,null,null,null,null,null,null,null,null,null,null,null,null,null,null,null,null,null,null,null,null,null,null,null,null,null,null,null,null,null,null,null,null,null,null,null,null,null,null,null,null,null,null,null,null,null,null,null,null,null,null,null,null,null,null,null,null,null,null,null,null,null,null,null,null,null,null,null,null,null,null,null,null,null,null,null,null,null,null,null,null,null,null,null,null,null,null,null,null,null,null,null,null,null,null,null,null,null,null,null,null,null,null,null,null,null,null,null,null,null,null,null,null,null,null,null,null,null,null,null,null,null,null,null,null,null,null,null,null,null,null,null,null,null,null,null,null,null,null,null,null,null,null,null,null,null,null,null,null,null,null,null,null,null,null,null,null,null,null,null,null,null,null,null,null,null,null,null,null,null,null,null,null,null,null,null,null,null,null,null,null,null,null,null,null,null,null,null,null,null,null,null,null,null,null,null,null,null,null,null,null,null,null,null,null,null,null,null,null,null,null,null,null,null,null,null,null,null,null,null,null,null,null,null,null,null,null,null,null,null,null,null,null,null,null,null,null,null,null,null,null,null,null,null,null,null,null,null,null,null,null,null,null,null,null,null,null,null,null,null,null,null,null,null,null,null,null,null,null,null,null,null,null,null,null,null,null,null,null,null,null,null,null,null,null,null,null,null,null,null,null,null,null,null,null,null,null,null,null,null,null,null,null,null,null,null,null,null,null,null,null,null,null,null,null,null,null,null,null,null,null,null,null,null,null,null,null,null,null,null,null,null,null,null,null,null,null,null,null,null,null,null,null,null,null,null,null,null,null,null,null,null,null,null,null,null,null,null,null,null,null,null,null,null,null,null,null,null,null,null,null,null,null,null,null,null,null,null,null,null,null,null,null,null,null,null,null,null,null,null,null,null,null,null,null,null,null,null,null,null,null,null,null,null,null,null,null,null,null,null,null,null,null,null,null,null,null,null,null,null,null,null,null,null,null,null,null,null,null,null,null,null,null,null,null,null,null,null,null,null,null,null,null,null,null,null,null,null,null,null,null,null,null,null,null,null,null,null,null,null,null,null,null,null,null,null,null,null,null,null,null,null,null,null,null,null,null,null,null,null,null,null,null,null,null,null,null,null,null,null,null,null,null,null,null,null,null,null,null,null,null,null,null,null,null,null,null,null,null,null,null,null,null,null,null,null,null,null,null,null,null,null,null,null,null,null,null,null,null,null,null,null,null,null,null,null,null,null,null,null,null,null,null,null,null,null,null,null,null,null,null,null,null,null,null,null,null,null,null,null,null,null,null,null,null,null,null,null,null,null,null,null,null,null,null,null,null,null,null,null,null,null,null,null,null,null,null,null,null,null,null,null,null,null,null,null,null,null,null,null,null,null,null,null,null,null,null,null,null,null,null,null,null,null,null,null,null,null,null,null,null,null,null,null,null,null,null,null,null,null,null,null,null,null,null,null,null,null,null,null,null,null,null,null,null,null,null,null,null,null,null,null,null,null,null,null,null,null,null,null,null,null,null,null,null,null,null,null,null,null,null,null,null,null,null,null,null,null,null,null,null,null,null,null,null,null,null,null,null,null,null,null,null,null,null,null,null,null,null,null,null,null,null,null,null,null,null,null,null,null,null,null,null,null,null,null,null,null,null,null,null,null,null,null,null,null,null,null,null,null,null,null,null,null,null,null,null,null,null,null,null,null,null,null,null,null,null,null,null,null,null,null,null,null,null,null,null,null,null,null,null,null,null,null,null,null,null,null,null,null,null,null,null,null,null,null,null,null,null,null,null,null,null,null,null,null,null,null,null,null,null,null,null,null,null,null,null,null,null,null,null,null,null,null,null,null,null,null,null,null,null,null,null,null,null,null,null,null,null,null,null,null,null,null,null,null,null,null,null,null,null,null,null,null,null,null,null,null,null,null,null,null,null,null,null,null,null,null,null,null,null,null,null,null,null,null,null,null,null,null,null,null,null,null,null,null,null,null,null,null,null,null,null,null,null,null,null,null,null,null,null,null,null,null,null,null,null,null,null,null,null,null,null,null,null,null,null,null,null,null,null,null,null,null,null,null,null,null,null,null,null,null,null,null,null,null,null,null,null,null,null,null,null,null,null,null,null,null,null,null,null,null,null,null,null,null,null,null,null,null,null,null,null,null,null,null,null,null,null,null,null,null,null,null,null,null,null,null,null,null,null,null,null,null,null,null,null,null,null,null,null,null,null,null,null,null,null,null,null,null,null,null,null,null,null,null,null,null,null,null,null,null,null,null,null,null,null,null,null,null,null,null,null,null,null,null,null,null,null,null,null,null,null,null,null,null,null,null,null,null,null,null,null,null,null,null,null,null,null,null,null,null,null,null,null,null,null,null,null,null,null,null,null,null,null,null,null,null,null,null,null,null,null,null,null,null,null,null,null,null,null,null,null,null,null,null,null,null,null,null,null,null,null,null,null,null,null,null,null,null,null,null,null,null,null,null,null,null,null,null,null,null,null,null,null,null,null,null,null,null,null,null,null,null,null,null,null,null,null,null,null,null,null,null,null,null,null,null,null,null,null,null,null,null,null,null,null,null,null,null,null,null,null,null,null,null,null,null,null,null,null,null,null,null,null,null,null,null,null,null,null,null,null,null,null,null,null,null,null,null,null,null,null,null,null,null,null,null,null,null,null,null,null,null,null,null,null,null,null,null,null,null,null,null,null,null,null,null,null,null,null,null,null,null,null,null,null,null,null,null,null,null,null,null,null,null,null,null,null,null,null,null,null,null,null,null,null,null,null,null,null,null,null,null,null,null,null,null,null,null,null,null,null,null,null,null,null,null,null,null,null,null,null,null,null,null,null,null,null,null,null,null,null,null,null,null,null,null,null,null,null,null,null,null,null,null,null,null,null,null,null,null,null,null,null,null,null,null,null,null,null,null,null,null,null,null,null,null,null,null,null,null,null,null,null,null,null,null,null,null,null,null,null,null,null,null,null,null,null,null,null,null,null,null,null,null,null,null,null,null,null,null,null,null,null,null,null,null,null,null,null,null,null,null,null,null,null,null,null,null,null,null,null,null,null,null,null,null,null,null,null,null,null,null,null,null,null,null,null,null,null,null,null,null,null,null,null,null,null,null,null,null,null,null,null,null,null,null,null,null,null,null,null,null,null,null,null,null,null,null,null,null,null,null,null,null,null,null,null,null,null,null,null,null,null,null,null,null,null,null,null,null,null,null,null,null,null,null,null,null,null,null,null,null,null,null,null,null,null,null,null,null,null,null,null,null,null,null,null,null,null,null,null,null,null,null,null,null,null,null,null,null,null,null,null,null,null,null,null,null,null,null,null,null,null,null,null,null,null,null,null,null,null,null,null,null,null,null,null,null,null,null,null,null,null,null,null,null,null,null,null,null,null,null,null,null,null,null,null,null,null,null,null,null,null,null,null,null,null,null,null,null,null,null,null,null,null,null,null,null,null,null,null,null,null,null,null,null,null,null,null,null,null,null,null,null,null,null,null,null,null,null,null,null,null,null,null,null,null,null,null,null,null,null,null,null,null,null,null,null,null,null,null,null,null,null,null,null,null,null,null,null,null,null,null,null,null,null,null,null,null,null,null,null,null,null,null,null,null,null,null,null,null,null,null,null,null,null,null,null,null,null,null,null,null,null,null,null,null,null,null,null,null,null,null,null,null,null,null,null,null,null,null,null,null,null,null,null,null,null,null,null,null,null,null,null,null,null,null,null,null,null,null,null,null,null,null,null,null,null,null,null,null,null,null,null,null,null,null,null,null,null,null,null,null,null,null,null,null,null,null,null,null,null,null,null,null,null,null,null,null,null,null,null,null,null,null,null,null,null,null,null,null,null,null,null,null,null,null,null,null,null,null,null,null,null,null,null,null,null,null,null,null,null,null,null,null,null,null,null,null,null,null,null,null,null,null,null,null,null,null,null,null,null,null,null,null,null,null,null,null,null,null,null,null,null,null,null,null,null,null,null,null,null,null,null,null,null,null,null,null,null,null,null,null,null,null,null,null,null,null,null,null,null,null,null,null,null,null,null,null,null,null,null,null,null,null,null,null,null,null,null,null,null,null,null,null,null,null,null,null,null,null,null,null,null,null,null,null,null,null,null,null,null,null,null,null,null,null,null,null,null,null,null,null,null,null,null,null,null,null,null,null,null,null,null,null,null,null,null,null,null,null,null,null,null,null,null,null,null,null,null,null,null,null,null,null,null,null,null,null,null,null,null,null,null,null,null,null,null,null,null,null,null,null,null,null,null,null,null,null,null,null,null,null,null,null,null,null,null,null,null,null,null,null,null,null,null,null,null,null,null,null,null,null,null,null,null,null,null,null,null,null,null,null,null,null,null,null,null,null,null,null,null,null,null,null,null,null,null,null,null,null,null,null,null,null,null,null,"CUMPLIMIENTO","OBSERVACIONES"]
[null,"N°","Tipo","Descripción",null,"Temporalidad (dentro de los últimos)",null,"N° Proyectos","Monto mínimo por proyecto / contrato"]
[null,1,"General","Experiencia en auditoría externa a instituciones financieras públicas o privadas.",null,"En los últimos 15 años",null,"1 proyecto","No requerido"]
[null,null,null,"Medios de verificación: Acta entrega recepción definitiva, o Contrato y factura, o Contrato y cualquier otro documento que se pueda verificar el objeto, monto de contrato, plazos de ejecución"]
[null,2,"Específica","Experiencia en auditoría externa a fondos entregados por organismos internacionales / multilaterales.",null,"En los últimos 15 años",null,"1 proyecto","No requerido"]
[null,null,null,"Medios de verificación: Acta entrega recepción definitiva, o Contrato y factura, o Contrato y cualquier otro documento que se pueda verificar el objeto, monto de contrato, plazos de ejecución"]
[null,"Nota: Puede cargar la cantidad de proyectos que considere validan la experiencia general y especifica del oferente.\nEn un archivo adjunto debe incorporar todos los documentos con los cuales valida la experiencia del oferente."]
[null,"No. ","Tipo de experiencia","Contratante","Objeto de contrato","Valor del Contrato","Fecha de Inicio","Fecha finalización","Medio  de Verificación\nIncorpore y anexe el medio de verificación conforme el requerimiento para la experiencia (Acta entrega recepción definitiva, o contrato y factura, o cualquier otro documento que se pueda verificar el objeto, monto de contrato, plazos de ejecución)",null,null,null,null,null,null,null,null,null,null,null,null,null,null,null,null,null,null,null,null,null,null,null,null,null,null,null,null,null,null,null,null,null,null,null,null,null,null,null,null,null,null,null,null,null,null,null,null,null,null,null,null,null,null,null,null,null,null,null,null,null,null,null,null,null,null,null,null,null,null,null,null,null,null,null,null,null,null,null,null,null,null,null,null,null,null,null,null,null,null,null,null,null,null,null,null,null,null,null,null,null,null,null,null,null,null,null,null,null,null,null,null,null,null,null,null,null,null,null,null,null,null,null,null,null,null,null,null,null,null,null,null,null,null,null,null,null,null,null,null,null,null,null,null,null,null,null,null,null,null,null,null,null,null,null,null,null,null,null,null,null,null,null,null,null,null,null,null,null,null,null,null,null,null,null,null,null,null,null,null,null,null,null,null,null,null,null,null,null,null,null,null,null,null,null,null,null,null,null,null,null,null,null,null,null,null,null,null,null,null,null,null,null,null,null,null,null,null,null,null,null,null,null,null,null,null,null,null,null,null,null,null,null,null,null,null,null,null,null,null,null,null,null,null,null,null,null,null,null,null,null,null,null,null,null,null,null,null,null,null,null,null,null,null,null,null,null,null,null,null,null,null,null,null,null,null,null,null,null,null,null,null,null,null,null,null,null,null,null,null,null,null,null,null,null,null,null,null,null,null,null,null,null,null,null,null,null,null,null,null,null,null,null,null,null,null,null,null,null,null,null,null,null,null,null,null,null,null,null,null,null,null,null,null,null,null,null,null,null,null,null,null,null,null,null,null,null,null,null,null,null,null,null,null,null,null,null,null,null,null,null,null,null,null,null,null,null,null,null,null,null,null,null,null,null,null,null,null,null,null,null,null,null,null,null,null,null,null,null,null,null,null,null,null,null,null,null,null,null,null,null,null,null,null,null,null,null,null,null,null,null,null,null,null,null,null,null,null,null,null,null,null,null,null,null,null,null,null,null,null,null,null,null,null,null,null,null,null,null,null,null,null,null,null,null,null,null,null,null,null,null,null,null,null,null,null,null,null,null,null,null,null,null,null,null,null,null,null,null,null,null,null,null,null,null,null,null,null,null,null,null,null,null,null,null,null,null,null,null,null,null,null,null,null,null,null,null,null,null,null,null,null,null,null,null,null,null,null,null,null,null,null,null,null,null,null,null,null,null,null,null,null,null,null,null,null,null,null,null,null,null,null,null,null,null,null,null,null,null,null,null,null,null,null,null,null,null,null,null,null,null,null,null,null,null,null,null,null,null,null,null,null,null,null,null,null,null,null,null,null,null,null,null,null,null,null,null,null,null,null,null,null,null,null,null,null,null,null,null,null,null,null,null,null,null,null,null,null,null,null,null,null,null,null,null,null,null,null,null,null,null,null,null,null,null,null,null,null,null,null,null,null,null,null,null,null,null,null,null,null,null,null,null,null,null,null,null,null,null,null,null,null,null,null,null,null,null,null,null,null,null,null,null,null,null,null,null,null,null,null,null,null,null,null,null,null,null,null,null,null,null,null,null,null,null,null,null,null,null,null,null,null,null,null,null,null,null,null,null,null,null,null,null,null,null,null,null,null,null,null,null,null,null,null,null,null,null,null,null,null,null,null,null,null,null,null,null,null,null,null,null,null,null,null,null,null,null,null,null,null,null,null,null,null,null,null,null,null,null,null,null,null,null,null,null,null,null,null,null,null,null,null,null,null,null,null,null,null,null,null,null,null,null,null,null,null,null,null,null,null,null,null,null,null,null,null,null,null,null,null,null,null,null,null,null,null,null,null,null,null,null,null,null,null,null,null,null,null,null,null,null,null,null,null,null,null,null,null,null,null,null,null,null,null,null,null,null,null,null,null,null,null,null,null,null,null,null,null,null,null,null,null,null,null,null,null,null,null,null,null,null,null,null,null,null,null,null,null,null,null,null,null,null,null,null,null,null,null,null,null,null,null,null,null,null,null,null,null,null,null,null,null,null,null,null,null,null,null,null,null,null,null,null,null,null,null,null,null,null,null,null,null,null,null,null,null,null,null,null,null,null,null,null,null,null,null,null,null,null,null,null,null,null,null,null,null,null,null,null,null,null,null,null,null,null,null,null,null,null,null,null,null,null,null,null,null,null,null,null,null,null,null,null,null,null,null,null,null,null,null,null,null,null,null,null,null,null,null,null,null,null,null,null,null,null,null,null,null,null,null,null,null,null,null,null,null,null,null,null,null,null,null,null,null,null,null,null,null,null,null,null,null,null,null,null,null,null,null,null,null,null,null,null,null,null,null,null,null,null,null,null,null,null,null,null,null,null,null,null,null,null,null,null,null,null,null,null,null,null,null,null,null,null,null,null,null,null,null,null,null,null,null,null,null,null,null,null,null,null,null,null,null,null,null,null,null,null,null,null,null,null,null,null,null,null,null,null,null,null,null,null,null,null,null,null,null,null,null,null,null,null,null,null,null,null,null,null,null,null,null,null,null,null,null,null,null,null,null,null,null,null,null,null,null,null,null,null,null,null,null,null,null,null,null,null,null,null,null,null,null,null,null,null,null,null,null,null,null,null,null,null,null,null,null,null,null,null,null,null,null,null,null,null,null,null,null,null,null,null,null,null,null,null,null,null,null,null,null,null,null,null,null,null,null,null,null,null,null,null,null,null,null,null,null,null,null,null,null,null,null,null,null,null,null,null,null,null,null,null,null,null,null,null,null,null,null,null,null,null,null,null,null,null,null,null,null,null,null,null,null,null,null,null,null,null,null,null,null,null,null,null,null,null,null,null,null,null,null,null,null,null,null,null,null,null,null,null,null,null,null,null,null,null,null,null,null,null,null,null,null,null,null,null,null,null,null,null,null,null,null,null,null,null,null,null,null,null,null,null,null,null,null,null,null,null,null,null,null,null,null,null,null,null,null,null,null,null,null,null,null,null,null,null,null,null,null,null,null,null,null,null,null,null,null,null,null,null,null,null,null,null,null,null,null,null,null,null,null,null,null,null,null,null,null,null,null,null,null,null,null,null,null,null,null,null,null,null,null,null,null,null,null,null,null,null,null,null,null,null,null,null,null,null,null,null,null,null,null,null,null,null,null,null,null,null,null,null,null,null,null,null,null,null,null,null,null,null,null,null,null,null,null,null,null,null,null,null,null,null,null,null,null,null,null,null,null,null,null,null,null,null,null,null,null,null,null,null,null,null,null,null,null,null,null,null,null,null,null,null,null,null,null,null,null,null,null,null,null,null,null,null,null,null,null,null,null,null,null,null,null,null,null,null,null,null,null,null,null,null,null,null,null,null,null,null,null,null,null,null,null,null,null,null,null,null,null,null,null,null,null,null,null,null,null,null,null,null,null,null,null,null,null,null,null,null,null,null,null,null,null,null,null,null,null,null,null,null,null,null,null,null,null,null,null,null,null,null,null,null,null,null,null,null,null,null,null,null,null,null,null,null,null,null,null,null,null,null,null,null,null,null,null,null,null,null,null,null,null,null,null,null,null,null,null,null,null,null,null,null,null,null,null,null,null,null,null,null,null,null,null,null,null,null,null,null,null,null,null,null,null,null,null,null,null,null,null,null,null,null,null,null,null,null,null,null,null,null,null,null,null,null,null,null,null,null,null,null,null,null,null,null,null,null,null,null,null,null,null,null,null,null,null,null,null,null,null,null,null,null,null,null,null,null,null,null,null,null,null,null,null,null,null,null,null,null,null,null,null,null,null,null,null,null,null,null,null,null,null,null,null,null,null,null,null,null,null,null,null,null,null,null,null,null,null,null,null,null,null,null,null,null,null,null,null,null,null,null,null,null,null,null,null,null,null,null,null,null,null,null,null,null,null,null,null,null,null,null,null,null,null,null,null,null,null,null,null,null,null,null,null,null,null,null,null,null,null,null,null,null,null,null,null,null,null,null,null,null,null,null,null,null,null,null,null,null,null,null,null,null,null,null,null,null,null,null,null,null,null,null,null,null,null,null,null,null,null,null,null,null,null,null,null,null,null,null,null,null,null,null,null,null,null,null,null,null,null,null,null,null,null,null,null,null,null,null,null,null,null,null,null,null,null,null,null,null,null,null,null,null,null,null,null,null,null,null,null,null,null,null,null,null,null,null,null,null,null,null,null,null,null,null,null,null,null,null,null,null,null,null,null,null,null,null,null,null,null,null,null,null,null,null,null,null,null,null,null,null,null,null,null,null,null,null,null,null,null,null,null,null,null,null,null,null,null,null,null,null,null,null,null,null,null,null,null,null,null,null,null,null,null,null,null,null,null,null,null,null,null,null,null,null,null,null,null,null,null,null,null,null,null,null,null,null,null,null,null,null,null,null,null,null,null,null,null,null,null,null,null,null,null,null,null,null,null,null,null,null,null,null,null,null,null,null,null,null,null,null,null,null,null,null,null,null,null,null,null,null,null,null,null,null,null,null,null,null,null,null,null,null,null,null,null,null,null,null,null,null,null,null,null,null,null,null,null,null,null,null,null,null,null,null,null,null,null,null,null,null,null,null,null,null,null,null,null,null,null,null,null,null,null,null,null,null,null,null,null,null,null,null,null,null,null,null,null,null,null,null,null,null,null,null,null,null,null,null,null,null,null,null,null,null,null,null,null,null,null,null,null,null,null,null,null,null,null,null,null,null,null,null,null,null,null,null,null,null,null,null,null,null,null,null,null,null,null,null,null,null,null,null,null,null,null,null,null,null,null,null,null,null,null,null,null,null,null,null,null,null,null,null,null,null,null,null,null,null,null,null,null,null,null,null,null,null,null,null,null,null,null,null,null,null,null,null,null,null,null,null,null,null,null,null,null,null,null,null,null,null,null,null,null,null,null,null,null,null,null,null,null,null,null,null,null,null,null,null,null,null,null,null,null,null,null,null,null,null,null,null,null,null,null,null,null,null,null,null,null,null,null,null,null,null,null,null,null,null,null,null,null,null,null,null,null,null,null,null,null,null,null,null,null,null,null,null,null,null,null,null,null,null,null,null,null,null,null,null,null,null,null,null,null,null,null,null,null,null,null,null,null,null,null,null,null,null,null,null,null,null,null,null,null,null,null,null,null,null,null,null,null,null,null,null,null,null,null,null,null,null,null,null,null,null,null,null,null,null,null,null,null,null,null,null,null,null,null,null,null,null,null,null,null,null,null,null,null,null,null,null,null,null,null,null,null,null,null,null,null,null,null,null,null,null,null,null,null,null,null,null,null,null,null,null,null,null,null,null,null,null,null,null,null,null,null,null,null,null,null,null,null,null,null,null,null,null,null,null,null,null,null,null,null,null,null,null,null,null,null,null,null,null,null,null,null,null,null,null,null,null,null,null,null,null,null,null,null,null,null,null,null,null,null,null,null,null,null,null,null,null,null,null,null,null,null,null,null,null,null,null,null,null,null,null,null,null,null,null,null,null,null,null,null,null,null,null,null,null,null,null,null,null,null,null,null,null,null,null,null,null,null,null,null,null,null,null,null,null,null,null,null,null,null,null,null,null,null,null,null,null,null,null,null,null,null,null,null,null,null,null,null,null,null,null,null,null,null,null,null,null,null,null,null,null,null,null,null,null,null,null,null,null,null,null,null,null,null,null,null,null,null,null,null,null,null,null,null,null,null,null,null,null,null,null,null,null,null,null,null,null,null,null,null,null,null,null,null,null,null,null,null,null,null,null,null,null,null,null,null,null,null,null,null,null,null,null,null,null,null,null,null,null,null,null,null,null,null,null,null,null,null,null,null,null,null,null,null,null,null,null,null,null,null,null,null,null,null,null,null,null,null,null,null,null,null,null,null,null,null,null,null,null,null,null,null,null,null,null,null,null,null,null,null,null,null,null,null,null,null,null,null,null,null,null,null,null,null,null,null,null,null,null,null,null,null,null,null,null,null,null,null,null,null,null,null,null,null,null,null,null,null,null,null,null,null,null,null,null,null,null,null,null,null,null,null,null,null,null,null,null,null,null,null,null,null,null,null,null,null,null,null,null,null,null,null,null,null,null,null,null,null,null,null,null,null,null,null,null,null,null,null,null,null,null,null,null,null,null,null,null,null,null,null,null,null,null,null,null,null,null,null,null,null,null,null,null,null,null,null,null,null,null,null,null,null,null,null,null,null,null,null,null,null,null,null,null,null,null,null,null,null,null,null,null,null,null,null,null,null,null,null,null,null,null,null,null,null,null,null,null,null,null,null,null,null,null,null,null,null,null,null,null,null,null,null,null,null,null,null,null,null,null,null,null,null,null,null,null,null,null,null,null,null,null,null,null,null,null,null,null,null,null,null,null,null,null,null,null,null,null,null,null,null,null,null,null,null,null,null,null,null,null,null,null,null,null,null,null,null,null,null,null,null,null,null,null,null,null,null,null,null,null,null,null,null,null,null,null,null,null,null,null,null,null,null,null,null,null,null,null,null,null,null,null,null,null,null,null,null,null,null,null,null,null,null,null,null,null,null,null,null,null,null,null,null,null,null,null,null,null,null,null,null,null,null,null,null,null,null,null,null,null,null,null,null,null,null,null,null,null,null,null,null,null,null,null,null,null,null,null,null,null,null,null,null,null,null,null,null,null,null,null,null,null,null,null,null,null,null,null,null,null,null,null,null,null,null,null,null,null,null,null,null,null,null,null,null,null,null,null,null,null,null,null,null,null,null,null,null,null,null,null,null,null,null,null,null,null,null,null,null,null,null,null,null,null,null,null,null,null,null,null,null,null,null,null,null,null,null,null,null,null,null,null,null,null,null,null,null,null,null,null,null,null,null,null,null,null,null,null,null,null,null,null,null,null,null,null,null,null,null,null,null,null,null,null,null,null,null,null,null,null,null,null,null,null,null,null,null,null,null,null,null,null,null,null,null,null,null,null,null,null,null,null,null,null,null,null,null,null,null,null,null,null,null,null,null,null,null,null,null,null,null,null,null,null,null,null,null,null,null,null,null,null,null,null,null,null,null,null,null,null,null,null,null,null,null,null,null,null,null,null,null,null,null,null,null,null,null,null,null,null,null,null,null,null,null,null,null,null,null,null,null,null,null,null,null,null,null,null,null,null,null,null,null,null,null,null,null,null,null,null,null,null,null,null,null,null,null,null,null,null,null,null,null,null,null,null,null,null,null,null,null,null,null,null,null,null,null,null,null,null,null,null,null,null,null,null,null,null,null,null,null,null,null,null,null,null,null,null,null,null,null,null,null,null,null,null,null,null,null,null,null,null,null,null,null,null,null,null,null,null,null,null,null,null,null,null,null,null,null,null,null,null,null,null,null,null,null,null,null,null,null,null,null,null,null,null,null,null,null,null,null,null,null,null,null,null,null,null,null,null,null,null,null,null,null,null,null,null,null,null,null,null,null,null,null,null,null,null,null,null,null,null,null,null,null,null,null,null,null,null,null,null,null,null,null,null,null,null,null,null,null,null,null,null,null,null,null,null,null,null,null,null,null,null,null,null,null,null,null,null,null,null,null,null,null,null,null,null,null,null,null,null,null,null,null,null,null,null,null,null,null,null,null,null,null,null,null,null,null,null,null,null,null,null,null,null,null,null,null,null,null,null,null,null,null,null,null,null,null,null,null,null,null,null,null,null,null,null,null,null,null,null,null,null,null,null,null,null,null,null,null,null,null,null,null,null,null,null,null,null,null,null,null,null,null,null,null,null,null,null,null,null,null,null,null,null,null,null,null,null,null,null,null,null,null,null,null,null,null,null,null,null,null,null,null,null,null,null,null,null,null,null,null,null,null,null,null,null,null,null,null,null,null,null,null,null,null,null,null,null,null,null,null,null,null,null,null,null,null,null,null,null,null,null,null,null,null,null,null,null,null,null,null,null,null,null,null,null,null,null,null,null,null,null,null,null,null,null,null,null,null,null,null,null,null,null,null,null,null,null,null,null,null,null,null,null,null,null,null,null,null,null,null,null,null,null,null,null,null,null,null,null,null,null,null,null,null,null,null,null,null,null,null,null,null,null,null,null,null,null,null,null,null,null,null,null,null,null,null,null,null,null,null,null,null,null,null,null,null,null,null,null,null,null,null,null,null,null,null,null,null,null,null,null,null,null,null,null,null,null,null,null,null,null,null,null,null,null,null,null,null,null,null,null,null,null,null,null,null,null,null,null,null,null,null,null,null,null,null,null,null,null,null,null,null,null,null,null,null,null,null,null,null,null,null,null,null,null,null,null,null,null,null,null,null,null,null,null,null,null,null,null,null,null,null,null,null,null,null,null,null,null,null,null,null,null,null,null,null,null,null,null,null,null,null,null,null,null,null,null,null,null,null,null,null,null,null,null,null,null,null,null,null,null,null,null,null,null,null,null,null,null,null,null,null,null,null,null,null,null,null,null,null,null,null,null,null,null,null,null,null,null,null,null,null,null,null,null,null,null,null,null,null,null,null,null,null,null,null,null,null,null,null,null,null,null,null,null,null,null,null,null,null,null,null,null,null,null,null,null,null,null,null,null,null,null,null,null,null,null,null,null,null,null,null,null,null,null,null,null,null,null,null,null,null,null,null,null,null,null,null,null,null,null,null,null,null,null,null,null,null,null,null,null,null,null,null,null,null,null,null,null,null,null,null,null,null,null,null,null,null,null,null,null,null,null,null,null,null,null,null,null,null,null,null,null,null,null,null,null,null,null,null,null,null,null,null,null,null,null,null,null,null,null,null,null,null,null,null,null,null,null,null,null,null,null,null,null,null,null,null,null,null,null,null,null,null,null,null,null,null,null,null,null,null,null,null,null,null,null,null,null,null,null,null,null,null,null,null,null,null,null,null,null,null,null,null,null,null,null,null,null,null,null,null,null,null,null,null,null,null,null,null,null,null,null,null,null,null,null,null,null,null,null,null,null,null,null,null,null,null,null,null,null,null,null,null,null,null,null,null,null,null,null,null,null,null,null,null,null,null,null,null,null,null,null,null,null,null,null,null,null,null,null,null,null,null,null,null,null,null,null,null,null,null,null,null,null,null,null,null,null,null,null,null,null,null,null,null,null,null,null,null,null,null,null,null,null,null,null,null,null,null,null,null,null,null,null,null,null,null,null,null,null,null,null,null,null,null,null,null,null,null,null,null,null,null,null,null,null,null,null,null,null,null,null,null,null,null,null,null,null,null,null,null,null,null,null,null,null,null,null,null,null,null,null,null,null,null,null,null,null,null,null,null,null,null,null,null,null,null,null,null,null,null,null,null,null,null,null,null,null,null,null,null,null,null,null,null,null,null,null,null,null,null,null,null,null,null,null,null,null,null,null,null,null,null,null,null,null,null,null,null,null,null,null,null,null,null,null,null,null,null,null,null,null,null,null,null,null,null,null,null,null,null,null,null,null,null,null,null,null,null,null,null,null,null,null,null,null,null,null,null,null,null,null,null,null,null,null,null,null,null,null,null,null,null,null,null,null,null,null,null,null,null,null,null,null,null,null,null,null,null,null,null,null,null,null,null,null,null,null,null,null,null,null,null,null,null,null,null,null,null,null,null,null,null,null,null,null,null,null,null,null,null,null,null,null,null,null,null,null,null,null,null,null,null,null,null,null,null,null,null,null,null,null,null,null,null,null,null,null,null,null,null,null,null,null,null,null,null,null,null,null,null,null,null,null,null,null,null,null,null,null,null,null,null,null,null,null,null,null,null,null,null,null,null,null,null,null,null,null,null,null,null,null,null,null,null,null,null,null,null,null,null,null,null,null,null,null,null,null,null,null,null,null,null,null,null,null,null,null,null,null,null,null,null,null,null,null,null,null,null,null,null,null,null,null,null,null,null,null,null,null,null,null,null,null,null,null,null,null,null,null,null,null,null,null,null,null,null,null,null,null,null,null,null,null,null,null,null,null,null,null,null,null,null,null,null,null,null,null,null,null,null,null,null,null,null,null,null,null,null,null,null,null,null,null,null,null,null,null,null,null,null,null,null,null,null,null,null,null,null,null,null,null,null,null,null,null,null,null,null,null,null,null,null,null,null,null,null,null,null,null,null,null,null,null,null,null,null,null,null,null,null,null,null,null,null,null,null,null,null,null,null,null,null,null,null,null,null,null,null,null,null,null,null,null,null,null,null,null,null,null,null,null,null,null,null,null,null,null,null,null,null,null,null,null,null,null,null,null,null,null,null,null,null,null,null,null,null,null,null,null,null,null,null,null,null,null,null,null,null,null,null,null,null,null,null,null,null,null,null,null,null,null,null,null,null,null,null,null,null,null,null,null,null,null,null,null,null,null,null,null,null,null,null,null,null,null,null,null,null,null,null,null,null,null,null,null,null,null,null,null,null,null,null,null,null,null,null,null,null,null,null,null,null,null,null,null,null,null,null,null,null,null,null,null,null,null,null,null,null,null,null,null,null,null,null,null,null,null,null,null,null,null,null,null,null,null,null,null,null,null,null,null,null,null,null,null,null,null,null,null,null,null,null,null,null,null,null,null,null,null,null,null,null,null,null,null,null,null,null,null,null,null,null,null,null,null,null,null,null,null,null,null,null,null,null,null,null,null,null,null,null,null,null,null,null,null,null,null,null,null,null,null,null,null,null,null,null,null,null,null,null,null,null,null,null,null,null,null,null,null,null,null,null,null,null,null,null,null,null,null,null,null,null,null,null,null,null,null,null,null,null,null,null,null,null,null,null,null,null,null,null,null,null,null,null,null,null,null,null,null,null,null,null,null,null,null,null,null,null,null,null,null,null,null,null,null,null,null,null,null,null,null,null,null,null,null,null,null,null,null,null,null,null,null,null,null,null,null,null,null,null,null,null,null,null,null,null,null,null,null,null,null,null,null,null,null,null,null,null,null,null,null,null,null,null,null,null,null,null,null,null,null,null,null,null,null,null,null,null,null,null,null,null,null,null,null,null,null,null,null,null,null,null,null,null,null,null,null,null,null,null,null,null,null,null,null,null,null,null,null,null,null,null,null,null,null,null,null,null,null,null,null,null,null,null,null,null,null,null,null,null,null,null,null,null,null,null,null,null,null,null,null,null,null,null,null,null,null,null,null,null,null,null,null,null,null,null,null,null,null,null,null,null,null,null,null,null,null,null,null,null,null,null,null,null,null,null,null,null,null,null,null,null,null,null,null,null,null,null,null,null,null,null,null,null,null,null,null,null,null,null,null,null,null,null,null,null,null,null,null,null,null,null,null,null,null,null,null,null,null,null,null,null,null,null,null,null,null,null,null,null,null,null,null,null,null,null,null,null,null,null,null,null,null,null,null,null,null,null,null,null,null,null,null,null,null,null,null,null,null,null,null,null,null,null,null,null,null,null,null,null,null,null,null,null,null,null,null,null,null,null,null,null,null,null,null,null,null,null,null,null,null,null,null,null,null,null,null,null,null,null,null,null,null,null,null,null,null,null,null,null,null,null,null,null,null,null,null,null,null,null,null,null,null,null,null,null,null,null,null,null,null,null,null,null,null,null,null,null,null,null,null,null,null,null,null,null,null,null,null,null,null,null,null,null,null,null,null,null,null,null,null,null,null,null,null,null,null,null,null,null,null,null,null,null,null,null,null,null,null,null,null,null,null,null,null,null,null,null,null,null,null,null,null,null,null,null,null,null,null,null,null,null,null,null,null,null,null,null,null,null,null,null,null,null,null,null,null,null,null,null,null,null,null,null,null,null,null,null,null,null,null,null,null,null,null,null,null,null,null,null,null,null,null,null,null,null,null,null,null,null,null,null,null,null,null,null,null,null,null,null,null,null,null,null,null,null,null,null,null,null,null,null,null,null,null,null,null,null,null,null,null,null,null,null,null,null,null,null,null,null,null,null,null,null,null,null,null,null,null,null,null,null,null,null,null,null,null,null,null,null,null,null,null,null,null,null,null,null,null,null,null,null,null,null,null,null,null,null,null,null,null,null,null,null,null,null,null,null,null,null,null,null,null,null,null,null,null,null,null,null,null,null,null,null,null,null,null,null,null,null,null,null,null,null,null,null,null,null,null,null,null,null,null,null,null,null,null,null,null,null,null,null,null,null,null,null,null,null,null,null,null,null,null,null,null,null,null,null,null,null,null,null,null,null,null,null,null,null,null,null,null,null,null,null,null,null,null,null,null,null,null,null,null,null,null,null,null,null,null,null,null,null,null,null,null,null,null,null,null,null,null,null,null,null,null,null,null,null,null,null,null,null,null,null,null,null,null,null,null,null,null,null,null,null,null,null,null,null,null,null,null,null,null,null,null,null,null,null,null,null,null,null,null,null,null,null,null,null,null,null,null,null,null,null,null,null,null,null,null,null,null,null,null,null,null,null,null,null,null,null,null,null,null,null,null,null,null,null,null,null,null,null,null,null,null,null,null,null,null,null,null,null,null,null,null,null,null,null,null,null,null,null,null,null,null,null,null,null,null,null,null,null,null,null,null,null,null,null,null,null,null,null,null,null,null,null,null,null,null,null,null,null,null,null,null,null,null,null,null,null,null,null,null,null,null,null,null,null,null,null,null,null,null,null,null,null,null,null,null,null,null,null,null,null,null,null,null,null,null,null,null,null,null,null,null,null,null,null,null,null,null,null,null,null,null,null,null,null,null,null,null,null,null,null,null,null,null,null,null,null,null,null,null,null,null,null,null,null,null,null,null,null,null,null,null,null,null,null,null,null,null,null,null,null,null,null,null,null,null,null,null,null,null,null,null,null,null,null,null,null,null,null,null,null,null,null,null,null,null,null,null,null,null,null,null,null,null,null,null,null,null,null,null,null,null,null,null,null,null,null,null,null,null,null,null,null,null,null,null,null,null,null,null,null,null,null,null,null,null,null,null,null,null,null,null,null,null,null,null,null,null,null,null,null,null,null,null,null,null,null,null,null,null,null,null,null,null,null,null,null,null,null,null,null,null,null,null,null,null,null,null,null,null,null,null,null,null,null,null,null,null,null,null,null,null,null,null,null,null,null,null,null,null,null,null,null,null,null,null,null,null,null,null,null,null,null,null,null,null,null,null,null,null,null,null,null,null,null,null,null,null,null,null,null,null,null,null,null,null,null,null,null,null,null,null,null,null,null,null,null,null,null,null,null,null,null,null,null,null,null,null,null,null,null,null,null,null,null,null,null,null,null,null,null,null,null,null,null,null,null,null,null,null,null,null,null,null,null,null,null,null,null,null,null,null,null,null,null,null,null,null,null,null,null,null,null,null,null,null,null,null,null,null,null,null,null,null,null,null,null,null,null,null,null,null,null,null,null,null,null,null,null,null,null,null,null,null,null,null,null,null,null,null,null,null,null,null,null,null,null,null,null,null,null,null,null,null,null,null,null,null,null,null,null,null,null,null,null,null,null,null,null,null,null,null,null,null,null,null,null,null,null,null,null,null,null,null,null,null,null,null,null,null,null,null,null,null,null,null,null,null,null,null,null,null,null,null,null,null,null,null,null,null,null,null,null,null,null,null,null,null,null,null,null,null,null,null,null,null,null,null,null,null,null,null,null,null,null,null,null,null,null,null,null,null,null,null,null,null,null,null,null,null,null,null,null,null,null,null,null,null,null,null,null,null,null,null,null,null,null,null,null,null,null,null,null,null,null,null,null,null,null,null,null,null,null,null,null,null,null,null,null,null,null,null,null,null,null,null,null,null,null,null,null,null,null,null,null,null,null,null,null,null,null,null,null,null,null,null,null,null,null,null,null,null,null,null,null,null,null,null,null,null,null,null,null,null,null,null,null,null,null,null,null,null,null,null,null,null,null,null,null,null,null,null,null,null,null,null,null,null,null,null,null,null,null,null,null,null,null,null,null,null,null,null,null,null,null,null,null,null,null,null,null,null,null,null,null,null,null,null,null,null,null,null,null,null,null,null,null,null,null,null,null,null,null,null,null,null,null,null,null,null,null,null,null,null,null,null,null,null,null,null,null,null,null,null,null,null,null,null,null,null,null,null,null,null,null,null,null,null,null,null,null,null,null,null,null,null,null,null,null,null,null,null,null,null,null,null,null,null,null,null,null,null,null,null,null,null,null,null,null,null,null,null,null,null,null,null,null,null,null,null,null,null,null,null,null,null,null,null,null,null,null,null,null,null,null,null,null,null,null,null,null,null,null,null,null,null,null,null,null,null,null,null,null,null,null,null,null,null,null,null,null,null,null,null,null,null,null,null,null,null,null,null,null,null,null,null,null,null,null,null,null,null,null,null,null,null,null,null,null,null,null,null,null,null,null,null,null,null,null,null,null,null,null,null,null,null,null,null,null,null,null,null,null,null,null,null,null,null,null,null,null,null,null,null,null,null,null,null,null,null,null,null,null,null,null,null,null,null,null,null,null,null,null,null,null,null,null,null,null,null,null,null,null,null,null,null,null,null,null,null,null,null,null,null,null,null,null,null,null,null,null,null,null,null,null,null,null,null,null,null,null,null,null,null,null,null,null,null,null,null,null,null,null,null,null,null,null,null,null,null,null,null,null,null,null,null,null,null,null,null,null,null,null,null,null,null,null,null,null,null,null,null,null,null,null,null,null,null,null,null,null,null,null,null,null,null,null,null,null,null,null,null,null,null,null,null,null,null,null,null,null,null,null,null,null,null,null,null,null,null,null,null,null,null,null,null,null,null,null,null,null,null,null,null,null,null,null,null,null,null,null,null,null,null,null,null,null,null,null,null,null,null,null,null,null,null,null,null,null,null,null,null,null,null,null,null,null,null,null,null,null,null,null,null,null,null,null,null,null,null,null,null,null,null,null,null,null,null,null,null,null,null,null,null,null,null,null,null,null,null,null,null,null,null,null,null,null,null,null,null,null,null,null,null,null,null,null,null,null,null,null,null,null,null,null,null,null,null,null,null,null,null,null,null,null,null,null,null,null,null,null,null,null,null,null,null,null,null,null,null,null,null,null,null,null,null,null,null,null,null,null,null,null,null,null,null,null,null,null,null,null,null,null,null,null,null,null,null,null,null,null,null,null,null,null,null,null,null,null,null,null,null,null,null,null,null,null,null,null,null,null,null,null,null,null,null,null,null,null,null,null,null,null,null,null,null,null,null,null,null,null,null,null,null,null,null,null,null,null,null,null,null,null,null,null,null,null,null,null,null,null,null,null,null,null,null,null,null,null,null,null,null,null,null,null,null,null,null,null,null,null,null,null,null,null,null,null,null,null,null,null,null,null,null,null,null,null,null,null,null,null,null,null,null,null,null,null,null,null,null,null,null,null,null,null,null,null,null,null,null,null,null,null,null,null,null,null,null,null,null,null,null,null,null,null,null,null,null,null,null,null,null,null,null,null,null,null,null,null,null,null,null,null,null,null,null,null,null,null,null,null,null,null,null,null,null,null,null,null,null,null,null,null,null,null,null,null,null,null,null,null,null,null,null,null,null,null,null,null,null,null,null,null,null,null,null,null,null,null,null,null,null,null,null,null,null,null,null,null,null,null,null,null,null,null,null,null,null,null,null,null,null,null,null,null,null,null,null,null,null,null,null,null,null,null,null,null,null,null,null,null,null,null,null,null,null,null,null,null,null,null,null,null,null,null,null,null,null,null,null,null,null,null,null,null,null,null,null,null,null,null,null,null,null,null,null,null,null,null,null,null,null,null,null,null,null,null,null,null,null,null,null,null,null,null,null,null,null,null,null,null,null,null,null,null,null,null,null,null,null,null,null,null,null,null,null,null,null,null,null,null,null,null,null,null,null,null,null,null,null,null,null,null,null,null,null,null,null,null,null,null,null,null,null,null,null,null,null,null,null,null,null,null,null,null,null,null,null,null,null,null,null,null,null,null,null,null,null,null,null,null,null,null,null,null,null,null,null,null,null,null,null,null,null,null,null,null,null,null,null,null,null,null,null,null,null,null,null,null,null,null,null,null,null,null,null,null,null,null,null,null,null,null,null,null,null,null,null,null,null,null,null,null,null,null,null,null,null,null,null,null,null,null,null,null,null,null,null,null,null,null,null,null,null,null,null,null,null,null,null,null,null,null,null,null,null,null,null,null,null,null,null,null,null,null,null,null,null,null,null,null,null,null,null,null,null,null,null,null,null,null,null,null,null,null,null,null,null,null,null,null,null,null,null,null,null,null,null,null,null,null,null,null,null,null,null,null,null,null,null,null,null,null,null,null,null,null,null,null,null,null,null,null,null,null,null,null,null,null,null,null,null,null,null,null,null,null,null,null,null,null,null,null,null,null,null,null,null,null,null,null,null,null,null,null,null,null,null,null,null,null,null,null,null,null,null,null,null,null,null,null,null,null,null,null,null,null,null,null,null,null,null,null,null,null,null,null,null,null,null,null,null,null,null,null,null,null,null,null,null,null,null,null,null,null,null,null,null,null,null,null,null,null,null,null,null,null,null,null,null,null,null,null,null,null,null,null,null,null,null,null,null,null,null,null,null,null,null,null,null,null,null,null,null,null,null,null,null,null,null,null,null,null,null,null,null,null,null,null,null,null,null,null,null,null,null,null,null,null,null,null,null,null,null,null,null,null,null,null,null,null,null,null,null,null,null,null,null,null,null,null,null,null,null,null,null,null,null,null,null,null,null,null,null,null,null,null,null,null,null,null,null,null,null,null,null,null,null,null,null,null,null,null,null,null,null,null,null,null,null,null,null,null,null,null,null,null,null,null,null,null,null,null,null,null,null,null,null,null,null,null,null,null,null,null,null,null,null,null,null,null,null,null,null,null,null,null,null,null,null,null,null,null,null,null,null,null,null,null,null,null,null,null,null,null,null,null,null,null,null,null,null,null,null,null,null,null,null,null,null,null,null,null,null,null,null,null,null,null,null,null,null,null,null,null,null,null,null,null,null,null,null,null,null,null,null,null,null,null,null,null,null,null,null,null,null,null,null,null,null,null,null,null,null,null,null,null,null,null,null,null,null,null,null,null,null,null,null,null,null,null,null,null,null,null,null,null,null,null,null,null,null,null,null,null,null,null,null,null,null,null,null,null,null,null,null,null,null,null,null,null,null,null,null,null,null,null,null,null,null,null,null,null,null,null,null,null,null,null,null,null,null,null,null,null,null,null,null,null,null,null,null,null,null,null,null,null,null,null,null,null,null,null,null,null,null,null,null,null,null,null,null,null,null,null,null,null,null,null,null,null,null,null,null,null,null,null,null,null,null,null,null,null,null,null,null,null,null,null,null,null,null,null,null,null,null,null,null,null,null,null,null,null,null,null,null,null,null,null,null,null,null,null,null,null,null,null,null,null,null,null,null,null,null,null,null,null,null,null,null,null,null,null,null,null,null,null,null,null,null,null,null,null,null,null,null,null,null,null,null,null,null,null,null,null,null,null,null,null,null,null,null,null,null,null,null,null,null,null,null,null,null,null,null,null,null,null,null,null,null,null,null,null,null,null,null,null,null,null,null,null,null,null,null,null,null,null,null,null,null,null,null,null,null,null,null,null,null,null,null,null,null,null,null,null,null,null,null,null,null,null,null,null,null,null,null,null,null,null,null,null,null,null,null,null,null,null,null,null,null,null,null,null,null,null,null,null,null,null,null,null,null,null,null,null,null,null,null,null,null,null,null,null,null,null,null,null,null,null,null,null,null,null,null,null,null,null,null,null,null,null,null,null,null,null,null,null,null,null,null,null,null,null,null,null,null,null,null,null,null,null,null,null,null,null,null,null,null,null,null,null,null,null,null,null,null,null,null,null,null,null,null,null,null,null,null,null,null,null,null,null,null,null,null,null,null,null,null,null,null,null,null,null,null,null,null,null,null,null,null,null,null,null,null,null,null,null,null,null,null,null,null,null,null,null,null,null,null,null,null,null,null,null,null,null,null,null,null,null,null,null,null,null,null,null,null,null,null,null,null,null,null,null,null,null,null,null,null,null,null,null,null,null,null,null,null,null,null,null,null,null,null,null,null,null,null,null,null,null,null,null,null,null,null,null,null,null,null,null,null,null,null,null,null,null,null,null,null,null,null,null,null,null,null,null,null,null,null,null,null,null,null,null,null,null,null,null,null,null,null,null,null,null,null,null,null,null,null,null,null,null,null,null,null,null,null,null,null,null,null,null,null,null,null,null,null,null,null,null,null,null,null,null,null,null,null,null,null,null,null,null,null,null,null,null,null,null,null,null,null,null,null,null,null,null,null,null,null,null,null,null,null,null,null,null,null,null,null,null,null,null,null,null,null,null,null,null,null,null,null,null,null,null,null,null,null,null,null,null,null,null,null,null,null,null,null,null,null,null,null,null,null,null,null,null,null,null,null,null,null,null,null,null,null,null,null,null,null,null,null,null,null,null,null,null,null,null,null,null,null,null,null,null,null,null,null,null,null,null,null,null,null,null,null,null,null,null,null,null,null,null,null,null,null,null,null,null,null,null,null,null,null,null,null,null,null,null,null,null,null,null,null,null,null,null,null,null,null,null,null,null,null,null,null,null,null,null,null,null,null,null,null,null,null,null,null,null,null,null,null,null,null,null,null,null,null,null,null,null,null,null,null,null,null,null,null,null,null,null,null,null,null,null,null,null,null,null,null,null,null,null,null,null,null,null,null,null,null,null,null,null,null,null,null,null,null,null,null,null,null,null,null,null,null,null,null,null,null,null,null,null,null,null,null,null,null,null,null,null,null,null,null,null,null,null,null,null,null,null,null,null,null,null,null,null,null,null,null,null,null,null,null,null,null,null,null,null,null,null,null,null,null,null,null,null,null,null,null,null,null,null,null,null,null,null,null,null,null,null,null,null,null,null,null,null,null,null,null,null,null,null,null,null,null,null,null,null,null,null,null,null,null,null,null,null,null,null,null,null,null,null,null,null,null,null,null,null,null,null,null,null,null,null,null,null,null,null,null,null,null,null,null,null,null,null,null,null,null,null,null,null,null,null,null,null,null,null,null,null,null,null,null,null,null,null,null,null,null,null,null,null,null,null,null,null,null,null,null,null,null,null,null,null,null,null,null,null,null,null,null,null,null,null,null,null,null,null,null,null,null,null,null,null,null,null,null,null,null,null,null,null,null,null,null,null,null,null,null,null,null,null,null,null,null,null,null,null,null,null,null,null,null,null,null,null,null,null,null,null,null,null,null,null,null,null,null,null,null,null,null,null,null,null,null,null,null,null,null,null,null,null,null,null,null,null,null,null,null,null,null,null,null,null,null,null,null,null,null,null,null,null,null,null,null,null,null,null,null,null,null,null,null,null,null,null,null,null,null,null,null,null,null,null,null,null,null,null,null,null,null,null,null,null,null,null,null,null,null,null,null,null,null,null,null,null,null,null,null,null,null,null,null,null,null,null,null,null,null,null,null,null,null,null,null,null,null,null,null,null,null,null,null,null,null,null,null,null,null,null,null,null,null,null,null,null,null,null,null,null,null,null,null,null,null,null,null,null,null,null,null,null,null,null,null,null,null,null,null,null,null,null,null,null,null,null,null,null,null,null,null,null,null,null,null,null,null,null,null,null,null,null,null,null,null,null,null,null,null,null,null,null,null,null,null,null,null,null,null,null,null,null,null,null,null,null,null,null,null,null,null,null,null,null,null,null,null,null,null,null,null,null,null,null,null,null,null,null,null,null,null,null,null,null,null,null,null,null,null,null,null,null,null,null,null,null,null,null,null,null,null,null,null,null,null,null,null,null,null,null,null,null,null,null,null,null,null,null,null,null,null,null,null,null,null,null,null,null,null,null,null,null,null,null,null,null,null,null,null,null,null,null,null,null,null,null,null,null,null,null,null,null,null,null,null,null,null,null,null,null,null,null,null,null,null,null,null,null,null,null,null,null,null,null,null,null,null,null,null,null,null,null,null,null,null,null,null,null,null,null,null,null,null,null,null,null,null,null,null,null,null,null,null,null,null,null,null,null,null,null,null,null,null,null,null,null,null,null,null,null,null,null,null,null,null,null,null,null,null,null,null,null,null,null,null,null,null,null,null,null,null,null,null,null,null,null,null,null,null,null,null,null,null,null,null,null,null,null,null,null,null,null,null,null,null,null,null,null,null,null,null,null,null,null,null,null,null,null,null,null,null,null,null,null,null,null,null,null,null,null,null,null,null,null,null,null,null,null,null,null,null,null,null,null,null,null,null,null,null,null,null,null,null,null,null,null,null,null,null,null,null,null,null,null,null,null,null,null,null,null,null,null,null,null,null,null,null,null,null,null,null,null,null,null,null,null,null,null,null,null,null,null,null,null,null,null,null,null,null,null,null,null,null,null,null,null,null,null,null,null,null,null,null,null,null,null,null,null,null,null,null,null,null,null,null,null,null,null,null,null,null,null,null,null,null,null,null,null,null,null,null,null,null,null,null,null,null,null,null,null,null,null,null,null,null,null,null,null,null,null,null,null,null,null,null,null,null,null,null,null,null,null,null,null,null,null,null,null,null,null,null,null,null,null,null,null,null,null,null,null,null,null,null,null,null,null,null,null,null,null,null,null,null,null,null,null,null,null,null,null,null,null,null,null,null,null,null,null,null,null,null,null,null,null,null,null,null,null,null,null,null,null,null,null,null,null,null,null,null,null,null,null,null,null,null,null,null,null,null,null,null,null,null,null,null,null,null,null,null,null,null,null,null,null,null,null,null,null,null,null,null,null,null,null,null,null,null,null,null,null,null,null,null,null,null,null,null,null,null,null,null,null,null,null,null,null,null,null,null,null,null,null,null,null,null,null,null,null,null,null,null,null,null,null,null,null,null,null,null,null,null,null,null,null,null,null,null,null,null,null,null,null,null,null,null,null,null,null,null,null,null,null,null,null,null,null,null,null,null,null,null,null,null,null,null,null,null,null,null,null,null,null,null,null,null,null,null,null,null,null,null,null,null,null,null,null,null,null,null,null,null,null,null,null,null,null,null,null,null,null,null,null,null,null,null,null,null,null,null,null,null,null,null,null,null,null,null,null,null,null,null,null,null,null,null,null,null,null,null,null,null,null,null,null,null,null,null,null,null,null,null,null,null,null,null,null,null,null,null,null,null,null,null,null,null,null,null,null,null,null,null,null,null,null,null,null,null,null,null,null,null,null,null,null,null,null,null,null,null,null,null,null,null,null,null,null,null,null,null,null,null,null,null,null,null,null,null,null,null,null,null,null,null,null,null,null,null,null,null,null,null,null,null,null,null,null,null,null,null,null,null,null,null,null,null,null,null,null,null,null,null,null,null,null,null,null,null,null,null,null,null,null,null,null,null,null,null,null,null,null,null,null,null,null,null,null,null,null,null,null,null,null,null,null,null,null,null,null,null,null,null,null,null,null,null,null,null,null,null,null,null,null,null,null,null,null,null,null,null,null,null,null,null,null,null,null,null,null,null,null,null,null,null,null,null,null,null,null,null,null,null,null,null,null,null,null,null,null,null,null,null,null,null,null,null,null,null,null,null,null,null,null,null,null,null,null,null,null,null,null,null,null,null,null,null,null,null,null,null,null,null,null,null,null,null,null,null,null,null,null,null,null,null,null,null,null,null,null,null,null,null,null,null,null,null,null,null,null,null,null,null,null,null,null,null,null,null,null,null,null,null,null,null,null,null,null,null,null,null,null,null,null,null,null,null,null,null,null,null,null,null,null,null,null,null,null,null,null,null,null,null,null,null,null,null,null,null,null,null,null,null,null,null,null,null,null,null,null,null,null,null,null,null,null,null,null,null,null,null,null,null,null,null,null,null,null,null,null,null,null,null,null,null,null,null,null,null,null,null,null,null,null,null,null,null,null,null,null,null,null,null,null,null,null,null,null,null,null,null,null,null,null,null,null,null,null,null,null,null,null,null,null,null,null,null,null,null,null,null,null,null,null,null,null,null,null,null,null,null,null,null,null,null,null,null,null,null,null,null,null,null,null,null,null,null,null,null,null,null,null,null,null,null,null,null,null,null,null,null,null,null,null,null,null,null,null,null,null,null,null,null,null,null,null,null,null,null,null,null,null,null,null,null,null,null,null,null,null,null,null,null,null,null,null,null,null,null,null,null,null,null,null,null,null,null,null,null,null,null,null,null,null,null,null,null,null,null,null,null,null,null,null,null,null,null,null,null,null,null,null,null,null,null,null,null,null,null,null,null,null,null,null,null,null,null,null,null,null,null,null,null,null,null,null,null,null,null,null,null,null,null,null,null,null,null,null,null,null,null,null,null,null,null,null,null,null,null,null,null,null,null,null,null,null,null,null,null,null,null,null,null,null,null,null,null,null,null,null,null,null,null,null,null,null,null,null,null,null,null,null,null,null,null,null,null,null,null,null,null,null,null,null,null,null,null,null,null,null,null,null,null,null,null,null,null,null,null,null,null,null,null,null,null,null,null,null,null,null,null,null,null,null,null,null,null,null,null,null,null,null,null,null,null,null,null,null,null,null,null,null,null,null,null,null,null,null,null,null,null,null,null,null,null,null,null,null,null,null,null,null,null,null,null,null,null,null,null,null,null,null,null,null,null,null,null,null,null,null,null,null,null,null,null,null,null,null,null,null,null,null,null,null,null,null,null,null,null,null,null,null,null,null,null,null,null,null,null,null,null,null,null,null,null,null,null,null,null,null,null,null,null,null,null,null,null,null,null,null,null,null,null,null,null,null,null,null,null,null,null,null,null,null,null,null,null,null,null,null,null,null,null,null,null,null,null,null,null,null,null,null,null,null,null,null,null,null,null,null,null,null,null,null,null,null,null,null,null,null,null,null,null,null,null,null,null,null,null,null,null,null,null,null,null,null,null,null,null,null,null,null,null,null,null,null,null,null,null,null,null,null,null,null,null,null,null,null,null,null,null,null,null,null,null,null,null,null,null,null,null,null,null,null,null,null,null,null,null,null,null,null,null,null,null,null,null,null,null,null,null,null,null,null,null,null,null,null,null,null,null,null,null,null,null,null,null,null,null,null,null,null,null,null,null,null,null,null,null,null,null,null,null,null,null,null,null,null,null,null,null,null,null,null,null,null,null,null,null,null,null,null,null,null,null,null,null,null,null,null,null,null,null,null,null,null,null,null,null,null,null,null,null,null,null,null,null,null,null,null,null,null,null,null,null,null,null,null,null,null,null,null,null,null,null,null,null,null,null,null,null,null,null,null,null,null,null,null,null,null,null,null,null,null,null,null,null,null,null,null,null,null,null,null,null,null,null,null,null,null,null,null,null,null,null,null,null,null,null,null,null,null,null,null,null,null,null,null,null,null,null,null,null,null,null,null,null,null,null,null,null,null,null,null,null,null,null,null,null,null,null,null,null,null,null,null,null,null,null,null,null,null,null,null,null,null,null,null,null,null,null,null,null,null,null,null,null,null,null,null,null,null,null,null,null,null,null,null,null,null,null,null,null,null,null,null,null,null,null,null,null,null,null,null,null,null,null,null,null,null,null,null,null,null,null,null,null,null,null,null,null,null,null,null,null,null,null,null,null,null,null,null,null,null,null,null,null,null,null,null,null,null,null,null,null,null,null,null,null,null,null,null,null,null,null,null,null,null,null,null,null,null,null,null,null,null,null,null,null,null,null,null,null,null,null,null,null,null,null,null,null,null,null,null,null,null,null,null,null,null,null,null,null,null,null,null,null,null,null,null,null,null,null,null,null,null,null,null,null,null,null,null,null,null,null,null,null,null,null,null,null,null,null,null,null,null,null,null,null,null,null,null,null,null,null,null,null,null,null,null,null,null,null,null,null,null,null,null,null,null,null,null,null,null,null,null,null,null,null,null,null,null,null,null,null,null,null,null,null,null,null,null,null,null,null,null,null,null,null,null,null,null,null,null,null,null,null,null,null,null,null,null,null,null,null,null,null,null,null,null,null,null,null,null,null,null,null,null,null,null,null,null,null,null,null,null,null,null,null,null,null,null,null,null,null,null,null,null,null,null,null,null,null,null,null,null,null,null,null,null,null,null,null,null,null,null,null,null,null,null,null,null,null,null,null,null,null,null,null,null,null,null,null,null,null,null,null,null,null,null,null,null,null,null,null,null,null,null,null,null,null,null,null,null,null,null,null,null,null,null,null,null,null,null,null,null,null,null,null,null,null,null,null,null,null,null,null,null,null,null,null,null,null,null,null,null,null,null,null,null,null,null,null,null,null,null,null,null,null,null,null,null,null,null,null,null,null,null,null,null,null,null,null,null,null,null,null,null,null,null,null,null,null,null,null,null,null,null,null,null,null,null,null,null,null,null,null,null,null,null,null,null,null,null,null,null,null,null,null,null,null,null,null,null,null,null,null,null,null,null,null,null,null,null,null,null,null,null,null,null,null,null,null,null,null,null,null,null,null,null,null,null,null,null,null,null,null,null,null,null,null,null,null,null,null,null,null,null,null,null,null,null,null,null,null,null,null,null,null,null,null,null,null,null,null,null,null,null,null,null,null,null,null,null,null,null,null,null,null,null,null,null,null,null,null,null,null,null,null,null,null,null,null,null,null,null,null,null,null,null,null,null,null,null,null,null,null,null,null,null,null,null,null,null,null,null,null,null,null,null,null,null,null,null,null,null,null,null,null,null,null,null,null,null,null,null,null,null,null,null,null,null,null,null,null,null,null,null,null,null,null,null,null,null,null,null,null,null,null,null,null,null,null,null,null,null,null,null,null,null,null,null,null,null,null,null,null,null,null,null,null,null,null,null,null,null,null,null,null,null,null,null,null,null,null,null,null,null,null,null,null,null,null,null,null,null,null,null,null,null,null,null,null,null,null,null,null,null,null,null,null,null,null,null,null,null,null,null,null,null,null,null,null,null,null,null,null,null,null,null,null,null,null,null,null,null,null,null,null,null,null,null,null,null,null,null,null,null,null,null,null,null,null,null,null,null,null,null,null,null,null,null,null,null,null,null,null,null,null,null,null,null,null,null,null,null,null,null,null,null,null,null,null,null,null,null,null,null,null,null,null,null,null,null,null,null,null,null,null,null,null,null,null,null,null,null,null,null,null,null,null,null,null,null,null,null,null,null,null,null,null,null,null,null,null,null,null,null,null,null,null,null,null,null,null,null,null,null,null,null,null,null,null,null,null,null,null,null,null,null,null,null,null,null,null,null,null,null,null,null,null,null,null,null,null,null,null,null,null,null,null,null,null,null,null,null,null,null,null,null,null,null,null,null,null,null,null,null,null,null,null,null,null,null,null,null,null,null,null,null,null,null,null,null,null,null,null,null,null,null,null,null,null,null,null,null,null,null,null,null,null,null,null,null,null,null,null,null,null,null,null,null,null,null,null,null,null,null,null,null,null,null,null,null,null,null,null,null,null,null,null,null,null,null,null,null,null,null,null,null,null,null,null,null,null,null,null,null,null,null,null,null,null,null,null,null,null,null,null,null,null,null,null,null,null,null,null,null,null,null,null,null,null,null,null,null,null,null,null,null,null,null,null,null,null,null,null,null,null,null,null,null,null,null,null,null,null,null,null,null,null,null,null,null,null,null,null,null,null,null,null,null,null,null,null,null,null,null,null,null,null,null,null,null,null,null,null,null,null,null,null,null,null,null,null,null,null,null,null,null,null,null,null,null,null,null,null,null,null,null,null,null,null,null,null,null,null,null,null,null,null,null,null,null,null,null,null,null,null,null,null,null,null,null,null,null,null,null,null,null,null,null,null,null,null,null,null,null,null,null,null,null,null,null,null,null,null,null,null,null,null,null,null,null,null,null,null,null,null,null,null,null,null,null,null,null,null,null,null,null,null,null,null,null,null,null,null,null,null,null,null,null,null,null,null,null,null,null,null,null,null,null,null,null,null,null,null,null,null,null,null,null,null,null,null,null,null,null,null,null,null,null,null,null,null,null,null,null,null,null,null,null,null,null,null,null,null,null,null,null,null,null,null,null,null,null,null,null,null,null,null,null,null,null,null,null,null,null,null,null,null,null,null,null,null,null,null,null,null,null,null,null,null,null,null,null,null,null,null,null,null,null,null,null,null,null,null,null,null,null,null,null,null,null,null,null,null,null,null,null,null,null,null,null,null,null,null,null,null,null,null,null,null,null,null,null,null,null,null,null,null,null,null,null,null,null,null,null,null,null,null,null,null,null,null,null,null,null,null,null,null,null,null,null,null,null,null,null,null,null,null,null,null,null,null,null,null,null,null,null,null,null,null,null,null,null,null,null,null,null,null,null,null,null,null,null,null,null,null,null,null,null,null,null,null,null,null,null,null,null,null,null,null,null,null,null,null,null,null,null,null,null,null,null,null,null,null,null,null,null,null,null,null,null,null,null,null,null,null,null,null,null,null,null,null,null,null,null,null,null,null,null,null,null,null,null,null,null,null,null,null,null,null,null,null,null,null,null,null,null,null,null,null,null,null,null,null,null,null,null,null,null,null,null,null,null,null,null,null,null,null,null,null,null,null,null,null,null,null,null,null,null,null,null,null,null,null,null,null,null,null,null,null,null,null,null,null,null,null,null,null,null,null,null,null,null,null,null,null,null,null,null,null,null,null,null,null,null,null,null,null,null,null,null,null,null,null,null,null,null,null,null,null,null,null,null,null,null,null,null,null,null,null,null,null,null,null,null,null,null,null,null,null,null,null,null,null,null,null,null,null,null,null,null,null,null,null,null,null,null,null,null,null,null,null,null,null,null,null,null,null,null,null,null,null,null,null,null,null,null,null,null,null,null,null,null,null,null,null,null,null,null,null,null,null,null,null,null,null,null,null,null,null,null,null,null,null,null,null,null,null,null,null,null,null,null,null,null,null,null,null,null,null,null,null,null,null,null,null,null,null,null,null,null,null,null,null,null,null,null,null,null,null,null,null,null,null,null,null,null,null,null,null,null,null,null,null,null,null,null,null,null,null,null,null,null,null,null,null,null,null,null,null,null,null,null,null,null,null,null,null,null,null,null,null,null,null,null,null,null,null,null,null,null,null,null,null,null,null,null,null,null,null,null,null,null,null,null,null,null,null,null,null,null,null,null,null,null,null,null,null,null,null,null,null,null,null,null,null,null,null,null,null,null,null,null,null,null,null,null,null,null,null,null,null,null,null,null,null,null,null,null,null,null,null,null,null,null,null,null,null,null,null,null,null,null,null,null,null,null,null,null,null,null,null,null,null,null,null,null,null,null,null,null,null,null,null,null,null,null,null,null,null,null,null,null,null,null,null,null,null,null,null,null,null,null,null,null,null,null,null,null,null,null,null,null,null,null,null,null,null,null,null,null,null,null,null,null,null,null,null,null,null,null,null,null,null,null,null,null,null,null,null,null,null,null,null,null,null,null,null,null,null,null,null,null,null,null,null,null,null,null,null,null,null,null,null,null,null,null,null,null,null,null,null,null,null,null,null,null,null,null,null,null,null,null,null,null,null,null,null,null,null,null,null,null,null,null,null,null,null,null,null,null,null,null,null,null,null,null,null,null,null,null,null,null,null,null,null,null,null,null,null,null,null,null,null,null,null,null,null,null,null,null,null,null,null,null,null,null,null,null,null,null,null,null,null,null,null,null,null,null,null,null,null,null,null,null,null,null,null,null,null,null,null,null,null,null,null,null,null,null,null,null,null,null,null,null,null,null,null,null,null,null,null,null,null,null,null,null,null,null,null,null,null,null,null,null,null,null,null,null,null,null,null,null,null,null,null,null,null,null,null,null,null,null,null,null,null,null,null,null,null,null,null,null,null,null,null,null,null,null,null,null,null,null,null,null,null,null,null,null,null,null,null,null,null,null,null,null,null,null,null,null,null,null,null,null,null,null,null,null,null,null,null,null,null,null,null,null,null,null,null,null,null,null,null,null,null,null,null,null,null,null,null,null,null,null,null,null,null,null,null,null,null,null,null,null,null,null,null,null,null,null,null,null,null,null,null,null,null,null,null,null,null,null,null,null,null,null,null,null,null,null,null,null,null,null,null,null,null,null,null,null,null,null,null,null,null,null,null,null,null,null,null,null,null,null,null,null,null,null,null,null,null,null,null,null,null,null,null,null,null,null,null,null,null,null,null,null,null,null,null,null,null,null,null,null,null,null,null,null,null,null,null,null,null,null,null,null,null,null,null,null,null,null,null,null,null,null,null,null,null,null,null,null,null,null,null,null,null,null,null,null,null,null,null,null,null,null,null,null,null,null,null,null,null,null,null,null,null,null,null,null,null,null,null,null,null,null,null,null,null,null,null,null,null,null,null,null,null,null,null,null,null,null,null,null,null,null,null,null,null,null,null,null,null,null,null,null,null,null,null,null,null,null,null,null,null,null,null,null,null,null,null,null,null,null,null,null,null,null,null,null,null,null,null,null,null,null,null,null,null,null,null,null,null,null,null,null,null,null,null,null,null,null,null,null,null,null,null,null,null,null,null,null,null,null,null,null,null,null,null,null,null,null,null,null,null,null,null,null,null,null,null,null,null,null,null,null,null,null,null,null,null,null,null,null,null,null,null,null,null,null,null,null,null,null,null,null,null,null,null,null,null,null,null,null,null,null,null,null,null,null,null,null,null,null,null,null,null,null,null,null,null,null,null,null,null,null,null,null,null,null,null,null,null,null,null,null,null,null,null,null,null,null,null,null,null,null,null,null,null,null,null,null,null,null,null,null,null,null,null,null,null,null,null,null,null,null,null,null,null,null,null,null,null,null,null,null,null,null,null,null,null,null,null,null,null,null,null,null,null,null,null,null,null,null,null,null,null,null,null,null,null,null,null,null,null,null,null,null,null,null,null,null,null,null,null,null,null,null,null,null,null,null,null,null,null,null,null,null,null,null,null,null,null,null,null,null,null,null,null,null,null,null,null,null,null,null,null,null,null,null,null,null,null,null,null,null,null,null,null,null,null,null,null,null,null,null,null,null,null,null,null,null,null,null,null,null,null,null,null,null,null,null,null,null,null,null,null,null,null,null,null,null,null,null,null,null,null,null,null,null,null,null,null,null,null,null,null,null,null,null,null,null,null,null,null,null,null,null,null,null,null,null,null,null,null,null,null,null,null,null,null,null,null,null,null,null,null,null,null,null,null,null,null,null,null,null,null,null,null,null,null,null,null,null,null,null,null,null,null,null,null,null,null,null,null,null,null,null,null,null,null,null,null,null,null,null,null,null,null,null,null,null,null,null,null,null,null,null,null,null,null,null,null,null,null,null,null,null,null,null,null,null,null,null,null,null,null,null,null,null,null,null,null,null,null,null,null,null,null,null,null,null,null,null,null,null,null,null,null,null,null,null,null,null,null,null,null,null,null,null,null,null,null,null,null,null,null,null,null,null,null,null,null,null,null,null,null,null,null,null,null,null,null,null,null,null,null,null,null,null,null,null,null,null,null,null,null,null,null,null,null,null,null,null,null,null,null,null,null,null,null,null,null,null,null,null,null,null,null,null,null,null,null,null,null,null,null,null,null,null,null,null,null,null,null,null,null,null,null,null,null,null,null,null,null,null,null,null,null,null,null,null,null,null,null,null,null,null,null,null,null,null,null,null,null,null,null,null,null,null,null,null,null,null,null,null,null,null,null,null,null,null,null,null,null,null,null,null,null,null,null,null,null,null,null,null,null,null,null,null,null,null,null,null,null,null,null,null,null,null,null,null,null,null,null,null,null,null,null,null,null,null,null,null,null,null,null,null,null,null,null,null,null,null,null,null,null,null,null,null,null,null,null,null,null,null,null,null,null,null,null,null,null,null,null,null,null,null,null,null,null,null,null,null,null,null,null,null,null,null,null,null,null,null,null,null,null,null,null,null,null,null,null,null,null,null,null,null,null,null,null,null,null,null,null,null,null,null,null,null,null,null,null,null,null,null,null,null,null,null,null,null,null,null,null,null,null,null,null,null,null,null,null,null,null,null,null,null,null,null,null,null,null,null,null,null,null,null,null,null,null,null,null,null,null,null,null,null,null,null,null,null,null,null,null,null,null,null,null,null,null,null,null,null,null,null,null,null,null,null,null,null,null,null,null,null,null,null,null,null,null,null,null,null,null,null,null,null,null,null,null,null,null,null,null,null,null,null,null,null,null,null,null,null,null,null,null,null,null,null,null,null,null,null,null,null,null,null,null,null,null,null,null,null,null,null,null,null,null,null,null,null,null,null,null,null,null,null,null,null,null,null,null,null,null,null,null,null,null,null,null,null,null,null,null,null,null,null,null,null,null,null,null,null,null,null,null,null,null,null,null,null,null,null,null,null,null,null,null,null,null,null,null,null,null,null,null,null,null,null,null,null,null,null,null,null,null,null,null,null,null,null,null,null,null,null,null,null,null,null,null,null,null,null,null,null,null,null,null,null,null,null,null,null,null,null,null,null,null,null,null,null,null,null,null,null,null,null,null,null,null,null,null,null,null,null,null,null,null,null,null,null,null,null,null,null,null,null,null,null,null,null,null,null,null,null,null,null,null,null,null,null,null,null,null,null,null,null,null,null,null,null,null,null,null,null,null,null,null,null,null,null,null,null,null,null,null,null,null,null,null,null,null,null,null,null,null,null,null,null,null,null,null,null,null,null,null,null,null,null,null,null,null,null,null,null,null,null,null,null,null,null,null,null,null,null,null,null,null,null,null,null,null,null,null,null,null,null,null,null,null,null,null,null,null,null,null,null,null,null,null,null,null,null,null,null,null,null,null,null,null,null,null,null,null,null,null,null,null,null,null,null,null,null,null,null,null,null,null,null,null,null,null,null,null,null,null,null,null,null,null,null,null,null,null,null,null,null,null,null,null,null,null,null,null,null,null,null,null,null,null,null,null,null,null,null,null,null,null,null,null,null,null,null,null,null,null,null,null,null,null,null,null,null,null,null,null,null,null,null,null,null,null,null,null,null,null,null,null,null,null,null,null,null,null,null,null,null,null,null,null,null,null,null,null,null,null,null,null,null,null,null,null,null,null,null,null,null,null,null,null,null,null,null,null,null,null,null,null,null,null,null,null,null,null,null,null,null,null,null,null,null,null,null,null,null,null,null,null,null,null,null,null,null,null,null,null,null,null,null,null,null,null,null,null,null,null,null,null,null,null,null,null,null,null,null,null,null,null,null,null,null,null,null,null,null,null,null,null,null,null,null,null,null,null,null,null,null,null,null,null,null,null,null,null,null,null,null,null,null,null,null,null,null,null,null,null,null,null,null,null,null,null,null,null,null,null,null,null,null,null,null,null,null,null,null,null,null,null,null,null,null,null,null,null,null,null,null,null,null,null,null,null,null,null,null,null,null,null,null,null,null,null,null,null,null,null,null,null,null,null,null,null,null,null,null,null,null,null,null,null,null,null,null,null,null,null,null,null,null,null,null,null,null,null,null,null,null,null,null,null,null,null,null,null,null,null,null,null,null,null,null,null,null,null,null,null,null,null,null,null,null,null,null,null,null,null,null,null,null,null,null,null,null,null,null,null,null,null,null,null,null,null,null,null,null,null,null,null,null,null,null,null,null,null,null,null,null,null,null,null,null,null,null,null,null,null,null,null,null,null,null,null,null,null,null,null,null,null,null,null,null,null,null,null,null,null,null,null,null,null,null,null,null,null,null,null,null,null,null,null,null,null,null,null,null,null,null,null,null,null,null,null,null,null,null,null,null,null,null,null,null,null,null,null,null,null,null,null,null,null,null,null,null,null,null,null,null,null,null,null,null,null,null,null,null,null,null,null,null,null,null,null,null,null,null,null,null,null,null,null,null,null,null,null,null,null,null,null,null,null,null,null,null,null,null,null,null,null,null,null,null,null,null,null,null,null,null,null,null,null,null,null,null,null,null,null,null,null,null,null,null,null,null,null,null,null,null,null,null,null,null,null,null,null,null,null,null,null,null,null,null,null,null,null,null,null,null,null,null,null,null,null,null,null,null,null,null,null,null,null,null,null,null,null,null,null,null,null,null,null,null,null,null,null,null,null,null,null,null,null,null,null,null,null,null,null,null,null,null,null,null,null,null,null,null,null,null,null,null,null,null,null,null,null,null,null,null,null,null,null,null,null,null,null,null,null,null,null,null,null,null,null,null,null,null,null,null,null,null,null,null,null,null,null,null,null,null,null,null,null,null,null,null,null,null,null,null,null,null,null,null,null,null,null,null,null,null,null,null,null,null,null,null,null,null,null,null,null,null,null,null,null,null,null,null,null,null,null,null,null,null,null,null,null,null,null,null,null,null,null,null,null,null,null,null,null,null,null,null,null,null,null,null,null,null,null,null,null,null,null,null,null,null,null,null,null,null,null,null,null,null,null,null,null,null,null,null,null,null,null,null,null,null,null,null,null,null,null,null,null,null,null,null,null,null,null,null,null,null,null,null,null,null,null,null,null,null,null,null,null,null,null,null,null,null,null,null,null,null,null,null,null,null,null,null,null,null,null,null,null,null,null,null,null,null,null,null,null,null,null,null,null,null,null,null,null,null,null,null,null,null,null,null,null,null,null,null,null,null,null,null,null,null,null,null,null,null,null,null,null,null,null,null,null,null,null,null,null,null,null,null,null,null,null,null,null,null,null,null,null,null,null,null,null,null,null,null,null,null,null,null,null,null,null,null,null,null,null,null,null,null,null,null,null,null,null,null,null,null,null,null,null,null,null,null,null,null,null,null,null,null,null,null,null,null,null,null,null,null,null,null,null,null,null,null,null,null,null,null,null,null,null,null,null,null,null,null,null,null,null,null,null,null,null,null,null,null,null,null,null,null,null,null,null,null,null,null,null,null,null,null,null,null,null,null,null,null,null,null,null,null,null,null,null,null,null,null,null,null,null,null,null,null,null,null,null,null,null,null,null,null,null,null,null,null,null,null,null,null,null,null,null,null,null,null,null,null,null,null,null,null,null,null,null,null,null,null,null,null,null,null,null,null,null,null,null,null,null,null,null,null,null,null,null,null,null,null,null,null,null,null,null,null,null,null,null,null,null,null,null,null,null,null,null,null,null,null,null,null,null,null,null,null,null,null,null,null,null,null,null,null,null,null,null,null,null,null,null,null,null,null,null,null,null,null,null,null,null,null,null,null,null,null,null,null,null,null,null,null,null,null,null,null,null,null,null,null,null,null,null,null,null,null,null,null,null,null,null,null,null,null,null,null,null,null,null,null,null,null,null,null,null,null,null,null,null,null,null,null,null,null,null,null,null,null,null,null,null,null,null,null,null,null,null,null,null,null,null,null,null,null,null,null,null,null,null,null,null,null,null,null,null,null,null,null,null,null,null,null,null,null,null,null,null,null,null,null,null,null,null,null,null,null,null,null,null,null,null,null,null,null,null,null,null,null,null,null,null,null,null,null,null,null,null,null,null,null,null,null,null,null,null,null,null,null,null,null,null,null,null,null,null,null,null,null,null,null,null,null,null,null,null,null,null,null,null,null,null,null,null,null,null,null,null,null,null,null,null,null,null,null,null,null,null,null,null,null,null,null,null,null,null,null,null,null,null,null,null,null,null,null,null,null,null,null,null,null,null,null,null,null,null,null,null,null,null,null,null,null,null,null,null,null,null,null,null,null,null,null,null,null,null,null,null,null,null,null,null,null,null,null,null,null,null,null,null,null,null,null,null,null,null,null,null,null,null,null,null,null,null,null,null,null,null,null,null,null,null,null,null,null,null,null,null,null,null,null,null,null,null,null,null,null,null,null,null,null,null,null,null,null,null,null,null,null,null,null,null,null,null,null,null,null,null,null,null,null,null,null,null,null,null,null,null,null,null,null,null,null,null,null,null,null,null,null,null,null,null,null,null,null,null,null,null,null,null,null,null,null,null,null,null,null,null,null,null,null,null,null,null,null,null,null,null,null,null,null,null,null,null,null,null,null,null,null,null,null,null,null,null,null,null,null,null,null,null,null,null,null,null,null,null,null,null,null,null,null,null,null,null,null,null,null,null,null,null,null,null,null,null,null,null,null,null,null,null,null,null,null,null,null,null,null,null,null,null,null,null,null,null,null,null,null,null,null,null,null,null,null,null,null,null,null,null,null,null,null,null,null,null,null,null,null,null,null,null,null,null,null,null,null,null,null,null,null,null,null,null,null,null,null,null,null,null,null,null,null,null,null,null,null,null,null,null,null,null,null,null,null,null,null,null,null,null,null,null,null,null,null,null,null,null,null,null,null,null,null,null,null,null,null,null,null,null,null,null,null,null,null,null,null,null,null,null,null,null,null,null,null,null,null,null,null,null,null,null,null,null,null,null,null,null,null,null,null,null,null,null,null,null,null,null,null,null,null,null,null,null,null,null,null,null,null,null,null,null,null,null,null,null,null,null,null,null,null,null,null,null,null,null,null,null,null,null,null,null,null,null,null,null,null,null,null,null,null,null,null,null,null,null,null,null,null,null,null,null,null,null,null,null,null,null,null,null,null,null,null,null,null,null,null,null,null,null,null,null,null,null,null,null,null,null,null,null,null,null,null,null,null,null,null,null,null,null,null,null,null,null,null,null,null,null,null,null,null,null,null,null,null,null,null,null,null,null,null,null,null,null,null,null,null,null,null,null,null,null,null,null,null,null,null,null,null,null,null,null,null,null,null,null,null,null,null,null,null,null,null,null,null,null,null,null,null,null,null,null,null,null,null,null,null,null,null,null,null,null,null,null,null,null,null,null,null,null,null,null,null,null,null,null,null,null,null,null,null,null,null,null,null,null,null,null,null,null,null,null,null,null,null,null,null,null,null,null,null,null,null,null,null,null,null,null,null,null,null,null,null,null,null,null,null,null,null,null,null,null,null,null,null,null,null,null,null,null,null,null,null,null,null,null,null,null,null,null,null,null,null,null,null,null,null,null,null,null,null,null,null,null,null,null,null,null,null,null,null,null,null,null,null,null,null,null,null,null,null,null,null,null,null,null,null,null,null,null,null,null,null,null,null,null,null,null,null,null,null,null,null,null,null,null,null,null,null,null,null,null,null,null,null,null,null,null,null,null,null,null,null,null,null,null,null,null,null,null,null,null,null,null,null,null,null,null,null,null,null,null,null,null,null,null,null,null,null,null,null,null,null,null,null,null,null,null,null,null,null,null,null,null,null,null,null,null,null,null,null,null,null,null,null,null,null,null,null,null,null,null,null,null,null,null,null,null,null,null,null,null,null,null,null,null,null,null,null,null,null,null,null,null,null,null,null,null,null,null,null,null,null,null,null,null,null,null,null,null,null,null,null,null,null,null,null,null,null,null,null,null,null,null,null,null,null,null,null,null,null,null,null,null,null,null,null,null,null,null,null,null,null,null,null,null,null,null,null,null,null,null,null,null,null,null,null,null,null,null,null,null,null,null,null,null,null,null,null,null,null,null,null,null,null,null,null,null,null,null,null,null,null,null,null,null,null,null,null,null,null,null,null,null,null,null,null,null,null,null,null,null,null,null,null,null,null,null,null,null,null,null,null,null,null,null,null,null,null,null,null,null,null,null,null,null,null,null,null,null,null,null,null,null,null,null,null,null,null,null,null,null,null,null,null,null,null,null,null,null,null,null,null,null,null,null,null,null,null,null,null,null,null,null,null,null,null,null,null,null,null,null,null,null,null,null,null,null,null,null,null,null,null,null,null,null,null,null,null,null,null,null,null,null,null,null,null,null,null,null,null,null,null,null,null,null,null,null,null,null,null,null,null,null,null,null,null,null,null,null,null,null,null,null,null,null,null,null,null,null,null,null,null,null,null,null,null,null,null,null,null,null,null,null,null,null,null,null,null,null,null,null,null,null,null,null,null,null,null,null,null,null,null,null,null,null,null,null,null,null,null,null,null,null,null,null,null,null,null,null,null,null,null,null,null,null,null,null,null,null,null,null,null,null,null,null,null,null,null,null,null,null,null,null,null,null,null,null,null,null,null,null,null,null,null,null,null,null,null,null,null,null,null,null,null,null,null,null,null,null,null,null,null,null,null,null,null,null,null,null,null,null,null,null,null,null,null,null,null,null,null,null,null,null,null,null,null,null,null,null,null,null,null,null,null,null,null,null,null,null,null,null,null,null,null,null,null,null,null,null,null,null,null,null,null,null,null,null,null,null,null,null,null,null,null,null,null,null,null,null,null,null,null,null,null,null,null,null,null,null,null,null,null,null,null,null,null,null,null,null,null,null,null,null,null,null,null,null,null,null,null,null,null,null,null,null,null,null,null,null,null,null,null,null,null,null,null,null,null,null,null,null,null,null,null,null,null,null,null,null,null,null,null,null,null,null,null,null,null,null,null,null,null,null,null,null,null,null,null,null,null,null,null,null,null,null,null,null,null,null,null,null,null,null,null,null,null,null,null,null,null,null,null,null,null,null,null,null,null,null,null,null,null,null,null,null,null,null,null,null,null,null,null,null,null,null,null,null,null,null,null,null,null,null,null,null,null,null,null,null,null,null,null,null,null,null,null,null,null,null,null,null,null,null,null,null,null,null,null,null,null,null,null,null,null,null,null,null,null,null,null,null,null,null,null,null,null,null,null,null,null,null,null,null,null,null,null,null,null,null,null,null,null,null,null,null,null,null,null,null,null,null,null,null,null,null,null,null,null,null,null,null,null,null,null,null,null,null,null,null,null,null,null,null,null,null,null,null,null,null,null,null,null,null,null,null,null,null,null,null,null,null,null,null,null,null,null,null,null,null,null,null,null,null,null,null,null,null,null,null,null,null,null,null,null,null,null,null,null,null,null,null,null,null,null,null,null,null,null,null,null,null,null,null,null,null,null,null,null,null,null,null,null,null,null,null,null,null,null,null,null,null,null,null,null,null,null,null,null,null,null,null,null,null,null,null,null,null,null,null,null,null,null,null,null,null,null,null,null,null,null,null,null,null,null,null,null,null,null,null,null,null,null,null,null,null,null,null,null,null,null,null,null,null,null,null,null,null,null,null,null,null,null,null,null,null,null,null,null,null,null,null,null,null,null,null,null,null,null,null,null,null,null,null,null,null,null,null,null,null,null,null,null,null,null,null,null,null,null,null,null,null,null,null,null,null,null,null,null,null,null,null,null,null,null,null,null,null,null,null,null,null,null,null,null,null,null,null,null,null,null,null,null,null,null,null,null,null,null,null,null,null,null,null,null,null,null,null,null,null,null,null,null,null,null,null,null,null,null,null,null,null,null,null,null,null,null,null,null,null,null,null,null,null,null,null,null,null,null,null,null,null,null,null,null,null,null,null,null,null,null,null,null,null,null,null,null,null,null,null,null,null,null,null,null,null,null,null,null,null,null,null,null,null,null,null,null,null,null,null,null,null,null,null,null,null,null,null,null,null,null,null,null,null,null,null,null,null,null,null,null,null,null,null,null,null,null,null,null,null,"CUMPLIMIENTO","OBSERVACIONES"]
[null,1]
[null,2]
[null,3]
[null,4]
[null,5]
[null,6]
[null,7]
[null,8]
[null,9]
[null,10]
[null,11]
[null,12]
[null,13]
[null,14]
[null,15]
[null,16]
[null,17]
[null,18]
[null,19]
[null,20]
[]
[null,"Lugar Y Fecha"]
[]
[]
[]
[]
[]
[]
[null,"F)"]
[null,"Nombre del Representante Legal"]

{"sheet":"7. PERSONAL TECNICO","index":8,"n_rows":48,"n_cols":17,"rows_kept":48,"cut":false,"hidden":false,"merged":[[3,15,4,15],[3,16,4,16],[17,15,18,15],[17,16,18,16],[7,1,8,1],[7,2,8,2],[7,3,8,4],[7,5,8,5],[7,6,8,6],[3,11,4,13],[3,2,4,2],[3,5,4,5],[6,11,6,13],[7,11,7,13],[7,7,8,10],[8,11,8,13],[12,11,12,13],[13,11,13,13],[15,11,15,13],[11,7,12,10],[11,11,11,13],[9,6,10,6],[9,7,10,10],[11,1,12,1],[22,1,24,1],[22,2,24,2],[19,5,21,8],[18,12,18,13],[19,12,19,13],[22,12,22,13],[17,1,17,14],[22,3,24,4],[22,5,24,8],[18,5,18,8],[19,3,21,4],[19,1,21,1],[19,2,21,2],[25,12,25,13],[28,12,28,13],[31,12,31,13],[34,12,34,13],[28,1,30,1],[28,2,30,2],[28,3,30,4],[28,5,30,8],[31,1,33,1],[31,2,33,2],[31,3,33,4],[31,5,33,8],[25,1,27,1],[25,2,27,2],[0,1,1,2],[0,3,0,14],[1,3,1,14],[5,7,6,10],[5,6,6,6],[5,5,6,5],[5,2,6,2],[3,14,4,14],[5,11,5,13],[5,3,6,4],[5,1,6,1],[3,3,4,4],[2,1,2,13],[3,1,4,1],[3,6,4,6],[3,7,4,10],[11,2,12,2],[11,3,12,4],[11,5,12,5],[11,6,12,6],[9,1,10,1],[9,2,10,2],[10,11,10,13],[9,3,10,4],[9,5,10,5],[9,11,9,13],[37,1,37,14],[14,11,14,13],[15,1,16,1],[15,3,16,4],[15,5,16,5],[15,6,16,6],[15,7,16,10],[16,11,16,13],[15,2,16,2],[13,1,14,1],[13,2,14,2],[13,3,14,4],[13,5,14,5],[13,6,14,6],[13,7,14,10],[18,3,18,4],[25,5,27,8],[35,12,35,13],[36,12,36,13],[34,3,36,4],[34,5,36,8],[25,3,27,4],[34,1,36,1],[34,2,36,2]]}
[null,"INCORPORE EL LOGO DE LA FIRMA AUDITORA",null,"INGRESE EL NOMBRE O DENOMINACION DE LA FIRMA CONSULTORA"]
[null,null,null,"PERSONAL TÉCNICO CLAVE ASIGNADO AL PROYECTO"]
[null,"PERSONAL TÉCNICO MÍNIMO"]
[null," Cantidad","Nombre Completo","Función y Cargo",null,"Nacionalidad","Nivel de estudios ","Titulación académica  Requerida",null,null,null,"Titulación Académica presentada",null,null,"Medio de Verificación\n\nIncorpore y anexe los documentos verificables requeridos para acreditar la formación académica de todo el personal técnico: el Registro del Título en el Senescyt y la hoja de vida debidamente suscrita.","CUMPLIMIENTO","OBSDERVACIONES"]
[]
[null,1,null,"Socio auditor",null,null,"Tercer Nivel","Título universitario de contador público, auditor, economista, ingeniero comercial o afines\t\nPlanificar, revisar y aprobar el trabajo efectuado por todo el equipo de auditores y especialistas, supervisar las acciones de discusión y presentación de los informes con los funcionarios de la institución, firmar los informes que se deban remitir como resultado del trabajo"]
[]
[null,1,null,"Jefe de auditoría ",null,null,"Tercer Nivel","Título universitario de contador público, auditor, economista, ingeniero comercial o afines\t\nPlanificar y revisar el trabajo efectuado por todo el equipo de auditores, coordinar las acciones de discusión de los informes, participar en la fijación de los alcances de la auditoría, revisar los informes que realice el grupo de auditores, atender consultas técnicas que surjan en el desarrollo del trabajo, asegurarse que se cumplan los objetivos de la consultoría."]
[]
[null,1,null,"Auditor senior",null,null,"Tercer Nivel","Título universitario de contador público, auditor, economista, ingeniero comercial o afines.\t\nPlanificar la auditoría juntamente con el jefe de auditoría, ejecutar pruebas de auditoría en el campo y supervisar el trabajo del equipo de auditores, preparar los informes de auditoría, y proporcionar e informar al equipo de auditores sobre los principales hallazgos de auditoría."]
[]
[null,1,null,"Especialista tributario ",null,null,"Tercer Nivel","Título universitario de contador público, auditor, economista, ingeniero comercial o afines\t\nRevisar el cumplimiento de los principales aspectos tributarios y legales significativos."]
[]
[null,1,null,"Asistente de auditoria ",null,null,"Tercer Nivel","Título universitario de contador público, auditor, economista, ingeniero comercial o afines\t\nEjecutar las pruebas de auditoría bajo la dirección del auditor senior, esto implica efectuar las revisiones de los documentos que sustentan las diferentes transacciones reflejadas en los estados financieros de la institución."]
[]
[null,1,null,"Asistente de auditoria ",null,null,"Tercer Nivel","Título universitario de contador público, auditor, economista, ingeniero comercial o afines\t\nEjecutar las pruebas de auditoría bajo la dirección del auditor senior, esto implica efectuar las revisiones de los documentos que sustentan las diferentes transacciones reflejadas en los estados financieros de la institución."]
[]
[null,"EXPERIENCIA DEL PERSONAL TÉCNICO MÍNIMO",null,null,null,null,null,null,null,null,null,null,null,null,null,"CUMPLIMIENTO","OBSDERVACIONES"]
[null,"Cantidad","Nombre completo","Cargo",null,"Experiencia requerida",null,null,null,"Numero de Proyectos","Monto del Proyecto","Tiempo de participación","Porcentaje de participación",null,"MEDIO DE VERIFICACION\nIncorpore y anexe los documentos verificables requeridos para acreditar la experiencia de todo el personal técnico, de acuerdo a lo solicitado en el campo denominado Experiencia requerida"]
[null,1,{"$f":"+C6","v":0},"Socio auditor",null,"Experiencia adquirida: En los últimos 10 años, haber realizado Auditoría Externa a instituciones financieras públicas o privadas y/o a las Organizaciones del Sistema Financiero Popular y Solidario (OSFPS)\nNúmero de proyectos similares: 1 proyecto que haya participado como socio auditor o similar\nMonto contractual mínimo: No requerido\n\nMedios de verificación: Actas entrega recepción, o Contratos (en caso de que el proyecto esté en ejecución), o Facturas, o \nCertificados laborales (Si el certificado a presentar es de la misma empresa participante, deberá adjuntar los respaldos respectivos que acrediten la experiencia descrita en los certificados) \nSe aceptarán como válidos los certificados de experiencia en copias simples con las siguientes características: \n1. Hoja membretada, \n2. Nombre, cargo y firma de la persona otorgante del certificado, \n3. Descripción de las actividades conforme a la experiencia solicitada.  ",null,null,null,"1 proyecto, puede incorporar otros proyectos que considere acrediten o validen la experiencia solicitada"]
[]
[]
[null,1,{"$f":"+C8","v":0},"Jefe de auditoría ",null,"En los últimos 10 años, haber realizado Auditoría Externa a fondos entregados por organismos internacionales / multilaterales.\n1 proyecto que haya participado como jefe de auditoría, similar o superior\n\nMonto contractual mínimo: No requerido\n\nMedios de verificación: Actas entrega recepción, o Contratos (en caso de que el proyecto esté en ejecución), o Facturas, o \nCertificados laborales (Si el certificado a presentar es de la misma empresa participante, deberá adjuntar los respaldos respectivos que acrediten la experiencia descrita en los certificados) \nSe aceptarán como válidos los certificados de experiencia en copias simples con las siguientes características: \n1. Hoja membretada, \n2. Nombre, cargo y firma de la persona otorgante del certificado, \n3. Descripción de las actividades conforme a la experiencia solicitada.  "]
[]
[]
[null,1,{"$f":"+C10","v":0},"Auditor senior",null,"En los últimos 10 años, haber realizado auditorías a instituciones financieras públicas o privadas.\n1 proyecto como Auditor Senior, similar o superior \n\nMonto contractual mínimo No requerido\nMedios de verificación: Actas entrega recepción, o Contratos (en caso de que el proyecto esté en ejecución), o Facturas, o \nCertificados laborales (Si el certificado a presentar es de la misma empresa participante, deberá adjuntar los respaldos respectivos que acrediten la experiencia descrita en los certificados) \nSe aceptarán como válidos los certificados de experiencia en copias simples con las siguientes características: \n1. Hoja membretada, \n2. Nombre, cargo y firma de la persona otorgante del certificado, \n3. Descripción de las actividades conforme a la experiencia solicitada.  "]
[]
[]
[null,1,{"$f":"+C12","v":0},"Especialista tributario ",null,"En los últimos 10 años, haber realizado actividades relacionadas a tributación en instituciones públicas o privadas.\n1 proyecto como Especialista Tributario\n\nMonto contractual mínimo: No requerido\nMedios de verificación: Actas entrega recepción, o Contratos (en caso de que el proyecto esté en ejecución), o Facturas, o \nCertificados laborales (Si el certificado a presentar es de la misma empresa participante, deberá adjuntar los respaldos respectivos que acrediten la experiencia descrita en los certificados) \nSe aceptarán como válidos los certificados de experiencia en copias simples con las siguientes características: \n1. Hoja membretada, \n2. Nombre, cargo y firma de la persona otorgante del certificado, \n3. Descripción de las actividades conforme a la experiencia solicitada.  "]
[]
[]
[null,1,{"$f":"+C14","v":0},"Asistente de auditoria ",null,"En los últimos 5 años, haber realizado asistencia para la realización de auditorías a instituciones financieras públicas o privadas.\n1 proyecto como Asistente de Auditoria, similar o superior\n\nMonto contractual mínimo No requerido\nMedios de verificación: Actas entrega recepción, o Contratos (en caso de que el proyecto esté en ejecución), o Facturas, o \nCertificados laborales (Si el certificado a presentar es de la misma empresa participante, deberá adjuntar los respaldos respectivos que acrediten la experiencia descrita en los certificados) \nSe aceptarán como válidos los certificados de experiencia en copias simples con las siguientes características: \n1. Hoja membretada, \n2. Nombre, cargo y firma de la persona otorgante del certificado, \n3. Descripción de las actividades conforme a la experiencia solicitada.  "]
[]
[]
[null,1,{"$f":"+C16","v":0},"Asistente de auditoria ",null,"En los últimos 5 años, haber realizado asistencia para la realización de auditorías a instituciones financieras públicas o privadas.\n1 proyecto como Asistente de Auditoria, similar o superior\nMonto contractual mínimo:\nActas entrega recepción, contratos (en caso de que el proyecto esté en ejecución), facturas o certificados laborales (Si el certificado a presentar es de la misma empresa participante, deberá adjuntar los respaldos respectivos que acrediten la experiencia descrita en los certificados) \n\nSe aceptarán como válidos los certificados de experiencia en copias simples con las siguientes características: 1. Hoja membretada, 2. Nombre, cargo y firma de la persona otorgante del certificado, 3. Descripción de las actividades conforme a la experiencia solicitada.  "]
[]
[]
[null,"Notas: \na.\tPara acreditar la formación académica de todo el personal técnico se deberá presentar el Registro del Título en el Senescyt y la hoja de vida debidamente suscrita y el listado de las actividades realizadas durante los 3 últimos años.\nb.\tPara acreditar la experiencia de todo el personal técnico se deberá presentar: Actas entrega recepción, contratos (en caso de que el proyecto esté en ejecución), facturas o certificados laborales (Si el certificado a presentar es de la misma empresa participante, deberá adjuntar los respaldos respectivos que acrediten la experiencia descrita en los certificados) \nc.\tSe aceptarán como válidos los certificados de experiencia en copias simples con las siguientes características: \n\ni.\tHoja membretada\nii.\tNombre, cargo y firma de la persona otorgante del certificad\niii.\tDescripción de las actividades conforme a la experiencia solicitada.  \t"]
[]
[null,"Lugar Y Fecha"]
[]
[]
[]
[]
[]
[]
[null,"F)"]
[null,"Nombre del Representante Legal"]

{"sheet":"8. COMPROMISO PERSONAL TECNICO","index":9,"n_rows":28,"n_cols":4,"rows_kept":28,"cut":false,"hidden":false,"merged":[]}
[null,null,"COMPROMISO DEL PROFESIONAL ASIGNADO AL PROYECTO"]
[]
[null,null,"Yo, (nombre del profesional), me comprometo con (nombre del oferente) a prestar mis servicios en calidad de (título profesional), para (cargo asignado) durante la realización del proyecto, en caso de adjudicación, adjuntando al presente compromiso mi hoja de vida correspondiente, numeral 2.2 de este formulario."]
[]
[]
[null,null,null,"CUMPLIMIENTO"]
[null,null,"Lugar y Fecha"]
[]
[null,null,"__________________________"]
[null,null,"(Firma, Nombre y Número CC)"]
[null,null,"(Profesional Asignado al Proyecto)"]
[]
[]
[]
[null,null,"Notas:"]
[null,null,"1.     Este formulario deberá estar firmado por el profesional para ser considerado en el proyecto, exclusivamente."]
[null,null,"2.     Incluir información de cada experiencia profesional en un archivo adjunto con los documentos habilitantes que acreditan la formación profesional y la experiencia del personal técnico"]
[]
[]
[null,null,"Lugar y Fecha","CUMPLIMIENTO"]
[]
[]
[]
[]
[null,null,"F)"]
[null,null,"Nombre del Representante Legal"]
[]
[null,null,"Nota: El compromiso debe estar suscrito por cada uno de los integrantes del personal técnico requerido, mismo que debe estar avallado con la firma electrónica del representante legal "]

{"sheet":"9. EQUIPOS DE TRABAJO","index":10,"n_rows":39,"n_cols":16,"rows_kept":39,"cut":false,"hidden":false,"merged":[[3,14,4,14],[3,15,4,15],[8,14,9,14],[8,15,9,15],[27,1,27,9],[12,2,12,5],[10,6,12,12],[8,1,8,12],[9,2,9,5],[9,6,9,12],[10,2,10,5],[11,2,11,5],[14,1,14,9],[15,1,15,9],[28,1,28,9],[34,1,34,9],[31,1,31,9],[21,1,21,9],[18,1,18,9],[1,1,2,13],[0,3,0,13],[0,1,0,2],[3,13,4,13],[8,13,9,13],[4,2,4,5],[4,6,4,12],[5,2,5,5],[5,6,7,12],[6,2,6,5],[7,2,7,5],[3,1,3,12]]}
[null,"INSERTE AQUÍ EL LOGO DE LA FIRMA AUDITORA",null,"INGRESE EL NOMBRE O DENOMINACION DE LA FIRMA CONSULTORA"]
[null,"EQUIPOS E INSTRUMENTOS DISPONIBLES"]
[]
[null,"EQUIPO DE TRABAJO",null,null,null,null,null,null,null,null,null,null,null,"MEDIO DE VERIFICACION","CUMPLIMIENTO","OBSERVACIONES"]
[null,"Cantidad","Equipo y /o instrumento",null,null,null,"Características "]
[null,1,"software especializado",null,null,null,"La firma auditora deberá acreditar la dotación de equipo de trabajo mediante facturas, contratos de compra o renta y/o carta de compromiso suscrita por el Representante legal. "]
[null,1,"equipos de cómputo"]
[null,1,"Impresoras"]
[null,"RECURSOS",null,null,null,null,null,null,null,null,null,null,null,"MEDIO DE VERIFICACION","CUMPLIMIENTO","OBSERVACIONES"]
[null,"Cantidad","Insumos",null,null,null,"Características "]
[null,1,"Suministros y materiales",null,null,null,"La firma auditora deberá acreditar la dotación de recursos mediante facturas, contratos de compra o renta y/o carta de compromiso suscrita por el Representante legal. "]
[]
[]
[]
[null,"MODELO CARTA DE COMPROMISO DE EQUIPOS DE TRABAJIO ",null,null,null,null,null,null,null,null,null,null,null,"Lugar Y Fecha"]
[null,"Lugar y fecha"]
[]
[]
[null,"Por medio del presente documento, yo Nombre del Representante Legal, en calidad de Representante Legal de ..........................................................; certifico que contamos con los equipos e insumos necesarios para la elaboración y ejecución del trabajo requerido, tales como: suministros, materiales e insumos y nos allanamos a los requerimientos establecidos en los Términos de Referencia."]
[null,null,null,null,null,null,null,null,null,null,null,null,null,"F)",null,"CUMPLIMIENTO"]
[null,null,null,null,null,null,null,null,null,null,null,null,null,"Nombre del Representante Legal"]
[null,"Atentamente"]
[]
[]
[]
[null,"Firma representante legal"]
[]
[null,"MODELO CARTA DE COMPROMISO DE DISPONIBILIDAD DE RECURSOS",null,null,null,null,null,null,null,null,null,null,null,"Lugar Y Fecha"]
[null,"Lugar y fecha"]
[]
[]
[null,"Por medio del presente documento, yo Nombre del Representante Legal, en calidad de Representante Legal de ................................................................... certifico que contamos con los recursos necesarios para la elaboración y ejecución del trabajo requerido, tales como: suministros, materiales e insumos y nos allanamos a los requerimientos establecidos en los Términos de Referencia."]
[null,null,null,null,null,null,null,null,null,null,null,null,null,"F)",null,"CUMPLIMIENTO"]
[null,null,null,null,null,null,null,null,null,null,null,null,null,"Nombre del Representante Legal"]
[null,"Atentamente"]
[]
[]
[]
[null,"Firma representante legal"]

{"sheet":"9. COMPROMISO ANEXO 2","index":11,"n_rows":14,"n_cols":14,"rows_kept":14,"cut":false,"hidden":false,"merged":[[6,1,6,9],[9,1,9,9],[2,1,2,9],[3,1,3,9],[0,1,0,2],[0,3,0,9]]}
[null,"INSERTE AQUÍ EL LOGO DE LA FIRMA AUDITORA",null,"INGRESE EL NOMBRE O DENOMINACION DE LA FIRMA CONSULTORA"]
[]
[null,"CERTIFICADO Y CARTA DE COMPROMISO CUMPLIMIENTO CLAUSULAS DEONTOLÓGICAS numeral 4 del Anexo II del Acuerdo entre el Gobierno de la República Italiana y el Gobierno de la República del Ecuador: para el PROGRAMA DE FOMENTO DE LAS FINANZAS POPULARES Y SOLIDARIAS EN LAS PROVINCIAS DEL CARCHI, SUCUMBIOS, EL ORO Y LOJA."]
[null,"Lugar y fecha"]
[]
[]
[null,"Por medio del presente documento, yo Nombre del Representante Legal, en calidad de Representante Legal de la firma auditora .................................................................; certifico y nos comprometemos a cumplir fielmente con los Principios generales de los contratos, condiciones de exigibilidad, cláusulas éticas contenidos en las CLAUSULAS DEONTOLÓGICAS numeral 4 del Anexo II del Acuerdo entre el Gobierno de la República Italiana y el Gobierno de la República del Ecuador: para el PROGRAMA DE FOMENTO DE LAS FINANZAS POPULARES Y SOLIDARIAS EN LAS PROVINCIAS DEL CARCHI, SUCUMBIOS, EL ORO Y LOJA.. y nos allanamos a los requerimientos establecidos en los Términos de Referencia así como a las bases de licitación del proceso de “Contratación de una firma consultora, para la auditoría al cumplimiento de las condiciones administrativas – financieras conforme las obligaciones establecidas en el acuerdo entre el Gobierno de la República Italiana y el Gobierno de la República del Ecuador, para financiar la ejecución del “Programa de Apoyo a las Finanzas Populares en las Provincias del Carchi, Sucumbíos, Loja y El Oro”, del segundo y tercer desembolso y cierre del programa.” "]
[null,null,null,null,null,null,null,null,null,null,null,null,null,"CUMPLIMIENTO"]
[]
[null,"Atentamente"]
[]
[]
[null,"Nombre:"]
[null,"Firma representante legal"]

{"sheet":"Hoja2","index":12,"n_rows":61,"n_cols":1,"rows_kept":61,"cut":false,"hidden":false,"merged":[]}
["SI"]
["NO"]
[]
["1. El plazo de ejecución inicia al día siguiente de la suscripción del contrato"]
["2. Con la debida justificación, el plazo de ejecución corre a partir del día que se determine o  establezca el cumplimiento de una condición."]
["3. En los contratos cuya forma de pago sea con anticipo, el plazo inicia a partir del día siguiente de la notificación por escrito por parte del administrador del contrato respecto de la disponibilidad del anticipo"]
[]
["No aplica"]
["Aplica garantía técnica a los productos generados del servicio a ser recibido"]
["Aplica garantía de fiel cumplimiento del contrato"]
["Aplica garantía del buen uso del Anticipo"]
["Aplica garantía de fiel cumplimiento del contrato y garantía técnica"]
["Aplica garantía del buen uso del Anticipo y garantía técnica"]
[]
[]
["CUMPLE"]
["NO CUMPLE"]
[]
[]
["TIPO DE PERSONA JURIDICA"]
["Compañía Anónima."]
["Compañía de Responsabilidad Limitada."]
["Compañía Mixta."]
["Compañía en Nombre Colectivo.            "]
["Compañía en Comandita Simple y Dividida por Acciones."]
["Sociedad Civil."]
["Corporación."]
["Fundación."]
["La Sociedad por Acciones Simplificada."]
["Otra."]
[]
["TIPO DE EXPERIENCIA"]
["General"]
["Específica"]
[]
[]
["PROVINCIAS"]
["Azuay"]
["Bolívar"]
["Cañar"]
["Carchi"]
["Chimborazo"]
["Cotopaxi"]
["El Oro"]
["Esmeraldas"]
["Galápagos"]
["Guayas"]
["Imbabura"]
["Loja"]
["Los Ríos"]
["Manabí"]
["Morona-Santiago"]
["Napo"]
["Orellana"]
["Pastaza"]
["Pichincha"]
["Santa Elena"]
["Santo Domingo de los Tsáchilas"]
["Sucumbíos"]
["Tungurahua"]
["Zamora-Chinchipe"]